Workbook

Sheet Full - No scour (R) (hidden)
N3: Adjusted to be = 0 if <0
B5: PREDICTED richness at structure w/o scour at different ages | E5: PREDICTED richness at structure w/o scour within different species groups at different ages | N5: PREDICTED richness at structure and scour at different ages | Q5: PREDICTED richness at structure and scour within different species groups at different ages
B6: Age [year number] | C6: Richness | D6: Aliens | E6: Sponges | F6: Cnidarians | G6: All_worms | H6: Snails_etc | I6: Arthropods | J6: Sea_mats_etc | K6: Starfish_etc | L6: Squirts_fish_lancelets | N6: Age [year number] | O6: Richness | P6: Aliens | Q6: Sponges | R6: Cnidarians | S6: All_worms | T6: Snails_etc | U6: Arthropods | V6: Sea_mats_etc | W6: Starfish_etc | X6: Squirts_fish_lancelets
B7: 1 | N7: 1 | O7: =IF(C7<0,0,C7) -> 0 | P7: 0 | Q7: 0 | R7: 0 | S7: 0 | T7: 0 | U7: 0 | V7: 0 | W7: 0 | X7: 0
B8: 2 | N8: 2 | O8: =IF(C8<0,0,C8) -> 0 | P8: 0 | Q8: 0 | R8: 0 | S8: 0 | T8: 0 | U8: 0 | V8: 0 | W8: 0 | X8: 0
B9: 3 | N9: 3 | O9: 0 | P9: 0 | Q9: 0 | R9: 0 | S9: 0 | T9: 0 | U9: 0 | V9: 0 | W9: 0 | X9: 0
B10: 4 | N10: 4 | O10: 0 | P10: 0 | Q10: 0 | R10: 0 | S10: 0 | T10: 0 | U10: 0 | V10: 0 | W10: 0 | X10: 0
B11: 5 | N11: 5 | O11: 0 | P11: 0 | Q11: 0 | R11: 0 | S11: 0 | T11: 0 | U11: 0 | V11: 0 | W11: 0 | X11: 0
B12: 6 | N12: 6 | O12: 0 | P12: 0 | Q12: 0 | R12: 0 | S12: 0 | T12: 0 | U12: 0 | V12: 0 | W12: 0 | X12: 0
B13: 7 | N13: 7 | O13: 0 | P13: 0 | Q13: 0 | R13: 0 | S13: 0 | T13: 0 | U13: 0 | V13: 0 | W13: 0 | X13: 0
B14: 8 | N14: 8 | O14: 0 | P14: 0 | Q14: 0 | R14: 0 | S14: 0 | T14: 0 | U14: 0 | V14: 0 | W14: 0 | X14: 0
B15: 9 | N15: 9 | O15: 0 | P15: 0 | Q15: 0 | R15: 0 | S15: 0 | T15: 0 | U15: 0 | V15: 0 | W15: 0 | X15: 0
B16: 10 | N16: 10 | O16: 0 | P16: 0 | Q16: 0 | R16: 0 | S16: 0 | T16: 0 | U16: 0 | V16: 0 | W16: 0 | X16: 0
B17: 11 | N17: 11 | O17: 0 | P17: 0 | Q17: 0 | R17: 0 | S17: 0 | T17: 0 | U17: 0 | V17: 0 | W17: 0 | X17: 0
B18: 12 | N18: 12 | O18: 0 | P18: 0 | Q18: 0 | R18: 0 | S18: 0 | T18: 0 | U18: 0 | V18: 0 | W18: 0 | X18: 0
B19: 13 | N19: 13 | O19: 0 | P19: 0 | Q19: 0 | R19: 0 | S19: 0 | T19: 0 | U19: 0 | V19: 0 | W19: 0 | X19: 0
B20: 14 | N20: 14 | O20: 0 | P20: 0 | Q20: 0 | R20: 0 | S20: 0 | T20: 0 | U20: 0 | V20: 0 | W20: 0 | X20: 0
B21: 15 | N21: 15 | O21: 0 | P21: 0 | Q21: 0 | R21: 0 | S21: 0 | T21: 0 | U21: 0 | V21: 0 | W21: 0 | X21: 0
B22: 16 | N22: 16 | O22: 0 | P22: 0 | Q22: 0 | R22: 0 | S22: 0 | T22: 0 | U22: 0 | V22: 0 | W22: 0 | X22: 0
B23: 17 | N23: 17 | O23: 0 | P23: 0 | Q23: 0 | R23: 0 | S23: 0 | T23: 0 | U23: 0 | V23: 0 | W23: 0 | X23: 0
B24: 18 | N24: 18 | O24: 0 | P24: 0 | Q24: 0 | R24: 0 | S24: 0 | T24: 0 | U24: 0 | V24: 0 | W24: 0 | X24: 0
B25: 19 | N25: 19 | O25: 0 | P25: 0 | Q25: 0 | R25: 0 | S25: 0 | T25: 0 | U25: 0 | V25: 0 | W25: 0 | X25: 0
B26: 20 | N26: 20 | O26: 0 | P26: 0 | Q26: 0 | R26: 0 | S26: 0 | T26: 0 | U26: 0 | V26: 0 | W26: 0 | X26: 0
B27: 21 | N27: 21 | O27: 0 | P27: 0 | Q27: 0 | R27: 0 | S27: 0 | T27: 0 | U27: 0 | V27: 0 | W27: 0 | X27: 0
B28: 22 | N28: 22 | O28: 0 | P28: 0 | Q28: 0 | R28: 0 | S28: 0 | T28: 0 | U28: 0 | V28: 0 | W28: 0 | X28: 0
B29: 23 | N29: 23 | O29: 0 | P29: 0 | Q29: 0 | R29: 0 | S29: 0 | T29: 0 | U29: 0 | V29: 0 | W29: 0 | X29: 0
B30: 24 | N30: 24 | O30: 0 | P30: 0 | Q30: 0 | R30: 0 | S30: 0 | T30: 0 | U30: 0 | V30: 0 | W30: 0 | X30: 0
B31: 25 | N31: 25 | O31: 0 | P31: 0 | Q31: 0 | R31: 0 | S31: 0 | T31: 0 | U31: 0 | V31: 0 | W31: 0 | X31: 0
B32: 26 | N32: 26 | O32: 0 | P32: 0 | Q32: 0 | R32: 0 | S32: 0 | T32: 0 | U32: 0 | V32: 0 | W32: 0 | X32: 0
B33: 27 | N33: 27 | O33: 0 | P33: 0 | Q33: 0 | R33: 0 | S33: 0 | T33: =IF(H33<0,0,H33) -> 0 | U33: 0 | V33: 0 | W33: 0 | X33: 0
B34: 28 | N34: 28 | O34: =IF(C34<0,0,C34) -> 0 | P34: 0 | Q34: =IF(E34<0,0,E34) -> 0 | R34: =IF(F34<0,0,F34) -> 0 | S34: 0 | T34: 0 | U34: 0 | V34: 0 | W34: 0 | X34: 0
B35: 29 | N35: 29 | O35: 0 | P35: 0 | Q35: 0 | R35: 0 | S35: 0 | T35: 0 | U35: 0 | V35: 0 | W35: 0 | X35: 0
B36: 30 | N36: 30 | O36: 0 | P36: 0 | Q36: 0 | R36: 0 | S36: 0 | T36: 0 | U36: 0 | V36: 0 | W36: 0 | X36: 0
B37: 31 | N37: 31 | O37: 0 | P37: 0 | Q37: 0 | R37: 0 | S37: 0 | T37: 0 | U37: 0 | V37: 0 | W37: 0 | X37: 0
B38: 32 | N38: 32 | O38: 0 | P38: 0 | Q38: 0 | R38: 0 | S38: 0 | T38: 0 | U38: 0 | V38: 0 | W38: 0 | X38: 0
B39: 33 | N39: 33 | O39: 0 | P39: 0 | Q39: 0 | R39: 0 | S39: 0 | T39: 0 | U39: 0 | V39: 0 | W39: 0 | X39: 0
B40: 34 | N40: 34 | O40: 0 | P40: 0 | Q40: 0 | R40: 0 | S40: 0 | T40: 0 | U40: 0 | V40: 0 | W40: 0 | X40: 0
B41: 35 | N41: 35 | O41: 0 | P41: 0 | Q41: 0 | R41: 0 | S41: 0 | T41: 0 | U41: 0 | V41: 0 | W41: 0 | X41: 0
B42: 36 | N42: 36 | O42: 0 | P42: 0 | Q42: 0 | R42: 0 | S42: 0 | T42: 0 | U42: 0 | V42: 0 | W42: 0 | X42: 0
B43: 37 | N43: 37 | O43: 0 | P43: 0 | Q43: 0 | R43: 0 | S43: 0 | T43: 0 | U43: 0 | V43: 0 | W43: 0 | X43: 0
B44: 38 | N44: 38 | O44: 0 | P44: 0 | Q44: 0 | R44: 0 | S44: 0 | T44: 0 | U44: 0 | V44: 0 | W44: 0 | X44: 0
B45: 39 | N45: 39 | O45: 0 | P45: 0 | Q45: 0 | R45: 0 | S45: 0 | T45: 0 | U45: 0 | V45: 0 | W45: 0 | X45: 0
B46: 40 | N46: 40 | O46: 0 | P46: 0 | Q46: 0 | R46: 0 | S46: 0 | T46: 0 | U46: 0 | V46: 0 | W46: 0 | X46: 0
B47: 41 | N47: 41 | O47: 0 | P47: 0 | Q47: 0 | R47: 0 | S47: 0 | T47: 0 | U47: 0 | V47: 0 | W47: 0 | X47: 0
B48: 42 | N48: 42 | O48: 0 | P48: 0 | Q48: 0 | R48: 0 | S48: 0 | T48: 0 | U48: 0 | V48: 0 | W48: 0 | X48: 0
B49: 43 | N49: 43 | O49: 0 | P49: 0 | Q49: 0 | R49: 0 | S49: 0 | T49: 0 | U49: 0 | V49: 0 | W49: 0 | X49: 0
B50: 44 | N50: 44 | O50: 0 | P50: 0 | Q50: 0 | R50: 0 | S50: 0 | T50: 0 | U50: 0 | V50: 0 | W50: 0 | X50: 0

Sheet 5m No scour (R) (hidden)
N3: Adjusted to be = 0 if <0
B5: PREDICTED richness at bottom 5m of structure w/o scour at different ages | E5: PREDICTED richness at bottom 5m of structure w/o scour within different species groups at different ages | N5: PREDICTED richness at structure and scour at different ages | Q5: PREDICTED richness at structure and scour within different species groups at different ages
B6: Age [year number] | C6: Richness | D6: Aliens | E6: Sponges | F6: Cnidarians | G6: All_worms | H6: Snails_etc | I6: Arthropods | J6: Sea_mats_etc | K6: Starfish_etc | L6: Squirts_fish_lancelets | N6: Age [year number] | O6: Richness | P6: Aliens | Q6: Sponges | R6: Cnidarians | S6: All_worms | T6: Snails_etc | U6: Arthropods | V6: Sea_mats_etc | W6: Starfish_etc | X6: Squirts_fish_lancelets
B7: 1 | N7: 1 | O7: =IF(C7<0,0,C7) -> 0 | P7: 0 | Q7: 0 | R7: 0 | S7: 0 | T7: 0 | U7: 0 | V7: 0 | W7: 0 | X7: 0
B8: 2 | N8: 2 | O8: =IF(C8<0,0,C8) -> 0 | P8: 0 | Q8: 0 | R8: 0 | S8: 0 | T8: 0 | U8: 0 | V8: 0 | W8: 0 | X8: 0
B9: 3 | N9: 3 | O9: 0 | P9: 0 | Q9: 0 | R9: 0 | S9: 0 | T9: 0 | U9: 0 | V9: 0 | W9: 0 | X9: 0
B10: 4 | N10: 4 | O10: 0 | P10: 0 | Q10: 0 | R10: 0 | S10: 0 | T10: 0 | U10: 0 | V10: 0 | W10: 0 | X10: 0
B11: 5 | N11: 5 | O11: 0 | P11: 0 | Q11: 0 | R11: 0 | S11: 0 | T11: 0 | U11: 0 | V11: 0 | W11: 0 | X11: 0
B12: 6 | N12: 6 | O12: 0 | P12: 0 | Q12: 0 | R12: 0 | S12: 0 | T12: 0 | U12: 0 | V12: 0 | W12: 0 | X12: 0
B13: 7 | N13: 7 | O13: 0 | P13: 0 | Q13: 0 | R13: 0 | S13: 0 | T13: 0 | U13: 0 | V13: 0 | W13: 0 | X13: 0
B14: 8 | N14: 8 | O14: 0 | P14: 0 | Q14: 0 | R14: 0 | S14: 0 | T14: 0 | U14: 0 | V14: 0 | W14: 0 | X14: 0
B15: 9 | N15: 9 | O15: 0 | P15: 0 | Q15: 0 | R15: 0 | S15: 0 | T15: 0 | U15: 0 | V15: 0 | W15: 0 | X15: 0
B16: 10 | N16: 10 | O16: 0 | P16: 0 | Q16: 0 | R16: 0 | S16: 0 | T16: 0 | U16: 0 | V16: 0 | W16: 0 | X16: 0
B17: 11 | N17: 11 | O17: 0 | P17: 0 | Q17: 0 | R17: 0 | S17: 0 | T17: 0 | U17: 0 | V17: 0 | W17: 0 | X17: 0
B18: 12 | N18: 12 | O18: 0 | P18: 0 | Q18: 0 | R18: 0 | S18: 0 | T18: 0 | U18: 0 | V18: 0 | W18: 0 | X18: 0
B19: 13 | N19: 13 | O19: 0 | P19: 0 | Q19: 0 | R19: 0 | S19: 0 | T19: 0 | U19: 0 | V19: 0 | W19: 0 | X19: 0
B20: 14 | N20: 14 | O20: 0 | P20: 0 | Q20: 0 | R20: 0 | S20: 0 | T20: 0 | U20: 0 | V20: 0 | W20: 0 | X20: 0
B21: 15 | N21: 15 | O21: 0 | P21: 0 | Q21: 0 | R21: 0 | S21: 0 | T21: 0 | U21: 0 | V21: 0 | W21: 0 | X21: 0
B22: 16 | N22: 16 | O22: 0 | P22: 0 | Q22: 0 | R22: 0 | S22: 0 | T22: 0 | U22: 0 | V22: 0 | W22: 0 | X22: 0
B23: 17 | N23: 17 | O23: 0 | P23: 0 | Q23: 0 | R23: 0 | S23: 0 | T23: 0 | U23: 0 | V23: 0 | W23: 0 | X23: 0
B24: 18 | N24: 18 | O24: 0 | P24: 0 | Q24: 0 | R24: 0 | S24: 0 | T24: 0 | U24: 0 | V24: 0 | W24: 0 | X24: 0
B25: 19 | N25: 19 | O25: 0 | P25: 0 | Q25: 0 | R25: 0 | S25: 0 | T25: 0 | U25: 0 | V25: 0 | W25: 0 | X25: 0
B26: 20 | N26: 20 | O26: 0 | P26: 0 | Q26: 0 | R26: 0 | S26: 0 | T26: 0 | U26: 0 | V26: 0 | W26: 0 | X26: 0
B27: 21 | N27: 21 | O27: 0 | P27: 0 | Q27: 0 | R27: 0 | S27: 0 | T27: 0 | U27: 0 | V27: 0 | W27: 0 | X27: 0
B28: 22 | N28: 22 | O28: 0 | P28: 0 | Q28: 0 | R28: 0 | S28: 0 | T28: 0 | U28: 0 | V28: 0 | W28: 0 | X28: 0
B29: 23 | N29: 23 | O29: 0 | P29: 0 | Q29: 0 | R29: 0 | S29: 0 | T29: 0 | U29: 0 | V29: 0 | W29: 0 | X29: 0
B30: 24 | N30: 24 | O30: 0 | P30: 0 | Q30: 0 | R30: 0 | S30: 0 | T30: 0 | U30: 0 | V30: 0 | W30: 0 | X30: 0
B31: 25 | N31: 25 | O31: 0 | P31: 0 | Q31: 0 | R31: 0 | S31: 0 | T31: 0 | U31: 0 | V31: 0 | W31: 0 | X31: 0
B32: 26 | N32: 26 | O32: 0 | P32: 0 | Q32: 0 | R32: 0 | S32: 0 | T32: 0 | U32: 0 | V32: 0 | W32: 0 | X32: 0
B33: 27 | N33: 27 | O33: 0 | P33: 0 | Q33: 0 | R33: 0 | S33: 0 | T33: =IF(H33<0,0,H33) -> 0 | U33: 0 | V33: 0 | W33: 0 | X33: 0
B34: 28 | N34: 28 | O34: =IF(C34<0,0,C34) -> 0 | P34: 0 | Q34: =IF(E34<0,0,E34) -> 0 | R34: =IF(F34<0,0,F34) -> 0 | S34: 0 | T34: 0 | U34: 0 | V34: 0 | W34: 0 | X34: 0
B35: 29 | N35: 29 | O35: 0 | P35: 0 | Q35: 0 | R35: 0 | S35: 0 | T35: 0 | U35: 0 | V35: 0 | W35: 0 | X35: 0
B36: 30 | N36: 30 | O36: 0 | P36: 0 | Q36: 0 | R36: 0 | S36: 0 | T36: 0 | U36: 0 | V36: 0 | W36: 0 | X36: 0
B37: 31 | N37: 31 | O37: 0 | P37: 0 | Q37: 0 | R37: 0 | S37: 0 | T37: 0 | U37: 0 | V37: 0 | W37: 0 | X37: 0
B38: 32 | N38: 32 | O38: 0 | P38: 0 | Q38: 0 | R38: 0 | S38: 0 | T38: 0 | U38: 0 | V38: 0 | W38: 0 | X38: 0
B39: 33 | N39: 33 | O39: 0 | P39: 0 | Q39: 0 | R39: 0 | S39: 0 | T39: 0 | U39: 0 | V39: 0 | W39: 0 | X39: 0
B40: 34 | N40: 34 | O40: 0 | P40: 0 | Q40: 0 | R40: 0 | S40: 0 | T40: 0 | U40: 0 | V40: 0 | W40: 0 | X40: 0
B41: 35 | N41: 35 | O41: 0 | P41: 0 | Q41: 0 | R41: 0 | S41: 0 | T41: 0 | U41: 0 | V41: 0 | W41: 0 | X41: 0
B42: 36 | N42: 36 | O42: 0 | P42: 0 | Q42: 0 | R42: 0 | S42: 0 | T42: 0 | U42: 0 | V42: 0 | W42: 0 | X42: 0
B43: 37 | N43: 37 | O43: 0 | P43: 0 | Q43: 0 | R43: 0 | S43: 0 | T43: 0 | U43: 0 | V43: 0 | W43: 0 | X43: 0
B44: 38 | N44: 38 | O44: 0 | P44: 0 | Q44: 0 | R44: 0 | S44: 0 | T44: 0 | U44: 0 | V44: 0 | W44: 0 | X44: 0
B45: 39 | N45: 39 | O45: 0 | P45: 0 | Q45: 0 | R45: 0 | S45: 0 | T45: 0 | U45: 0 | V45: 0 | W45: 0 | X45: 0
B46: 40 | N46: 40 | O46: 0 | P46: 0 | Q46: 0 | R46: 0 | S46: 0 | T46: 0 | U46: 0 | V46: 0 | W46: 0 | X46: 0
B47: 41 | N47: 41 | O47: 0 | P47: 0 | Q47: 0 | R47: 0 | S47: 0 | T47: 0 | U47: 0 | V47: 0 | W47: 0 | X47: 0
B48: 42 | N48: 42 | O48: 0 | P48: 0 | Q48: 0 | R48: 0 | S48: 0 | T48: 0 | U48: 0 | V48: 0 | W48: 0 | X48: 0
B49: 43 | N49: 43 | O49: 0 | P49: 0 | Q49: 0 | R49: 0 | S49: 0 | T49: 0 | U49: 0 | V49: 0 | W49: 0 | X49: 0
B50: 44 | N50: 44 | O50: 0 | P50: 0 | Q50: 0 | R50: 0 | S50: 0 | T50: 0 | U50: 0 | V50: 0 | W50: 0 | X50: 0

Sheet Introduction
A1: Supplementary Information 2
A2: Benefits and impacts of offshore wind farms on benthic marine biodiversity in a life cycle assessment context
A4: Authors: | B4: Liv Stranddorf (a,b,c), Francesca Verones (d), Stig Irving Olsen (a,c)
A5: Affiliations: | B5: (a) Section for Quantitative Sustainability Assessment, Department of Environmental and Resource Engineering, Bygningstorvet, Building 115, Technical University of Denmark (DTU), 2800 Kgs. Lyngby, Denmark
B6: (b) Environment and Sustainability Unit, Vattenfall Vindkraft, 6000 Kolding, Denmark
B7: (c) Centre for Absolute Sustainability Assessment, Technical University of Denmark (DTU), 2800 Kgs. Lyngby, Denmark
B8: (d) Industrial Ecology Programme, Department of Energy and Process Engineering, Norwegian University of Science and Technology (NTNU), 7491 Trondheim, Norway
A11: Introduction to Supplementary Information
A12: The Supplementary Information (SI) consists of two files: a pdf file (referenced in the manuscript as SI1) and this spreadsheet (referenced in the manuscript as SI2). This spreadsheet contains the developed Characterization Factors (CFs) for assessing impacts on benthic marine biodiversity from the construction and decommissioning of Offshore Wind Farms (OWFs) in the North Sea. The relative CFs (expressed in PDF.year) in tab 1, and the absolute CFs (expressed in the unit species.year) in tab 2. The methodological development is explained in the article, section 2.5. The tabs in the spreadsheet contain the following: 1. CF tool: A tool for calculating the relative (PDF.year/OWF) and absolute (species.year/OWF) impacts on benthic marine biodiversity from habitat changes associated with OWF construction and decommissioning in the North Sea. 2. Relative CFs per turbine: The relative impacts (PDF.year) on species richness within each species group associated with construction, decommissioning, and the whole lifetime of a turbine structure. 3. Absolue CFs per turbine: The absolute impacts (species.year) on species richness within each species group associated with construction, decommissioning, and the whole lifetime of a turbine structure. 4. Seabed in OWF (rel & abs): The relative impacts on species (PDF.year) and the absolute impacts (species.year) from changes in the seabed within OWFs in relation to the construction and decommissioning of OWFs. 5. Reference richness: The species richness on the reference seabed (also representing the seabed within the OWF) and the richness on the full turbine structure over the lifetime spanning from 1 to 25 years.
A23: Abbreviations: OWF = Offshore Wind Farm, PDF = Potentially Disappeared Fraction of species.

Sheet 1. CF tool
A1: Application of Characterization Factors (CFs) for impacts of habitat changes associated with an OWF
A3: This sheet presents a tool for calculating the relative (PDF.year/OWF) and absolute impacts (species.year/OWF) impacts on benthic marine biodiversiy from habitat changes associated with Offshore Wind Farm (OWF) construction and decommissioning in the North Sea. Additionally, it includes the impacts of the habitat changes occurring throughout the entire lifetime of an OWF, i.e., the construction and decommissioning. The modeling approach is explained in the connected research article, section 2.5. The tool is applicable for OWFs in the North Sea with structure ages of 1-25 years. In order to apply the tool you should indicate the following in the inventory box: 1) The (expected) lifetime of the OWF (between 1-25 years) 2) The number of wind turbines in the considered OWF 3) The total area of the considered OWF 4) The footprint area of one turbine structure, including the foundation and scour protection 5) The relevant scenario for habitat change occurring on the turbine footprint associated with construction (construction on sandy or rocky seabed) 6) The relevant scenario for habitat change occurring on the seabed within the OWF in relation to construction (maintain sandy seabed, maintain rocky seabed, or remove rocks) 7) The relevant scenario for habitat change occurring on the turbine footprint associated with decommissioning (full removal, leaving scour protection, or leaving scour protection and 5 m of foundation) 8) The relevant scenario for habitat change occurring on the seabed within the OWF in relation to construction (maintain sandy seabed, maintain rocky seabed, or remove rocks) Abbreviations: OWF = Offshore Wind Farm, PDF = Potentially Disappeared Fraction of species.
A22: Color scale | F22: Aliens | G22: All other species
A23: The cells are colored according to what is interpreted as a positive, neutral or negative impact. The coloring is different for alien species compared to all other species groups, as and increas of alien species is not considered positive like an increase in the other species groups are in LCA. | E23: Positive | F23: Decrease in PDF.year or species.year (positive numbers) | G23: Increase in PDF.year or species.year (negative numbers)
E24: No impact | F24: Constant number of species
E25: Negative | F25: Increase in PDF.year or species.year (negative numbers) | G25: Decrease in PDF.year or species.year (positive numbers)
A28: Inventory box
B30: Wind farm measures
B31: 1) Age of wind farm when decommissioning | D31: years
B32: 2) Number of turbines | D32: -
B33: 3) Area of wind farm | D33: km2
B34: 4) Footprint area per turbine incl. scour protection | D34: m2
B35: Habitat changes when constructing
B36: 5) Turbine footprint | C36: Choose from dropdown
B37: 6) Seabed within wind farm | C37: Choose from dropdown
B38: Habitat changes when decommissioing
B39: 7) Turbine footprint | C39: Choose from dropdown
B40: 8) Seabed within wind farm | C40: Choose from dropdown
A43: Relative impacts
B46: Construction | C46: Total | D46: Porifera | E46: Cnidaria | F46: Worms | G46: Mollusca | H46: Arthropoda | I46: Bryozoa | J46: Echinodermata | K46: Chordata | L46: Aliens
B47: Turbine footprint [PDF.year/turbines] | C47: =IF(OR($C$31="", $C$32="", $C$33="", $C$34="",$C$35="Choose from dropdown", $C$36="Choose from dropdown", $C$38="Choose from dropdown", $C$39="Choose from dropdown"), "", IF($C$36="Construction on sandy seabed", INDEX('2. Relative CFs per turbine'!B21:B45, MATCH($C$31, '2. Relative CFs per turbine'!$A$21:$A$45, 0)), IF($C$36="Construction on rocky seabed", INDEX('2. Relative CFs per turbine'!N21:N45, MATCH($C$31, '2. Relative CFs per turbine'!$M$21:$M$45, 0)), "" ) ) ) ->  | D47: =IF(OR($C$31="", $C$32="", $C$33="", $C$34="",$C$35="Choose from dropdown", $C$36="Choose from dropdown", $C$38="Choose from dropdown", $C$39="Choose from dropdown"), "", IF($C$36="Construction on sandy seabed", INDEX('2. Relative CFs per turbine'!C21:C45, MATCH($C$31, '2. Relative CFs per turbine'!$A$21:$A$45, 0)), IF($C$36="Construction on rocky seabed", INDEX('2. Relative CFs per turbine'!O21:O45, MATCH($C$31, '2. Relative CFs per turbine'!$M$21:$M$45, 0)), "" ) ) ) ->  | E47: =IF(OR($C$31="", $C$32="", $C$33="", $C$34="",$C$35="Choose from dropdown", $C$36="Choose from dropdown", $C$38="Choose from dropdown", $C$39="Choose from dropdown"), "", IF($C$36="Construction on sandy seabed", INDEX('2. Relative CFs per turbine'!D21:D45, MATCH($C$31, '2. Relative CFs per turbine'!$A$21:$A$45, 0)), IF($C$36="Construction on rocky seabed", INDEX('2. Relative CFs per turbine'!P21:P45, MATCH($C$31, '2. Relative CFs per turbine'!$M$21:$M$45, 0)), "" ) ) ) ->  | F47: =IF(OR($C$31="", $C$32="", $C$33="", $C$34="",$C$35="Choose from dropdown", $C$36="Choose from dropdown", $C$38="Choose from dropdown", $C$39="Choose from dropdown"), "", IF($C$36="Construction on sandy seabed", INDEX('2. Relative CFs per turbine'!E21:E45, MATCH($C$31, '2. Relative CFs per turbine'!$A$21:$A$45, 0)), IF($C$36="Construction on rocky seabed", INDEX('2. Relative CFs per turbine'!Q21:Q45, MATCH($C$31, '2. Relative CFs per turbine'!$M$21:$M$45, 0)), "" ) ) ) ->  | G47: =IF(OR($C$31="", $C$32="", $C$33="", $C$34="",$C$35="Choose from dropdown", $C$36="Choose from dropdown", $C$38="Choose from dropdown", $C$39="Choose from dropdown"), "", IF($C$36="Construction on sandy seabed", INDEX('2. Relative CFs per turbine'!F21:F45, MATCH($C$31, '2. Relative CFs per turbine'!$A$21:$A$45, 0)), IF($C$36="Construction on rocky seabed", INDEX('2. Relative CFs per turbine'!R21:R45, MATCH($C$31, '2. Relative CFs per turbine'!$M$21:$M$45, 0)), "" ) ) ) ->  | H47: =IF(OR($C$31="", $C$32="", $C$33="", $C$34="",$C$35="Choose from dropdown", $C$36="Choose from dropdown", $C$38="Choose from dropdown", $C$39="Choose from dropdown"), "", IF($C$36="Construction on sandy seabed", INDEX('2. Relative CFs per turbine'!G21:G45, MATCH($C$31, '2. Relative CFs per turbine'!$A$21:$A$45, 0)), IF($C$36="Construction on rocky seabed", INDEX('2. Relative CFs per turbine'!S21:S45, MATCH($C$31, '2. Relative CFs per turbine'!$M$21:$M$45, 0)), "" ) ) ) ->  | I47: =IF(OR($C$31="", $C$32="", $C$33="", $C$34="",$C$35="Choose from dropdown", $C$36="Choose from dropdown", $C$38="Choose from dropdown", $C$39="Choose from dropdown"), "", IF($C$36="Construction on sandy seabed", INDEX('2. Relative CFs per turbine'!H21:H45, MATCH($C$31, '2. Relative CFs per turbine'!$A$21:$A$45, 0)), IF($C$36="Construction on rocky seabed", INDEX('2. Relative CFs per turbine'!T21:T45, MATCH($C$31, '2. Relative CFs per turbine'!$M$21:$M$45, 0)), "" ) ) ) ->  | J47: =IF(OR($C$31="", $C$32="", $C$33="", $C$34="",$C$35="Choose from dropdown", $C$36="Choose from dropdown", $C$38="Choose from dropdown", $C$39="Choose from dropdown"), "", IF($C$36="Construction on sandy seabed", INDEX('2. Relative CFs per turbine'!I21:I45, MATCH($C$31, '2. Relative CFs per turbine'!$A$21:$A$45, 0)), IF($C$36="Construction on rocky seabed", INDEX('2. Relative CFs per turbine'!U21:U45, MATCH($C$31, '2. Relative CFs per turbine'!$M$21:$M$45, 0)), "" ) ) ) ->  | K47: =IF(OR($C$31="", $C$32="", $C$33="", $C$34="",$C$35="Choose from dropdown", $C$36="Choose from dropdown", $C$38="Choose from dropdown", $C$39="Choose from dropdown"), "", IF($C$36="Construction on sandy seabed", INDEX('2. Relative CFs per turbine'!J21:J45, MATCH($C$31, '2. Relative CFs per turbine'!$A$21:$A$45, 0)), IF($C$36="Construction on rocky seabed", INDEX('2. Relative CFs per turbine'!V21:V45, MATCH($C$31, '2. Relative CFs per turbine'!$M$21:$M$45, 0)), "" ) ) ) ->  | L47: =IF(OR($C$31="", $C$32="", $C$33="", $C$34="",$C$35="Choose from dropdown", $C$36="Choose from dropdown", $C$38="Choose from dropdown", $C$39="Choose from dropdown"), "", IF($C$36="Construction on sandy seabed", INDEX('2. Relative CFs per turbine'!K21:K45, MATCH($C$31, '2. Relative CFs per turbine'!$A$21:$A$45, 0)), IF($C$36="Construction on rocky seabed", INDEX('2. Relative CFs per turbine'!W21:W45, MATCH($C$31, '2. Relative CFs per turbine'!$M$21:$M$45, 0)), "" ) ) ) -> 
B48: Seabed within wind farm [PDF.year/seabed] | C48: =IF(OR($C$31="", $C$32="", $C$33="", $C$34="",$C$35="Choose from dropdown", $C$36="Choose from dropdown", $C$38="Choose from dropdown", $C$39="Choose from dropdown"), "", IF($C$37="Remove rocks", INDEX('4. Seabed in OWF (rel & abs)'!N22:N46, MATCH($C$31, '4. Seabed in OWF (rel & abs)'!$A$22:$A$46, 0)), 0)) ->  | D48: =IF(OR($C$31="", $C$32="", $C$33="", $C$34="",$C$35="Choose from dropdown", $C$36="Choose from dropdown", $C$38="Choose from dropdown", $C$39="Choose from dropdown"), "", IF($C$37="Remove rocks", INDEX('4. Seabed in OWF (rel & abs)'!O22:O46, MATCH($C$31, '4. Seabed in OWF (rel & abs)'!$A$22:$A$46, 0)), 0)) ->  | E48: =IF(OR($C$31="", $C$32="", $C$33="", $C$34="",$C$35="Choose from dropdown", $C$36="Choose from dropdown", $C$38="Choose from dropdown", $C$39="Choose from dropdown"), "", IF($C$37="Remove rocks", INDEX('4. Seabed in OWF (rel & abs)'!P22:P46, MATCH($C$31, '4. Seabed in OWF (rel & abs)'!$A$22:$A$46, 0)), 0)) ->  | F48: =IF(OR($C$31="", $C$32="", $C$33="", $C$34="",$C$35="Choose from dropdown", $C$36="Choose from dropdown", $C$38="Choose from dropdown", $C$39="Choose from dropdown"), "", IF($C$37="Remove rocks", INDEX('4. Seabed in OWF (rel & abs)'!Q22:Q46, MATCH($C$31, '4. Seabed in OWF (rel & abs)'!$A$22:$A$46, 0)), 0)) ->  | G48: =IF(OR($C$31="", $C$32="", $C$33="", $C$34="",$C$35="Choose from dropdown", $C$36="Choose from dropdown", $C$38="Choose from dropdown", $C$39="Choose from dropdown"), "", IF($C$37="Remove rocks", INDEX('4. Seabed in OWF (rel & abs)'!R22:R46, MATCH($C$31, '4. Seabed in OWF (rel & abs)'!$A$22:$A$46, 0)), 0)) ->  | H48: =IF(OR($C$31="", $C$32="", $C$33="", $C$34="",$C$35="Choose from dropdown", $C$36="Choose from dropdown", $C$38="Choose from dropdown", $C$39="Choose from dropdown"), "", IF($C$37="Remove rocks", INDEX('4. Seabed in OWF (rel & abs)'!S22:S46, MATCH($C$31, '4. Seabed in OWF (rel & abs)'!$A$22:$A$46, 0)), 0)) ->  | I48: =IF(OR($C$31="", $C$32="", $C$33="", $C$34="",$C$35="Choose from dropdown", $C$36="Choose from dropdown", $C$38="Choose from dropdown", $C$39="Choose from dropdown"), "", IF($C$37="Remove rocks", INDEX('4. Seabed in OWF (rel & abs)'!T22:T46, MATCH($C$31, '4. Seabed in OWF (rel & abs)'!$A$22:$A$46, 0)), 0)) ->  | J48: =IF(OR($C$31="", $C$32="", $C$33="", $C$34="",$C$35="Choose from dropdown", $C$36="Choose from dropdown", $C$38="Choose from dropdown", $C$39="Choose from dropdown"), "", IF($C$37="Remove rocks", INDEX('4. Seabed in OWF (rel & abs)'!U22:U46, MATCH($C$31, '4. Seabed in OWF (rel & abs)'!$A$22:$A$46, 0)), 0)) ->  | K48: =IF(OR($C$31="", $C$32="", $C$33="", $C$34="",$C$35="Choose from dropdown", $C$36="Choose from dropdown", $C$38="Choose from dropdown", $C$39="Choose from dropdown"), "", IF($C$37="Remove rocks", INDEX('4. Seabed in OWF (rel & abs)'!V22:V46, MATCH($C$31, '4. Seabed in OWF (rel & abs)'!$A$22:$A$46, 0)), 0)) ->  | L48: =IF(OR($C$31="", $C$32="", $C$33="", $C$34="",$C$35="Choose from dropdown", $C$36="Choose from dropdown", $C$38="Choose from dropdown", $C$39="Choose from dropdown"), "", IF($C$37="Remove rocks", INDEX('4. Seabed in OWF (rel & abs)'!W22:W46, MATCH($C$31, '4. Seabed in OWF (rel & abs)'!$A$22:$A$46, 0)), 0)) -> 
B49: Weighted wind farm impact [PDF.year/OWF] | C49: =IF(OR($C$31="", $C$32="", $C$33="", $C$34="",$C$35="Choose from dropdown", $C$36="Choose from dropdown", $C$38="Choose from dropdown", $C$39="Choose from dropdown"), "", ((C47*$C$32*$C$34)+(C48*($C$33*10^6-$C$32*$C$34)))/($C$33*10^6) ) -> 
B51: Decommissioning (1 year after) | C51: Total | D51: Porifera | E51: Cnidaria | F51: Worms | G51: Mollusca | H51: Arthropoda | I51: Bryozoa | J51: Echinodermata | K51: Chordata | L51: Aliens
B52: Turbine footprint [PDF.year/turbines] | C52: =IF(OR($C$31="", $C$32="", $C$33="", $C$34="",$C$35="Choose from dropdown", $C$36="Choose from dropdown", $C$38="Choose from dropdown", $C$39="Choose from dropdown"), "", IF($C$39="Full removal", INDEX('2. Relative CFs per turbine'!B54:B78, MATCH($C$31, '2. Relative CFs per turbine'!$A$54:$A$78, 0)), IF($C$39="Leaving scour protection", INDEX('2. Relative CFs per turbine'!N54:N78, MATCH($C$31, '2. Relative CFs per turbine'!$M$54:$M$78, 0)), IF($C$39="Leaving scour protection and 5 m of foundation", INDEX('2. Relative CFs per turbine'!Z54:Z78, MATCH($C$31, '2. Relative CFs per turbine'!$Y$54:$Y$78, 0)), "" ) ) ) ) ->  | D52: =IF(OR($C$31="", $C$32="", $C$33="", $C$34="",$C$35="Choose from dropdown", $C$36="Choose from dropdown", $C$38="Choose from dropdown", $C$39="Choose from dropdown"), "", IF($C$39="Full removal", INDEX('2. Relative CFs per turbine'!C54:C78, MATCH($C$31, '2. Relative CFs per turbine'!$A$54:$A$78, 0)), IF($C$39="Leaving scour protection", INDEX('2. Relative CFs per turbine'!O54:O78, MATCH($C$31, '2. Relative CFs per turbine'!$M$54:$M$78, 0)), IF($C$39="Leaving scour protection and 5 m of foundation", INDEX('2. Relative CFs per turbine'!AA54:AA78, MATCH($C$31, '2. Relative CFs per turbine'!$Y$54:$Y$78, 0)), "" ) ) ) ) ->  | E52: =IF(OR($C$31="", $C$32="", $C$33="", $C$34="",$C$35="Choose from dropdown", $C$36="Choose from dropdown", $C$38="Choose from dropdown", $C$39="Choose from dropdown"), "", IF($C$39="Full removal", INDEX('2. Relative CFs per turbine'!D54:D78, MATCH($C$31, '2. Relative CFs per turbine'!$A$54:$A$78, 0)), IF($C$39="Leaving scour protection", INDEX('2. Relative CFs per turbine'!P54:P78, MATCH($C$31, '2. Relative CFs per turbine'!$M$54:$M$78, 0)), IF($C$39="Leaving scour protection and 5 m of foundation", INDEX('2. Relative CFs per turbine'!AB54:AB78, MATCH($C$31, '2. Relative CFs per turbine'!$Y$54:$Y$78, 0)), "" ) ) ) ) ->  | F52: =IF(OR($C$31="", $C$32="", $C$33="", $C$34="",$C$35="Choose from dropdown", $C$36="Choose from dropdown", $C$38="Choose from dropdown", $C$39="Choose from dropdown"), "", IF($C$39="Full removal", INDEX('2. Relative CFs per turbine'!E54:E78, MATCH($C$31, '2. Relative CFs per turbine'!$A$54:$A$78, 0)), IF($C$39="Leaving scour protection", INDEX('2. Relative CFs per turbine'!Q54:Q78, MATCH($C$31, '2. Relative CFs per turbine'!$M$54:$M$78, 0)), IF($C$39="Leaving scour protection and 5 m of foundation", INDEX('2. Relative CFs per turbine'!AC54:AC78, MATCH($C$31, '2. Relative CFs per turbine'!$Y$54:$Y$78, 0)), "" ) ) ) ) ->  | G52: =IF(OR($C$31="", $C$32="", $C$33="", $C$34="",$C$35="Choose from dropdown", $C$36="Choose from dropdown", $C$38="Choose from dropdown", $C$39="Choose from dropdown"), "", IF($C$39="Full removal", INDEX('2. Relative CFs per turbine'!F54:F78, MATCH($C$31, '2. Relative CFs per turbine'!$A$54:$A$78, 0)), IF($C$39="Leaving scour protection", INDEX('2. Relative CFs per turbine'!R54:R78, MATCH($C$31, '2. Relative CFs per turbine'!$M$54:$M$78, 0)), IF($C$39="Leaving scour protection and 5 m of foundation", INDEX('2. Relative CFs per turbine'!AD54:AD78, MATCH($C$31, '2. Relative CFs per turbine'!$Y$54:$Y$78, 0)), "" ) ) ) ) ->  | H52: =IF(OR($C$31="", $C$32="", $C$33="", $C$34="",$C$35="Choose from dropdown", $C$36="Choose from dropdown", $C$38="Choose from dropdown", $C$39="Choose from dropdown"), "", IF($C$39="Full removal", INDEX('2. Relative CFs per turbine'!G54:G78, MATCH($C$31, '2. Relative CFs per turbine'!$A$54:$A$78, 0)), IF($C$39="Leaving scour protection", INDEX('2. Relative CFs per turbine'!S54:S78, MATCH($C$31, '2. Relative CFs per turbine'!$M$54:$M$78, 0)), IF($C$39="Leaving scour protection and 5 m of foundation", INDEX('2. Relative CFs per turbine'!AE54:AE78, MATCH($C$31, '2. Relative CFs per turbine'!$Y$54:$Y$78, 0)), "" ) ) ) ) ->  | I52: =IF(OR($C$31="", $C$32="", $C$33="", $C$34="",$C$35="Choose from dropdown", $C$36="Choose from dropdown", $C$38="Choose from dropdown", $C$39="Choose from dropdown"), "", IF($C$39="Full removal", INDEX('2. Relative CFs per turbine'!H54:H78, MATCH($C$31, '2. Relative CFs per turbine'!$A$54:$A$78, 0)), IF($C$39="Leaving scour protection", INDEX('2. Relative CFs per turbine'!T54:T78, MATCH($C$31, '2. Relative CFs per turbine'!$M$54:$M$78, 0)), IF($C$39="Leaving scour protection and 5 m of foundation", INDEX('2. Relative CFs per turbine'!AF54:AF78, MATCH($C$31, '2. Relative CFs per turbine'!$Y$54:$Y$78, 0)), "" ) ) ) ) ->  | J52: =IF(OR($C$31="", $C$32="", $C$33="", $C$34="",$C$35="Choose from dropdown", $C$36="Choose from dropdown", $C$38="Choose from dropdown", $C$39="Choose from dropdown"), "", IF($C$39="Full removal", INDEX('2. Relative CFs per turbine'!I54:I78, MATCH($C$31, '2. Relative CFs per turbine'!$A$54:$A$78, 0)), IF($C$39="Leaving scour protection", INDEX('2. Relative CFs per turbine'!U54:U78, MATCH($C$31, '2. Relative CFs per turbine'!$M$54:$M$78, 0)), IF($C$39="Leaving scour protection and 5 m of foundation", INDEX('2. Relative CFs per turbine'!AG54:AG78, MATCH($C$31, '2. Relative CFs per turbine'!$Y$54:$Y$78, 0)), "" ) ) ) ) ->  | K52: =IF(OR($C$31="", $C$32="", $C$33="", $C$34="",$C$35="Choose from dropdown", $C$36="Choose from dropdown", $C$38="Choose from dropdown", $C$39="Choose from dropdown"), "", IF($C$39="Full removal", INDEX('2. Relative CFs per turbine'!J54:J78, MATCH($C$31, '2. Relative CFs per turbine'!$A$54:$A$78, 0)), IF($C$39="Leaving scour protection", INDEX('2. Relative CFs per turbine'!V54:V78, MATCH($C$31, '2. Relative CFs per turbine'!$M$54:$M$78, 0)), IF($C$39="Leaving scour protection and 5 m of foundation", INDEX('2. Relative CFs per turbine'!AH54:AH78, MATCH($C$31, '2. Relative CFs per turbine'!$Y$54:$Y$78, 0)), "" ) ) ) ) ->  | L52: =IF(OR($C$31="", $C$32="", $C$33="", $C$34="",$C$35="Choose from dropdown", $C$36="Choose from dropdown", $C$38="Choose from dropdown", $C$39="Choose from dropdown"), "", IF($C$39="Full removal", INDEX('2. Relative CFs per turbine'!K54:K78, MATCH($C$31, '2. Relative CFs per turbine'!$A$54:$A$78, 0)), IF($C$39="Leaving scour protection", INDEX('2. Relative CFs per turbine'!W54:W78, MATCH($C$31, '2. Relative CFs per turbine'!$M$54:$M$78, 0)), IF($C$39="Leaving scour protection and 5 m of foundation", INDEX('2. Relative CFs per turbine'!AI54:AI78, MATCH($C$31, '2. Relative CFs per turbine'!$Y$54:$Y$78, 0)), "" ) ) ) ) -> 
B53: Seabed within wind farm [PDF.year/seabed] | C53: =IF(OR($C$31="", $C$32="", $C$33="", $C$34="",$C$35="Choose from dropdown", $C$36="Choose from dropdown", $C$38="Choose from dropdown", $C$39="Choose from dropdown"), "", IF($C$40="Remove rocks",INDEX('4. Seabed in OWF (rel & abs)'!B55:B55,0),0)) ->  | D53: =IF(OR($C$31="", $C$32="", $C$33="", $C$34="",$C$35="Choose from dropdown", $C$36="Choose from dropdown", $C$38="Choose from dropdown", $C$39="Choose from dropdown"), "", IF($C$40="Remove rocks",INDEX('4. Seabed in OWF (rel & abs)'!C55:C55,0),0)) ->  | E53: =IF(OR($C$31="", $C$32="", $C$33="", $C$34="",$C$35="Choose from dropdown", $C$36="Choose from dropdown", $C$38="Choose from dropdown", $C$39="Choose from dropdown"), "", IF($C$40="Remove rocks",INDEX('4. Seabed in OWF (rel & abs)'!D55:D55,0),0)) ->  | F53: =IF(OR($C$31="", $C$32="", $C$33="", $C$34="",$C$35="Choose from dropdown", $C$36="Choose from dropdown", $C$38="Choose from dropdown", $C$39="Choose from dropdown"), "", IF($C$40="Remove rocks",INDEX('4. Seabed in OWF (rel & abs)'!E55:E55,0),0)) ->  | G53: =IF(OR($C$31="", $C$32="", $C$33="", $C$34="",$C$35="Choose from dropdown", $C$36="Choose from dropdown", $C$38="Choose from dropdown", $C$39="Choose from dropdown"), "", IF($C$40="Remove rocks",INDEX('4. Seabed in OWF (rel & abs)'!F55:F55,0),0)) ->  | H53: =IF(OR($C$31="", $C$32="", $C$33="", $C$34="",$C$35="Choose from dropdown", $C$36="Choose from dropdown", $C$38="Choose from dropdown", $C$39="Choose from dropdown"), "", IF($C$40="Remove rocks",INDEX('4. Seabed in OWF (rel & abs)'!G55:G55,0),0)) ->  | I53: =IF(OR($C$31="", $C$32="", $C$33="", $C$34="",$C$35="Choose from dropdown", $C$36="Choose from dropdown", $C$38="Choose from dropdown", $C$39="Choose from dropdown"), "", IF($C$40="Remove rocks",INDEX('4. Seabed in OWF (rel & abs)'!H55:H55,0),0)) ->  | J53: =IF(OR($C$31="", $C$32="", $C$33="", $C$34="",$C$35="Choose from dropdown", $C$36="Choose from dropdown", $C$38="Choose from dropdown", $C$39="Choose from dropdown"), "", IF($C$40="Remove rocks",INDEX('4. Seabed in OWF (rel & abs)'!I55:I55,0),0)) ->  | K53: =IF(OR($C$31="", $C$32="", $C$33="", $C$34="",$C$35="Choose from dropdown", $C$36="Choose from dropdown", $C$38="Choose from dropdown", $C$39="Choose from dropdown"), "", IF($C$40="Remove rocks",INDEX('4. Seabed in OWF (rel & abs)'!J55:J55,0),0)) ->  | L53: =IF(OR($C$31="", $C$32="", $C$33="", $C$34="",$C$35="Choose from dropdown", $C$36="Choose from dropdown", $C$38="Choose from dropdown", $C$39="Choose from dropdown"), "", IF($C$40="Remove rocks",INDEX('4. Seabed in OWF (rel & abs)'!K55:K55,0),0)) -> 
B54: Weighted wind farm impact [PDF.year/OWF] | C54: =IF(OR($C$31="", $C$32="", $C$33="", $C$34="",$C$35="Choose from dropdown", $C$36="Choose from dropdown", $C$38="Choose from dropdown", $C$39="Choose from dropdown"), "", ((C52*$C$32*$C$34)+(C53*($C$33*10^6-$C$32*$C$34)))/($C$33*10^6) ) -> 
B56: Decommissioning (25 year after) | C56: Total | D56: Porifera | E56: Cnidaria | F56: Worms | G56: Mollusca | H56: Arthropoda | I56: Bryozoa | J56: Echinodermata | K56: Chordata | L56: Aliens
B57: Turbine footprint [PDF.year/turbines] | C57: =IF(OR($C$31="", $C$32="", $C$33="", $C$34="",$C$35="Choose from dropdown", $C$36="Choose from dropdown", $C$38="Choose from dropdown", $C$39="Choose from dropdown"), "", IF($C$39="Full removal", INDEX('2. Relative CFs per turbine'!B85:B109,MATCH($C$31,'2. Relative CFs per turbine'!$A$85:$A$109,0)), IF($C$39="Leaving scour protection", INDEX('2. Relative CFs per turbine'!N85:N109,MATCH($C$31,'2. Relative CFs per turbine'!$M$85:$M$109,0)), IF($C$39="Leaving scour protection and 5 m of foundation", INDEX('2. Relative CFs per turbine'!Z85:Z109,MATCH($C$31,'2. Relative CFs per turbine'!$Y$85:$Y$109,0)), "" ) ))) ->  | D57: =IF(OR($C$31="", $C$32="", $C$33="", $C$34="",$C$35="Choose from dropdown", $C$36="Choose from dropdown", $C$38="Choose from dropdown", $C$39="Choose from dropdown"), "", IF($C$39="Full removal", INDEX('2. Relative CFs per turbine'!C85:C109,MATCH($C$31,'2. Relative CFs per turbine'!$A$85:$A$109,0)), IF($C$39="Leaving scour protection", INDEX('2. Relative CFs per turbine'!O85:O109,MATCH($C$31,'2. Relative CFs per turbine'!$M$85:$M$109,0)), IF($C$39="Leaving scour protection and 5 m of foundation", INDEX('2. Relative CFs per turbine'!AA85:AA109,MATCH($C$31,'2. Relative CFs per turbine'!$Y$85:$Y$109,0)), "" ) ))) ->  | E57: =IF(OR($C$31="", $C$32="", $C$33="", $C$34="",$C$35="Choose from dropdown", $C$36="Choose from dropdown", $C$38="Choose from dropdown", $C$39="Choose from dropdown"), "", IF($C$39="Full removal", INDEX('2. Relative CFs per turbine'!D85:D109,MATCH($C$31,'2. Relative CFs per turbine'!$A$85:$A$109,0)), IF($C$39="Leaving scour protection", INDEX('2. Relative CFs per turbine'!P85:P109,MATCH($C$31,'2. Relative CFs per turbine'!$M$85:$M$109,0)), IF($C$39="Leaving scour protection and 5 m of foundation", INDEX('2. Relative CFs per turbine'!AB85:AB109,MATCH($C$31,'2. Relative CFs per turbine'!$Y$85:$Y$109,0)), "" ) ))) ->  | F57: =IF(OR($C$31="", $C$32="", $C$33="", $C$34="",$C$35="Choose from dropdown", $C$36="Choose from dropdown", $C$38="Choose from dropdown", $C$39="Choose from dropdown"), "", IF($C$39="Full removal", INDEX('2. Relative CFs per turbine'!E85:E109,MATCH($C$31,'2. Relative CFs per turbine'!$A$85:$A$109,0)), IF($C$39="Leaving scour protection", INDEX('2. Relative CFs per turbine'!Q85:Q109,MATCH($C$31,'2. Relative CFs per turbine'!$M$85:$M$109,0)), IF($C$39="Leaving scour protection and 5 m of foundation", INDEX('2. Relative CFs per turbine'!AC85:AC109,MATCH($C$31,'2. Relative CFs per turbine'!$Y$85:$Y$109,0)), "" ) ))) ->  | G57: =IF(OR($C$31="", $C$32="", $C$33="", $C$34="",$C$35="Choose from dropdown", $C$36="Choose from dropdown", $C$38="Choose from dropdown", $C$39="Choose from dropdown"), "", IF($C$39="Full removal", INDEX('2. Relative CFs per turbine'!F85:F109,MATCH($C$31,'2. Relative CFs per turbine'!$A$85:$A$109,0)), IF($C$39="Leaving scour protection", INDEX('2. Relative CFs per turbine'!R85:R109,MATCH($C$31,'2. Relative CFs per turbine'!$M$85:$M$109,0)), IF($C$39="Leaving scour protection and 5 m of foundation", INDEX('2. Relative CFs per turbine'!AD85:AD109,MATCH($C$31,'2. Relative CFs per turbine'!$Y$85:$Y$109,0)), "" ) ))) ->  | H57: =IF(OR($C$31="", $C$32="", $C$33="", $C$34="",$C$35="Choose from dropdown", $C$36="Choose from dropdown", $C$38="Choose from dropdown", $C$39="Choose from dropdown"), "", IF($C$39="Full removal", INDEX('2. Relative CFs per turbine'!G85:G109,MATCH($C$31,'2. Relative CFs per turbine'!$A$85:$A$109,0)), IF($C$39="Leaving scour protection", INDEX('2. Relative CFs per turbine'!S85:S109,MATCH($C$31,'2. Relative CFs per turbine'!$M$85:$M$109,0)), IF($C$39="Leaving scour protection and 5 m of foundation", INDEX('2. Relative CFs per turbine'!AE85:AE109,MATCH($C$31,'2. Relative CFs per turbine'!$Y$85:$Y$109,0)), "" ) ))) ->  | I57: =IF(OR($C$31="", $C$32="", $C$33="", $C$34="",$C$35="Choose from dropdown", $C$36="Choose from dropdown", $C$38="Choose from dropdown", $C$39="Choose from dropdown"), "", IF($C$39="Full removal", INDEX('2. Relative CFs per turbine'!H85:H109,MATCH($C$31,'2. Relative CFs per turbine'!$A$85:$A$109,0)), IF($C$39="Leaving scour protection", INDEX('2. Relative CFs per turbine'!T85:T109,MATCH($C$31,'2. Relative CFs per turbine'!$M$85:$M$109,0)), IF($C$39="Leaving scour protection and 5 m of foundation", INDEX('2. Relative CFs per turbine'!AF85:AF109,MATCH($C$31,'2. Relative CFs per turbine'!$Y$85:$Y$109,0)), "" ) ))) ->  | J57: =IF(OR($C$31="", $C$32="", $C$33="", $C$34="",$C$35="Choose from dropdown", $C$36="Choose from dropdown", $C$38="Choose from dropdown", $C$39="Choose from dropdown"), "", IF($C$39="Full removal", INDEX('2. Relative CFs per turbine'!I85:I109,MATCH($C$31,'2. Relative CFs per turbine'!$A$85:$A$109,0)), IF($C$39="Leaving scour protection", INDEX('2. Relative CFs per turbine'!U85:U109,MATCH($C$31,'2. Relative CFs per turbine'!$M$85:$M$109,0)), IF($C$39="Leaving scour protection and 5 m of foundation", INDEX('2. Relative CFs per turbine'!AG85:AG109,MATCH($C$31,'2. Relative CFs per turbine'!$Y$85:$Y$109,0)), "" ) ))) ->  | K57: =IF(OR($C$31="", $C$32="", $C$33="", $C$34="",$C$35="Choose from dropdown", $C$36="Choose from dropdown", $C$38="Choose from dropdown", $C$39="Choose from dropdown"), "", IF($C$39="Full removal", INDEX('2. Relative CFs per turbine'!J85:J109,MATCH($C$31,'2. Relative CFs per turbine'!$A$85:$A$109,0)), IF($C$39="Leaving scour protection", INDEX('2. Relative CFs per turbine'!V85:V109,MATCH($C$31,'2. Relative CFs per turbine'!$M$85:$M$109,0)), IF($C$39="Leaving scour protection and 5 m of foundation", INDEX('2. Relative CFs per turbine'!AH85:AH109,MATCH($C$31,'2. Relative CFs per turbine'!$Y$85:$Y$109,0)), "" ) ))) ->  | L57: =IF(OR($C$31="", $C$32="", $C$33="", $C$34="",$C$35="Choose from dropdown", $C$36="Choose from dropdown", $C$38="Choose from dropdown", $C$39="Choose from dropdown"), "", IF($C$39="Full removal", INDEX('2. Relative CFs per turbine'!K85:K109,MATCH($C$31,'2. Relative CFs per turbine'!$A$85:$A$109,0)), IF($C$39="Leaving scour protection", INDEX('2. Relative CFs per turbine'!W85:W109,MATCH($C$31,'2. Relative CFs per turbine'!$M$85:$M$109,0)), IF($C$39="Leaving scour protection and 5 m of foundation", INDEX('2. Relative CFs per turbine'!AI85:AI109,MATCH($C$31,'2. Relative CFs per turbine'!$Y$85:$Y$109,0)), "" ) ))) -> 
B58: Seabed within wind farm [PDF.year/seabed] | C58: =IF(OR($C$31="", $C$32="", $C$33="", $C$34="",$C$35="Choose from dropdown", $C$36="Choose from dropdown", $C$38="Choose from dropdown", $C$39="Choose from dropdown"), "", IF($C$40="Remove rocks",INDEX('4. Seabed in OWF (rel & abs)'!B62,0),0)) ->  | D58: =IF(OR($C$31="", $C$32="", $C$33="", $C$34="",$C$35="Choose from dropdown", $C$36="Choose from dropdown", $C$38="Choose from dropdown", $C$39="Choose from dropdown"), "", IF($C$40="Remove rocks",INDEX('4. Seabed in OWF (rel & abs)'!C62,0),0)) ->  | E58: =IF(OR($C$31="", $C$32="", $C$33="", $C$34="",$C$35="Choose from dropdown", $C$36="Choose from dropdown", $C$38="Choose from dropdown", $C$39="Choose from dropdown"), "", IF($C$40="Remove rocks",INDEX('4. Seabed in OWF (rel & abs)'!D62,0),0)) ->  | F58: =IF(OR($C$31="", $C$32="", $C$33="", $C$34="",$C$35="Choose from dropdown", $C$36="Choose from dropdown", $C$38="Choose from dropdown", $C$39="Choose from dropdown"), "", IF($C$40="Remove rocks",INDEX('4. Seabed in OWF (rel & abs)'!E62,0),0)) ->  | G58: =IF(OR($C$31="", $C$32="", $C$33="", $C$34="",$C$35="Choose from dropdown", $C$36="Choose from dropdown", $C$38="Choose from dropdown", $C$39="Choose from dropdown"), "", IF($C$40="Remove rocks",INDEX('4. Seabed in OWF (rel & abs)'!F62,0),0)) ->  | H58: =IF(OR($C$31="", $C$32="", $C$33="", $C$34="",$C$35="Choose from dropdown", $C$36="Choose from dropdown", $C$38="Choose from dropdown", $C$39="Choose from dropdown"), "", IF($C$40="Remove rocks",INDEX('4. Seabed in OWF (rel & abs)'!G62,0),0)) ->  | I58: =IF(OR($C$31="", $C$32="", $C$33="", $C$34="",$C$35="Choose from dropdown", $C$36="Choose from dropdown", $C$38="Choose from dropdown", $C$39="Choose from dropdown"), "", IF($C$40="Remove rocks",INDEX('4. Seabed in OWF (rel & abs)'!H62,0),0)) ->  | J58: =IF(OR($C$31="", $C$32="", $C$33="", $C$34="",$C$35="Choose from dropdown", $C$36="Choose from dropdown", $C$38="Choose from dropdown", $C$39="Choose from dropdown"), "", IF($C$40="Remove rocks",INDEX('4. Seabed in OWF (rel & abs)'!I62,0),0)) ->  | K58: =IF(OR($C$31="", $C$32="", $C$33="", $C$34="",$C$35="Choose from dropdown", $C$36="Choose from dropdown", $C$38="Choose from dropdown", $C$39="Choose from dropdown"), "", IF($C$40="Remove rocks",INDEX('4. Seabed in OWF (rel & abs)'!J62,0),0)) ->  | L58: =IF(OR($C$31="", $C$32="", $C$33="", $C$34="",$C$35="Choose from dropdown", $C$36="Choose from dropdown", $C$38="Choose from dropdown", $C$39="Choose from dropdown"), "", IF($C$40="Remove rocks",INDEX('4. Seabed in OWF (rel & abs)'!K62,0),0)) -> 
B59: Weighted wind farm impact [PDF.year/OWF] | C59: =IF(OR($C$31="", $C$32="", $C$33="", $C$34="",$C$35="Choose from dropdown", $C$36="Choose from dropdown", $C$38="Choose from dropdown", $C$39="Choose from dropdown"), "", ((C57*$C$32*$C$34)+(C58*($C$33*10^6-$C$32*$C$34)))/($C$33*10^6)) -> 
B61: Lifetime (1 year after decom.) | C61: Total | D61: Porifera | E61: Cnidaria | F61: Worms | G61: Mollusca | H61: Arthropoda | I61: Bryozoa | J61: Echinodermata | K61: Chordata | L61: Aliens
B62: Turbine footprint [PDF.year/turbines] | C62: =IF(OR($C$31="", $C$32="", $C$33="", $C$34="",$C$35="Choose from dropdown", $C$36="Choose from dropdown", $C$38="Choose from dropdown", $C$39="Choose from dropdown"), "", IF(AND($C$36="Construction on sandy seabed", $C$39="Leaving scour protection"), INDEX('2. Relative CFs per turbine'!N116:N140, MATCH($C$31, '2. Relative CFs per turbine'!$M$116:$M$140, 0)), IF(AND($C$36="Construction on sandy seabed", $C$39="Leaving scour protection and 5 m of foundation"), INDEX('2. Relative CFs per turbine'!Z116:Z140, MATCH($C$31, '2. Relative CFs per turbine'!$Y$116:$Y$140, 0)), IF(AND($C$36="Construction on rocky seabed", $C$39="Full removal"), INDEX('2. Relative CFs per turbine'!B145:B169, MATCH($C$31, '2. Relative CFs per turbine'!$A$145:$A$169, 0)), IF(AND($C$36="Construction on rocky seabed", $C$39="Leaving scour protection"), INDEX('2. Relative CFs per turbine'!N145:N169, MATCH($C$31, '2. Relative CFs per turbine'!$M$145:$M$169, 0)), IF(AND($C$36="Construction on rocky seabed", $C$39="Leaving scour protection and 5 m of foundation"), INDEX('2. Relative CFs per turbine'!Z145:Z169, MATCH($C$31, '2. Relative CFs per turbine'!$Y$145:$Y$169, 0)), 0 ) ) ) ) )) ->  | D62: =IF(OR($C$31="", $C$32="", $C$33="", $C$34="",$C$35="Choose from dropdown", $C$36="Choose from dropdown", $C$38="Choose from dropdown", $C$39="Choose from dropdown"), "", IF(AND($C$36="Construction on sandy seabed", $C$39="Leaving scour protection"), INDEX('2. Relative CFs per turbine'!O116:O140, MATCH($C$31, '2. Relative CFs per turbine'!$M$116:$M$140, 0)), IF(AND($C$36="Construction on sandy seabed", $C$39="Leaving scour protection and 5 m of foundation"), INDEX('2. Relative CFs per turbine'!AA116:AA140, MATCH($C$31, '2. Relative CFs per turbine'!$Y$116:$Y$140, 0)), IF(AND($C$36="Construction on rocky seabed", $C$39="Full removal"), INDEX('2. Relative CFs per turbine'!C145:C169, MATCH($C$31, '2. Relative CFs per turbine'!$A$145:$A$169, 0)), IF(AND($C$36="Construction on rocky seabed", $C$39="Leaving scour protection"), INDEX('2. Relative CFs per turbine'!O145:O169, MATCH($C$31, '2. Relative CFs per turbine'!$M$145:$M$169, 0)), IF(AND($C$36="Construction on rocky seabed", $C$39="Leaving scour protection and 5 m of foundation"), INDEX('2. Relative CFs per turbine'!AA145:AA169, MATCH($C$31, '2. Relative CFs per turbine'!$Y$145:$Y$169, 0)), 0 ) ) ) ) )) ->  | E62: =IF(OR($C$31="", $C$32="", $C$33="", $C$34="",$C$35="Choose from dropdown", $C$36="Choose from dropdown", $C$38="Choose from dropdown", $C$39="Choose from dropdown"), "", IF(AND($C$36="Construction on sandy seabed", $C$39="Leaving scour protection"), INDEX('2. Relative CFs per turbine'!P116:P140, MATCH($C$31, '2. Relative CFs per turbine'!$M$116:$M$140, 0)), IF(AND($C$36="Construction on sandy seabed", $C$39="Leaving scour protection and 5 m of foundation"), INDEX('2. Relative CFs per turbine'!AB116:AB140, MATCH($C$31, '2. Relative CFs per turbine'!$Y$116:$Y$140, 0)), IF(AND($C$36="Construction on rocky seabed", $C$39="Full removal"), INDEX('2. Relative CFs per turbine'!D145:D169, MATCH($C$31, '2. Relative CFs per turbine'!$A$145:$A$169, 0)), IF(AND($C$36="Construction on rocky seabed", $C$39="Leaving scour protection"), INDEX('2. Relative CFs per turbine'!P145:P169, MATCH($C$31, '2. Relative CFs per turbine'!$M$145:$M$169, 0)), IF(AND($C$36="Construction on rocky seabed", $C$39="Leaving scour protection and 5 m of foundation"), INDEX('2. Relative CFs per turbine'!AB145:AB169, MATCH($C$31, '2. Relative CFs per turbine'!$Y$145:$Y$169, 0)), 0 ) ) ) ) )) ->  | F62: =IF(OR($C$31="", $C$32="", $C$33="", $C$34="",$C$35="Choose from dropdown", $C$36="Choose from dropdown", $C$38="Choose from dropdown", $C$39="Choose from dropdown"), "", IF(AND($C$36="Construction on sandy seabed", $C$39="Leaving scour protection"), INDEX('2. Relative CFs per turbine'!Q116:Q140, MATCH($C$31, '2. Relative CFs per turbine'!$M$116:$M$140, 0)), IF(AND($C$36="Construction on sandy seabed", $C$39="Leaving scour protection and 5 m of foundation"), INDEX('2. Relative CFs per turbine'!AC116:AC140, MATCH($C$31, '2. Relative CFs per turbine'!$Y$116:$Y$140, 0)), IF(AND($C$36="Construction on rocky seabed", $C$39="Full removal"), INDEX('2. Relative CFs per turbine'!E145:E169, MATCH($C$31, '2. Relative CFs per turbine'!$A$145:$A$169, 0)), IF(AND($C$36="Construction on rocky seabed", $C$39="Leaving scour protection"), INDEX('2. Relative CFs per turbine'!Q145:Q169, MATCH($C$31, '2. Relative CFs per turbine'!$M$145:$M$169, 0)), IF(AND($C$36="Construction on rocky seabed", $C$39="Leaving scour protection and 5 m of foundation"), INDEX('2. Relative CFs per turbine'!AC145:AC169, MATCH($C$31, '2. Relative CFs per turbine'!$Y$145:$Y$169, 0)), 0 ) ) ) ) )) ->  | G62: =IF(OR($C$31="", $C$32="", $C$33="", $C$34="",$C$35="Choose from dropdown", $C$36="Choose from dropdown", $C$38="Choose from dropdown", $C$39="Choose from dropdown"), "", IF(AND($C$36="Construction on sandy seabed", $C$39="Leaving scour protection"), INDEX('2. Relative CFs per turbine'!R116:R140, MATCH($C$31, '2. Relative CFs per turbine'!$M$116:$M$140, 0)), IF(AND($C$36="Construction on sandy seabed", $C$39="Leaving scour protection and 5 m of foundation"), INDEX('2. Relative CFs per turbine'!AD116:AD140, MATCH($C$31, '2. Relative CFs per turbine'!$Y$116:$Y$140, 0)), IF(AND($C$36="Construction on rocky seabed", $C$39="Full removal"), INDEX('2. Relative CFs per turbine'!F145:F169, MATCH($C$31, '2. Relative CFs per turbine'!$A$145:$A$169, 0)), IF(AND($C$36="Construction on rocky seabed", $C$39="Leaving scour protection"), INDEX('2. Relative CFs per turbine'!R145:R169, MATCH($C$31, '2. Relative CFs per turbine'!$M$145:$M$169, 0)), IF(AND($C$36="Construction on rocky seabed", $C$39="Leaving scour protection and 5 m of foundation"), INDEX('2. Relative CFs per turbine'!AD145:AD169, MATCH($C$31, '2. Relative CFs per turbine'!$Y$145:$Y$169, 0)), 0 ) ) ) ) )) ->  | H62: =IF(OR($C$31="", $C$32="", $C$33="", $C$34="",$C$35="Choose from dropdown", $C$36="Choose from dropdown", $C$38="Choose from dropdown", $C$39="Choose from dropdown"), "", IF(AND($C$36="Construction on sandy seabed", $C$39="Leaving scour protection"), INDEX('2. Relative CFs per turbine'!S116:S140, MATCH($C$31, '2. Relative CFs per turbine'!$M$116:$M$140, 0)), IF(AND($C$36="Construction on sandy seabed", $C$39="Leaving scour protection and 5 m of foundation"), INDEX('2. Relative CFs per turbine'!AE116:AE140, MATCH($C$31, '2. Relative CFs per turbine'!$Y$116:$Y$140, 0)), IF(AND($C$36="Construction on rocky seabed", $C$39="Full removal"), INDEX('2. Relative CFs per turbine'!G145:G169, MATCH($C$31, '2. Relative CFs per turbine'!$A$145:$A$169, 0)), IF(AND($C$36="Construction on rocky seabed", $C$39="Leaving scour protection"), INDEX('2. Relative CFs per turbine'!S145:S169, MATCH($C$31, '2. Relative CFs per turbine'!$M$145:$M$169, 0)), IF(AND($C$36="Construction on rocky seabed", $C$39="Leaving scour protection and 5 m of foundation"), INDEX('2. Relative CFs per turbine'!AE145:AE169, MATCH($C$31, '2. Relative CFs per turbine'!$Y$145:$Y$169, 0)), 0 ) ) ) ) )) ->  | I62: =IF(OR($C$31="", $C$32="", $C$33="", $C$34="",$C$35="Choose from dropdown", $C$36="Choose from dropdown", $C$38="Choose from dropdown", $C$39="Choose from dropdown"), "", IF(AND($C$36="Construction on sandy seabed", $C$39="Leaving scour protection"), INDEX('2. Relative CFs per turbine'!T116:T140, MATCH($C$31, '2. Relative CFs per turbine'!$M$116:$M$140, 0)), IF(AND($C$36="Construction on sandy seabed", $C$39="Leaving scour protection and 5 m of foundation"), INDEX('2. Relative CFs per turbine'!AF116:AF140, MATCH($C$31, '2. Relative CFs per turbine'!$Y$116:$Y$140, 0)), IF(AND($C$36="Construction on rocky seabed", $C$39="Full removal"), INDEX('2. Relative CFs per turbine'!H145:H169, MATCH($C$31, '2. Relative CFs per turbine'!$A$145:$A$169, 0)), IF(AND($C$36="Construction on rocky seabed", $C$39="Leaving scour protection"), INDEX('2. Relative CFs per turbine'!T145:T169, MATCH($C$31, '2. Relative CFs per turbine'!$M$145:$M$169, 0)), IF(AND($C$36="Construction on rocky seabed", $C$39="Leaving scour protection and 5 m of foundation"), INDEX('2. Relative CFs per turbine'!AF145:AF169, MATCH($C$31, '2. Relative CFs per turbine'!$Y$145:$Y$169, 0)), 0 ) ) ) ) )) ->  | J62: =IF(OR($C$31="", $C$32="", $C$33="", $C$34="",$C$35="Choose from dropdown", $C$36="Choose from dropdown", $C$38="Choose from dropdown", $C$39="Choose from dropdown"), "", IF(AND($C$36="Construction on sandy seabed", $C$39="Leaving scour protection"), INDEX('2. Relative CFs per turbine'!U116:U140, MATCH($C$31, '2. Relative CFs per turbine'!$M$116:$M$140, 0)), IF(AND($C$36="Construction on sandy seabed", $C$39="Leaving scour protection and 5 m of foundation"), INDEX('2. Relative CFs per turbine'!AG116:AG140, MATCH($C$31, '2. Relative CFs per turbine'!$Y$116:$Y$140, 0)), IF(AND($C$36="Construction on rocky seabed", $C$39="Full removal"), INDEX('2. Relative CFs per turbine'!I145:I169, MATCH($C$31, '2. Relative CFs per turbine'!$A$145:$A$169, 0)), IF(AND($C$36="Construction on rocky seabed", $C$39="Leaving scour protection"), INDEX('2. Relative CFs per turbine'!U145:U169, MATCH($C$31, '2. Relative CFs per turbine'!$M$145:$M$169, 0)), IF(AND($C$36="Construction on rocky seabed", $C$39="Leaving scour protection and 5 m of foundation"), INDEX('2. Relative CFs per turbine'!AG145:AG169, MATCH($C$31, '2. Relative CFs per turbine'!$Y$145:$Y$169, 0)), 0 ) ) ) ) )) ->  | K62: =IF(OR($C$31="", $C$32="", $C$33="", $C$34="",$C$35="Choose from dropdown", $C$36="Choose from dropdown", $C$38="Choose from dropdown", $C$39="Choose from dropdown"), "", IF(AND($C$36="Construction on sandy seabed", $C$39="Leaving scour protection"), INDEX('2. Relative CFs per turbine'!V116:V140, MATCH($C$31, '2. Relative CFs per turbine'!$M$116:$M$140, 0)), IF(AND($C$36="Construction on sandy seabed", $C$39="Leaving scour protection and 5 m of foundation"), INDEX('2. Relative CFs per turbine'!AH116:AH140, MATCH($C$31, '2. Relative CFs per turbine'!$Y$116:$Y$140, 0)), IF(AND($C$36="Construction on rocky seabed", $C$39="Full removal"), INDEX('2. Relative CFs per turbine'!J145:J169, MATCH($C$31, '2. Relative CFs per turbine'!$A$145:$A$169, 0)), IF(AND($C$36="Construction on rocky seabed", $C$39="Leaving scour protection"), INDEX('2. Relative CFs per turbine'!V145:V169, MATCH($C$31, '2. Relative CFs per turbine'!$M$145:$M$169, 0)), IF(AND($C$36="Construction on rocky seabed", $C$39="Leaving scour protection and 5 m of foundation"), INDEX('2. Relative CFs per turbine'!AH145:AH169, MATCH($C$31, '2. Relative CFs per turbine'!$Y$145:$Y$169, 0)), 0 ) ) ) ) )) ->  | L62: =IF(OR($C$31="", $C$32="", $C$33="", $C$34="",$C$35="Choose from dropdown", $C$36="Choose from dropdown", $C$38="Choose from dropdown", $C$39="Choose from dropdown"), "", IF(AND($C$36="Construction on sandy seabed", $C$39="Leaving scour protection"), INDEX('2. Relative CFs per turbine'!W116:W140, MATCH($C$31, '2. Relative CFs per turbine'!$M$116:$M$140, 0)), IF(AND($C$36="Construction on sandy seabed", $C$39="Leaving scour protection and 5 m of foundation"), INDEX('2. Relative CFs per turbine'!AI116:AI140, MATCH($C$31, '2. Relative CFs per turbine'!$Y$116:$Y$140, 0)), IF(AND($C$36="Construction on rocky seabed", $C$39="Full removal"), INDEX('2. Relative CFs per turbine'!K145:K169, MATCH($C$31, '2. Relative CFs per turbine'!$A$145:$A$169, 0)), IF(AND($C$36="Construction on rocky seabed", $C$39="Leaving scour protection"), INDEX('2. Relative CFs per turbine'!W145:W169, MATCH($C$31, '2. Relative CFs per turbine'!$M$145:$M$169, 0)), IF(AND($C$36="Construction on rocky seabed", $C$39="Leaving scour protection and 5 m of foundation"), INDEX('2. Relative CFs per turbine'!AI145:AI169, MATCH($C$31, '2. Relative CFs per turbine'!$Y$145:$Y$169, 0)), 0 ) ) ) ) )) -> 
B63: Seabed within wind farm [PDF.year/seabed] | C63: =IF(OR($C$31="", $C$32="", $C$33="", $C$34="",$C$35="Choose from dropdown", $C$36="Choose from dropdown", $C$38="Choose from dropdown", $C$39="Choose from dropdown"), "", IF(AND($C$37="Maintain rocky seabed", $C$40="Remove rocks"), '4. Seabed in OWF (rel & abs)'!B55, IF($C$37="Remove rocks", INDEX('4. Seabed in OWF (rel & abs)'!$B$22:$B$46, MATCH($C$31, '4. Seabed in OWF (rel & abs)'!$A$22:$A$46, 0)) + '4. Seabed in OWF (rel & abs)'!B55, 0 ) )) ->  | D63: =IF(OR($C$31="", $C$32="", $C$33="", $C$34="",$C$35="Choose from dropdown", $C$36="Choose from dropdown", $C$38="Choose from dropdown", $C$39="Choose from dropdown"), "", IF(AND($C$37="Maintain rocky seabed", $C$40="Remove rocks"), '4. Seabed in OWF (rel & abs)'!C55, IF($C$37="Remove rocks", INDEX('4. Seabed in OWF (rel & abs)'!$B$22:$B$46, MATCH($C$31, '4. Seabed in OWF (rel & abs)'!$A$22:$A$46, 0)) + '4. Seabed in OWF (rel & abs)'!C55, 0 ) )) ->  | E63: =IF(OR($C$31="", $C$32="", $C$33="", $C$34="",$C$35="Choose from dropdown", $C$36="Choose from dropdown", $C$38="Choose from dropdown", $C$39="Choose from dropdown"), "", IF(AND($C$37="Maintain rocky seabed", $C$40="Remove rocks"), '4. Seabed in OWF (rel & abs)'!D55, IF($C$37="Remove rocks", INDEX('4. Seabed in OWF (rel & abs)'!$B$22:$B$46, MATCH($C$31, '4. Seabed in OWF (rel & abs)'!$A$22:$A$46, 0)) + '4. Seabed in OWF (rel & abs)'!D55, 0 ) )) ->  | F63: =IF(OR($C$31="", $C$32="", $C$33="", $C$34="",$C$35="Choose from dropdown", $C$36="Choose from dropdown", $C$38="Choose from dropdown", $C$39="Choose from dropdown"), "", IF(AND($C$37="Maintain rocky seabed", $C$40="Remove rocks"), '4. Seabed in OWF (rel & abs)'!E55, IF($C$37="Remove rocks", INDEX('4. Seabed in OWF (rel & abs)'!$B$22:$B$46, MATCH($C$31, '4. Seabed in OWF (rel & abs)'!$A$22:$A$46, 0)) + '4. Seabed in OWF (rel & abs)'!E55, 0 ) )) ->  | G63: =IF(OR($C$31="", $C$32="", $C$33="", $C$34="",$C$35="Choose from dropdown", $C$36="Choose from dropdown", $C$38="Choose from dropdown", $C$39="Choose from dropdown"), "", IF(AND($C$37="Maintain rocky seabed", $C$40="Remove rocks"), '4. Seabed in OWF (rel & abs)'!F55, IF($C$37="Remove rocks", INDEX('4. Seabed in OWF (rel & abs)'!$B$22:$B$46, MATCH($C$31, '4. Seabed in OWF (rel & abs)'!$A$22:$A$46, 0)) + '4. Seabed in OWF (rel & abs)'!F55, 0 ) )) ->  | H63: =IF(OR($C$31="", $C$32="", $C$33="", $C$34="",$C$35="Choose from dropdown", $C$36="Choose from dropdown", $C$38="Choose from dropdown", $C$39="Choose from dropdown"), "", IF(AND($C$37="Maintain rocky seabed", $C$40="Remove rocks"), '4. Seabed in OWF (rel & abs)'!G55, IF($C$37="Remove rocks", INDEX('4. Seabed in OWF (rel & abs)'!$B$22:$B$46, MATCH($C$31, '4. Seabed in OWF (rel & abs)'!$A$22:$A$46, 0)) + '4. Seabed in OWF (rel & abs)'!G55, 0 ) )) ->  | I63: =IF(OR($C$31="", $C$32="", $C$33="", $C$34="",$C$35="Choose from dropdown", $C$36="Choose from dropdown", $C$38="Choose from dropdown", $C$39="Choose from dropdown"), "", IF(AND($C$37="Maintain rocky seabed", $C$40="Remove rocks"), '4. Seabed in OWF (rel & abs)'!H55, IF($C$37="Remove rocks", INDEX('4. Seabed in OWF (rel & abs)'!$B$22:$B$46, MATCH($C$31, '4. Seabed in OWF (rel & abs)'!$A$22:$A$46, 0)) + '4. Seabed in OWF (rel & abs)'!H55, 0 ) )) ->  | J63: =IF(OR($C$31="", $C$32="", $C$33="", $C$34="",$C$35="Choose from dropdown", $C$36="Choose from dropdown", $C$38="Choose from dropdown", $C$39="Choose from dropdown"), "", IF(AND($C$37="Maintain rocky seabed", $C$40="Remove rocks"), '4. Seabed in OWF (rel & abs)'!I55, IF($C$37="Remove rocks", INDEX('4. Seabed in OWF (rel & abs)'!$B$22:$B$46, MATCH($C$31, '4. Seabed in OWF (rel & abs)'!$A$22:$A$46, 0)) + '4. Seabed in OWF (rel & abs)'!I55, 0 ) )) ->  | K63: =IF(OR($C$31="", $C$32="", $C$33="", $C$34="",$C$35="Choose from dropdown", $C$36="Choose from dropdown", $C$38="Choose from dropdown", $C$39="Choose from dropdown"), "", IF(AND($C$37="Maintain rocky seabed", $C$40="Remove rocks"), '4. Seabed in OWF (rel & abs)'!J55, IF($C$37="Remove rocks", INDEX('4. Seabed in OWF (rel & abs)'!$B$22:$B$46, MATCH($C$31, '4. Seabed in OWF (rel & abs)'!$A$22:$A$46, 0)) + '4. Seabed in OWF (rel & abs)'!J55, 0 ) )) ->  | L63: =IF(OR($C$31="", $C$32="", $C$33="", $C$34="",$C$35="Choose from dropdown", $C$36="Choose from dropdown", $C$38="Choose from dropdown", $C$39="Choose from dropdown"), "", IF(AND($C$37="Maintain rocky seabed", $C$40="Remove rocks"), '4. Seabed in OWF (rel & abs)'!K55, IF($C$37="Remove rocks", INDEX('4. Seabed in OWF (rel & abs)'!$B$22:$B$46, MATCH($C$31, '4. Seabed in OWF (rel & abs)'!$A$22:$A$46, 0)) + '4. Seabed in OWF (rel & abs)'!K55, 0 ) )) -> 
B64: Weighted wind farm impact [PDF.year/OWF] | C64: =IF(OR($C$31="", $C$32="", $C$33="", $C$34="",$C$35="Choose from dropdown", $C$36="Choose from dropdown", $C$38="Choose from dropdown", $C$39="Choose from dropdown"), "", ((C62*$C$32*$C$34)+(C63*($C$33*10^6-$C$32*$C$34)))/($C$33*10^6)) -> 
B66: Lifetime (25 years after decom.) | C66: Total | D66: Porifera | E66: Cnidaria | F66: Worms | G66: Mollusca | H66: Arthropoda | I66: Bryozoa | J66: Echinodermata | K66: Chordata | L66: Aliens
B67: Turbine footprint [PDF.year/turbines] | C67: =IF(OR($C$31="", $C$32="", $C$33="", $C$34="",$C$35="Choose from dropdown", $C$36="Choose from dropdown", $C$38="Choose from dropdown", $C$39="Choose from dropdown"), "", IF(AND($C$36="Construction on sandy seabed", $C$39="Leaving scour protection"), INDEX('2. Relative CFs per turbine'!N176:N200, MATCH($C$31, '2. Relative CFs per turbine'!$M$176:$M$200, 0)), IF(AND($C$36="Construction on sandy seabed", $C$39="Leaving scour protection and 5 m of foundation"), INDEX('2. Relative CFs per turbine'!Z176:Z200, MATCH($C$31, '2. Relative CFs per turbine'!$Y$176:$Y$200, 0)), IF(AND($C$36="Construction on rocky seabed", $C$39="Full removal"), INDEX('2. Relative CFs per turbine'!B205:B229, MATCH($C$31, '2. Relative CFs per turbine'!$A$205:$A$229, 0)), IF(AND($C$36="Construction on rocky seabed", $C$39="Leaving scour protection"), INDEX('2. Relative CFs per turbine'!N205:N229, MATCH($C$31, '2. Relative CFs per turbine'!$M$205:$M$229, 0)), IF(AND($C$36="Construction on rocky seabed", $C$39="Leaving scour protection and 5 m of foundation"), INDEX('2. Relative CFs per turbine'!Z205:Z229, MATCH($C$31, '2. Relative CFs per turbine'!$Y$205:$Y$229, 0)), 0 ) ) ) ) )) ->  | D67: =IF(OR($C$31="", $C$32="", $C$33="", $C$34="",$C$35="Choose from dropdown", $C$36="Choose from dropdown", $C$38="Choose from dropdown", $C$39="Choose from dropdown"), "", IF(AND($C$36="Construction on sandy seabed", $C$39="Leaving scour protection"), INDEX('2. Relative CFs per turbine'!O176:O200, MATCH($C$31, '2. Relative CFs per turbine'!$M$176:$M$200, 0)), IF(AND($C$36="Construction on sandy seabed", $C$39="Leaving scour protection and 5 m of foundation"), INDEX('2. Relative CFs per turbine'!AA176:AA200, MATCH($C$31, '2. Relative CFs per turbine'!$Y$176:$Y$200, 0)), IF(AND($C$36="Construction on rocky seabed", $C$39="Full removal"), INDEX('2. Relative CFs per turbine'!C205:C229, MATCH($C$31, '2. Relative CFs per turbine'!$A$205:$A$229, 0)), IF(AND($C$36="Construction on rocky seabed", $C$39="Leaving scour protection"), INDEX('2. Relative CFs per turbine'!O205:O229, MATCH($C$31, '2. Relative CFs per turbine'!$M$205:$M$229, 0)), IF(AND($C$36="Construction on rocky seabed", $C$39="Leaving scour protection and 5 m of foundation"), INDEX('2. Relative CFs per turbine'!AA205:AA229, MATCH($C$31, '2. Relative CFs per turbine'!$Y$205:$Y$229, 0)), 0 ) ) ) ) )) ->  | E67: =IF(OR($C$31="", $C$32="", $C$33="", $C$34="",$C$35="Choose from dropdown", $C$36="Choose from dropdown", $C$38="Choose from dropdown", $C$39="Choose from dropdown"), "", IF(AND($C$36="Construction on sandy seabed", $C$39="Leaving scour protection"), INDEX('2. Relative CFs per turbine'!P176:P200, MATCH($C$31, '2. Relative CFs per turbine'!$M$176:$M$200, 0)), IF(AND($C$36="Construction on sandy seabed", $C$39="Leaving scour protection and 5 m of foundation"), INDEX('2. Relative CFs per turbine'!AB176:AB200, MATCH($C$31, '2. Relative CFs per turbine'!$Y$176:$Y$200, 0)), IF(AND($C$36="Construction on rocky seabed", $C$39="Full removal"), INDEX('2. Relative CFs per turbine'!D205:D229, MATCH($C$31, '2. Relative CFs per turbine'!$A$205:$A$229, 0)), IF(AND($C$36="Construction on rocky seabed", $C$39="Leaving scour protection"), INDEX('2. Relative CFs per turbine'!P205:P229, MATCH($C$31, '2. Relative CFs per turbine'!$M$205:$M$229, 0)), IF(AND($C$36="Construction on rocky seabed", $C$39="Leaving scour protection and 5 m of foundation"), INDEX('2. Relative CFs per turbine'!AB205:AB229, MATCH($C$31, '2. Relative CFs per turbine'!$Y$205:$Y$229, 0)), 0 ) ) ) ) )) ->  | F67: =IF(OR($C$31="", $C$32="", $C$33="", $C$34="",$C$35="Choose from dropdown", $C$36="Choose from dropdown", $C$38="Choose from dropdown", $C$39="Choose from dropdown"), "", IF(AND($C$36="Construction on sandy seabed", $C$39="Leaving scour protection"), INDEX('2. Relative CFs per turbine'!Q176:Q200, MATCH($C$31, '2. Relative CFs per turbine'!$M$176:$M$200, 0)), IF(AND($C$36="Construction on sandy seabed", $C$39="Leaving scour protection and 5 m of foundation"), INDEX('2. Relative CFs per turbine'!AC176:AC200, MATCH($C$31, '2. Relative CFs per turbine'!$Y$176:$Y$200, 0)), IF(AND($C$36="Construction on rocky seabed", $C$39="Full removal"), INDEX('2. Relative CFs per turbine'!E205:E229, MATCH($C$31, '2. Relative CFs per turbine'!$A$205:$A$229, 0)), IF(AND($C$36="Construction on rocky seabed", $C$39="Leaving scour protection"), INDEX('2. Relative CFs per turbine'!Q205:Q229, MATCH($C$31, '2. Relative CFs per turbine'!$M$205:$M$229, 0)), IF(AND($C$36="Construction on rocky seabed", $C$39="Leaving scour protection and 5 m of foundation"), INDEX('2. Relative CFs per turbine'!AC205:AC229, MATCH($C$31, '2. Relative CFs per turbine'!$Y$205:$Y$229, 0)), 0 ) ) ) ) )) ->  | G67: =IF(OR($C$31="", $C$32="", $C$33="", $C$34="",$C$35="Choose from dropdown", $C$36="Choose from dropdown", $C$38="Choose from dropdown", $C$39="Choose from dropdown"), "", IF(AND($C$36="Construction on sandy seabed", $C$39="Leaving scour protection"), INDEX('2. Relative CFs per turbine'!R176:R200, MATCH($C$31, '2. Relative CFs per turbine'!$M$176:$M$200, 0)), IF(AND($C$36="Construction on sandy seabed", $C$39="Leaving scour protection and 5 m of foundation"), INDEX('2. Relative CFs per turbine'!AD176:AD200, MATCH($C$31, '2. Relative CFs per turbine'!$Y$176:$Y$200, 0)), IF(AND($C$36="Construction on rocky seabed", $C$39="Full removal"), INDEX('2. Relative CFs per turbine'!F205:F229, MATCH($C$31, '2. Relative CFs per turbine'!$A$205:$A$229, 0)), IF(AND($C$36="Construction on rocky seabed", $C$39="Leaving scour protection"), INDEX('2. Relative CFs per turbine'!R205:R229, MATCH($C$31, '2. Relative CFs per turbine'!$M$205:$M$229, 0)), IF(AND($C$36="Construction on rocky seabed", $C$39="Leaving scour protection and 5 m of foundation"), INDEX('2. Relative CFs per turbine'!AD205:AD229, MATCH($C$31, '2. Relative CFs per turbine'!$Y$205:$Y$229, 0)), 0 ) ) ) ) )) ->  | H67: =IF(OR($C$31="", $C$32="", $C$33="", $C$34="",$C$35="Choose from dropdown", $C$36="Choose from dropdown", $C$38="Choose from dropdown", $C$39="Choose from dropdown"), "", IF(AND($C$36="Construction on sandy seabed", $C$39="Leaving scour protection"), INDEX('2. Relative CFs per turbine'!S176:S200, MATCH($C$31, '2. Relative CFs per turbine'!$M$176:$M$200, 0)), IF(AND($C$36="Construction on sandy seabed", $C$39="Leaving scour protection and 5 m of foundation"), INDEX('2. Relative CFs per turbine'!AE176:AE200, MATCH($C$31, '2. Relative CFs per turbine'!$Y$176:$Y$200, 0)), IF(AND($C$36="Construction on rocky seabed", $C$39="Full removal"), INDEX('2. Relative CFs per turbine'!G205:G229, MATCH($C$31, '2. Relative CFs per turbine'!$A$205:$A$229, 0)), IF(AND($C$36="Construction on rocky seabed", $C$39="Leaving scour protection"), INDEX('2. Relative CFs per turbine'!S205:S229, MATCH($C$31, '2. Relative CFs per turbine'!$M$205:$M$229, 0)), IF(AND($C$36="Construction on rocky seabed", $C$39="Leaving scour protection and 5 m of foundation"), INDEX('2. Relative CFs per turbine'!AE205:AE229, MATCH($C$31, '2. Relative CFs per turbine'!$Y$205:$Y$229, 0)), 0 ) ) ) ) )) ->  | I67: =IF(OR($C$31="", $C$32="", $C$33="", $C$34="",$C$35="Choose from dropdown", $C$36="Choose from dropdown", $C$38="Choose from dropdown", $C$39="Choose from dropdown"), "", IF(AND($C$36="Construction on sandy seabed", $C$39="Leaving scour protection"), INDEX('2. Relative CFs per turbine'!T176:T200, MATCH($C$31, '2. Relative CFs per turbine'!$M$176:$M$200, 0)), IF(AND($C$36="Construction on sandy seabed", $C$39="Leaving scour protection and 5 m of foundation"), INDEX('2. Relative CFs per turbine'!AF176:AF200, MATCH($C$31, '2. Relative CFs per turbine'!$Y$176:$Y$200, 0)), IF(AND($C$36="Construction on rocky seabed", $C$39="Full removal"), INDEX('2. Relative CFs per turbine'!H205:H229, MATCH($C$31, '2. Relative CFs per turbine'!$A$205:$A$229, 0)), IF(AND($C$36="Construction on rocky seabed", $C$39="Leaving scour protection"), INDEX('2. Relative CFs per turbine'!T205:T229, MATCH($C$31, '2. Relative CFs per turbine'!$M$205:$M$229, 0)), IF(AND($C$36="Construction on rocky seabed", $C$39="Leaving scour protection and 5 m of foundation"), INDEX('2. Relative CFs per turbine'!AF205:AF229, MATCH($C$31, '2. Relative CFs per turbine'!$Y$205:$Y$229, 0)), 0 ) ) ) ) )) ->  | J67: =IF(OR($C$31="", $C$32="", $C$33="", $C$34="",$C$35="Choose from dropdown", $C$36="Choose from dropdown", $C$38="Choose from dropdown", $C$39="Choose from dropdown"), "", IF(AND($C$36="Construction on sandy seabed", $C$39="Leaving scour protection"), INDEX('2. Relative CFs per turbine'!U176:U200, MATCH($C$31, '2. Relative CFs per turbine'!$M$176:$M$200, 0)), IF(AND($C$36="Construction on sandy seabed", $C$39="Leaving scour protection and 5 m of foundation"), INDEX('2. Relative CFs per turbine'!AG176:AG200, MATCH($C$31, '2. Relative CFs per turbine'!$Y$176:$Y$200, 0)), IF(AND($C$36="Construction on rocky seabed", $C$39="Full removal"), INDEX('2. Relative CFs per turbine'!I205:I229, MATCH($C$31, '2. Relative CFs per turbine'!$A$205:$A$229, 0)), IF(AND($C$36="Construction on rocky seabed", $C$39="Leaving scour protection"), INDEX('2. Relative CFs per turbine'!U205:U229, MATCH($C$31, '2. Relative CFs per turbine'!$M$205:$M$229, 0)), IF(AND($C$36="Construction on rocky seabed", $C$39="Leaving scour protection and 5 m of foundation"), INDEX('2. Relative CFs per turbine'!AG205:AG229, MATCH($C$31, '2. Relative CFs per turbine'!$Y$205:$Y$229, 0)), 0 ) ) ) ) )) ->  | K67: =IF(OR($C$31="", $C$32="", $C$33="", $C$34="",$C$35="Choose from dropdown", $C$36="Choose from dropdown", $C$38="Choose from dropdown", $C$39="Choose from dropdown"), "", IF(AND($C$36="Construction on sandy seabed", $C$39="Leaving scour protection"), INDEX('2. Relative CFs per turbine'!V176:V200, MATCH($C$31, '2. Relative CFs per turbine'!$M$176:$M$200, 0)), IF(AND($C$36="Construction on sandy seabed", $C$39="Leaving scour protection and 5 m of foundation"), INDEX('2. Relative CFs per turbine'!AH176:AH200, MATCH($C$31, '2. Relative CFs per turbine'!$Y$176:$Y$200, 0)), IF(AND($C$36="Construction on rocky seabed", $C$39="Full removal"), INDEX('2. Relative CFs per turbine'!J205:J229, MATCH($C$31, '2. Relative CFs per turbine'!$A$205:$A$229, 0)), IF(AND($C$36="Construction on rocky seabed", $C$39="Leaving scour protection"), INDEX('2. Relative CFs per turbine'!V205:V229, MATCH($C$31, '2. Relative CFs per turbine'!$M$205:$M$229, 0)), IF(AND($C$36="Construction on rocky seabed", $C$39="Leaving scour protection and 5 m of foundation"), INDEX('2. Relative CFs per turbine'!AH205:AH229, MATCH($C$31, '2. Relative CFs per turbine'!$Y$205:$Y$229, 0)), 0 ) ) ) ) )) ->  | L67: =IF(OR($C$31="", $C$32="", $C$33="", $C$34="",$C$35="Choose from dropdown", $C$36="Choose from dropdown", $C$38="Choose from dropdown", $C$39="Choose from dropdown"), "", IF(AND($C$36="Construction on sandy seabed", $C$39="Leaving scour protection"), INDEX('2. Relative CFs per turbine'!W176:W200, MATCH($C$31, '2. Relative CFs per turbine'!$M$176:$M$200, 0)), IF(AND($C$36="Construction on sandy seabed", $C$39="Leaving scour protection and 5 m of foundation"), INDEX('2. Relative CFs per turbine'!AI176:AI200, MATCH($C$31, '2. Relative CFs per turbine'!$Y$176:$Y$200, 0)), IF(AND($C$36="Construction on rocky seabed", $C$39="Full removal"), INDEX('2. Relative CFs per turbine'!K205:K229, MATCH($C$31, '2. Relative CFs per turbine'!$A$205:$A$229, 0)), IF(AND($C$36="Construction on rocky seabed", $C$39="Leaving scour protection"), INDEX('2. Relative CFs per turbine'!W205:W229, MATCH($C$31, '2. Relative CFs per turbine'!$M$205:$M$229, 0)), IF(AND($C$36="Construction on rocky seabed", $C$39="Leaving scour protection and 5 m of foundation"), INDEX('2. Relative CFs per turbine'!AI205:AI229, MATCH($C$31, '2. Relative CFs per turbine'!$Y$205:$Y$229, 0)), 0 ) ) ) ) )) -> 
B68: Seabed within wind farm [PDF.year/seabed] | C68: =IF(OR($C$31="", $C$32="", $C$33="", $C$34="",$C$35="Choose from dropdown", $C$36="Choose from dropdown", $C$38="Choose from dropdown", $C$39="Choose from dropdown"), "", IF(AND($C$37="Maintain rocky seabed", $C$40="Remove rocks"), '4. Seabed in OWF (rel & abs)'!B62, IF($C$37="Remove rocks", INDEX('4. Seabed in OWF (rel & abs)'!$B$22:$B$46, MATCH($C$31, '4. Seabed in OWF (rel & abs)'!$A$22:$A$46, 0)) + '4. Seabed in OWF (rel & abs)'!B62, 0 ) )) ->  | D68: =IF(OR($C$31="", $C$32="", $C$33="", $C$34="",$C$35="Choose from dropdown", $C$36="Choose from dropdown", $C$38="Choose from dropdown", $C$39="Choose from dropdown"), "", IF(AND($C$37="Maintain rocky seabed", $C$40="Remove rocks"), '4. Seabed in OWF (rel & abs)'!C62, IF($C$37="Remove rocks", INDEX('4. Seabed in OWF (rel & abs)'!$B$22:$B$46, MATCH($C$31, '4. Seabed in OWF (rel & abs)'!$A$22:$A$46, 0)) + '4. Seabed in OWF (rel & abs)'!C62, 0 ) )) ->  | E68: =IF(OR($C$31="", $C$32="", $C$33="", $C$34="",$C$35="Choose from dropdown", $C$36="Choose from dropdown", $C$38="Choose from dropdown", $C$39="Choose from dropdown"), "", IF(AND($C$37="Maintain rocky seabed", $C$40="Remove rocks"), '4. Seabed in OWF (rel & abs)'!D62, IF($C$37="Remove rocks", INDEX('4. Seabed in OWF (rel & abs)'!$B$22:$B$46, MATCH($C$31, '4. Seabed in OWF (rel & abs)'!$A$22:$A$46, 0)) + '4. Seabed in OWF (rel & abs)'!D62, 0 ) )) ->  | F68: =IF(OR($C$31="", $C$32="", $C$33="", $C$34="",$C$35="Choose from dropdown", $C$36="Choose from dropdown", $C$38="Choose from dropdown", $C$39="Choose from dropdown"), "", IF(AND($C$37="Maintain rocky seabed", $C$40="Remove rocks"), '4. Seabed in OWF (rel & abs)'!E62, IF($C$37="Remove rocks", INDEX('4. Seabed in OWF (rel & abs)'!$B$22:$B$46, MATCH($C$31, '4. Seabed in OWF (rel & abs)'!$A$22:$A$46, 0)) + '4. Seabed in OWF (rel & abs)'!E62, 0 ) )) ->  | G68: =IF(OR($C$31="", $C$32="", $C$33="", $C$34="",$C$35="Choose from dropdown", $C$36="Choose from dropdown", $C$38="Choose from dropdown", $C$39="Choose from dropdown"), "", IF(AND($C$37="Maintain rocky seabed", $C$40="Remove rocks"), '4. Seabed in OWF (rel & abs)'!F62, IF($C$37="Remove rocks", INDEX('4. Seabed in OWF (rel & abs)'!$B$22:$B$46, MATCH($C$31, '4. Seabed in OWF (rel & abs)'!$A$22:$A$46, 0)) + '4. Seabed in OWF (rel & abs)'!F62, 0 ) )) ->  | H68: =IF(OR($C$31="", $C$32="", $C$33="", $C$34="",$C$35="Choose from dropdown", $C$36="Choose from dropdown", $C$38="Choose from dropdown", $C$39="Choose from dropdown"), "", IF(AND($C$37="Maintain rocky seabed", $C$40="Remove rocks"), '4. Seabed in OWF (rel & abs)'!G62, IF($C$37="Remove rocks", INDEX('4. Seabed in OWF (rel & abs)'!$B$22:$B$46, MATCH($C$31, '4. Seabed in OWF (rel & abs)'!$A$22:$A$46, 0)) + '4. Seabed in OWF (rel & abs)'!G62, 0 ) )) ->  | I68: =IF(OR($C$31="", $C$32="", $C$33="", $C$34="",$C$35="Choose from dropdown", $C$36="Choose from dropdown", $C$38="Choose from dropdown", $C$39="Choose from dropdown"), "", IF(AND($C$37="Maintain rocky seabed", $C$40="Remove rocks"), '4. Seabed in OWF (rel & abs)'!H62, IF($C$37="Remove rocks", INDEX('4. Seabed in OWF (rel & abs)'!$B$22:$B$46, MATCH($C$31, '4. Seabed in OWF (rel & abs)'!$A$22:$A$46, 0)) + '4. Seabed in OWF (rel & abs)'!H62, 0 ) )) ->  | J68: =IF(OR($C$31="", $C$32="", $C$33="", $C$34="",$C$35="Choose from dropdown", $C$36="Choose from dropdown", $C$38="Choose from dropdown", $C$39="Choose from dropdown"), "", IF(AND($C$37="Maintain rocky seabed", $C$40="Remove rocks"), '4. Seabed in OWF (rel & abs)'!I62, IF($C$37="Remove rocks", INDEX('4. Seabed in OWF (rel & abs)'!$B$22:$B$46, MATCH($C$31, '4. Seabed in OWF (rel & abs)'!$A$22:$A$46, 0)) + '4. Seabed in OWF (rel & abs)'!I62, 0 ) )) ->  | K68: =IF(OR($C$31="", $C$32="", $C$33="", $C$34="",$C$35="Choose from dropdown", $C$36="Choose from dropdown", $C$38="Choose from dropdown", $C$39="Choose from dropdown"), "", IF(AND($C$37="Maintain rocky seabed", $C$40="Remove rocks"), '4. Seabed in OWF (rel & abs)'!J62, IF($C$37="Remove rocks", INDEX('4. Seabed in OWF (rel & abs)'!$B$22:$B$46, MATCH($C$31, '4. Seabed in OWF (rel & abs)'!$A$22:$A$46, 0)) + '4. Seabed in OWF (rel & abs)'!J62, 0 ) )) ->  | L68: =IF(OR($C$31="", $C$32="", $C$33="", $C$34="",$C$35="Choose from dropdown", $C$36="Choose from dropdown", $C$38="Choose from dropdown", $C$39="Choose from dropdown"), "", IF(AND($C$37="Maintain rocky seabed", $C$40="Remove rocks"), '4. Seabed in OWF (rel & abs)'!K62, IF($C$37="Remove rocks", INDEX('4. Seabed in OWF (rel & abs)'!$B$22:$B$46, MATCH($C$31, '4. Seabed in OWF (rel & abs)'!$A$22:$A$46, 0)) + '4. Seabed in OWF (rel & abs)'!K62, 0 ) )) -> 
B69: Weighted wind farm impact [PDF.year/OWF] | C69: =IF(OR($C$31="", $C$32="", $C$33="", $C$34="",$C$35="Choose from dropdown", $C$36="Choose from dropdown", $C$38="Choose from dropdown", $C$39="Choose from dropdown"), "", ((C67*$C$32*$C$34)+(C68*($C$33*10^6-$C$32*$C$34)))/($C$33*10^6)) -> 
A104: Absolute impacts [species.year/OWF]
B107: ABSOLUTE IMPACTS WEIGHTED FOR ENTIRE OWF | C107: Total | D107: Porifera | E107: Cnidaria | F107: Worms | G107: Mollusca | H107: Arthropoda | I107: Bryozoa | J107: Echinodermata | K107: Chordata | L107: Aliens
B108: Construction | C108: =IF(OR($C$31="", $C$32="", $C$33="", $C$34="",$C$35="Choose from dropdown", $C$36="Choose from dropdown", $C$38="Choose from dropdown", $C$39="Choose from dropdown"), "", IF($C$36="Construction on sandy seabed",'5. Reference richness'!B15*'1. CF tool'!C49, IF($C$36="Construction on rocky seabed",'5. Reference richness'!B22*'1. CF tool'!C49, "" ))) ->  | D108: =IF(OR($C$31="", $C$32="", $C$33="", $C$34="",$C$35="Choose from dropdown", $C$36="Choose from dropdown", $C$38="Choose from dropdown", $C$39="Choose from dropdown"), "", IF($C$36="Construction on sandy seabed",'5. Reference richness'!C15*'1. CF tool'!D49, IF($C$36="Construction on rocky seabed",'5. Reference richness'!C22*'1. CF tool'!D49, "" ))) ->  | E108: =IF(OR($C$31="", $C$32="", $C$33="", $C$34="",$C$35="Choose from dropdown", $C$36="Choose from dropdown", $C$38="Choose from dropdown", $C$39="Choose from dropdown"), "", IF($C$36="Construction on sandy seabed",'5. Reference richness'!D15*'1. CF tool'!E49, IF($C$36="Construction on rocky seabed",'5. Reference richness'!D22*'1. CF tool'!E49, "" ))) ->  | F108: =IF(OR($C$31="", $C$32="", $C$33="", $C$34="",$C$35="Choose from dropdown", $C$36="Choose from dropdown", $C$38="Choose from dropdown", $C$39="Choose from dropdown"), "", IF($C$36="Construction on sandy seabed",'5. Reference richness'!E15*'1. CF tool'!F49, IF($C$36="Construction on rocky seabed",'5. Reference richness'!E22*'1. CF tool'!F49, "" ))) ->  | G108: =IF(OR($C$31="", $C$32="", $C$33="", $C$34="",$C$35="Choose from dropdown", $C$36="Choose from dropdown", $C$38="Choose from dropdown", $C$39="Choose from dropdown"), "", IF($C$36="Construction on sandy seabed",'5. Reference richness'!F15*'1. CF tool'!G49, IF($C$36="Construction on rocky seabed",'5. Reference richness'!F22*'1. CF tool'!G49, "" ))) ->  | H108: =IF(OR($C$31="", $C$32="", $C$33="", $C$34="",$C$35="Choose from dropdown", $C$36="Choose from dropdown", $C$38="Choose from dropdown", $C$39="Choose from dropdown"), "", IF($C$36="Construction on sandy seabed",'5. Reference richness'!G15*'1. CF tool'!H49, IF($C$36="Construction on rocky seabed",'5. Reference richness'!G22*'1. CF tool'!H49, "" ))) ->  | I108: =IF(OR($C$31="", $C$32="", $C$33="", $C$34="",$C$35="Choose from dropdown", $C$36="Choose from dropdown", $C$38="Choose from dropdown", $C$39="Choose from dropdown"), "", IF($C$36="Construction on sandy seabed",'5. Reference richness'!H15*'1. CF tool'!I49, IF($C$36="Construction on rocky seabed",'5. Reference richness'!H22*'1. CF tool'!I49, "" ))) ->  | J108: =IF(OR($C$31="", $C$32="", $C$33="", $C$34="",$C$35="Choose from dropdown", $C$36="Choose from dropdown", $C$38="Choose from dropdown", $C$39="Choose from dropdown"), "", IF($C$36="Construction on sandy seabed",'5. Reference richness'!I15*'1. CF tool'!J49, IF($C$36="Construction on rocky seabed",'5. Reference richness'!I22*'1. CF tool'!J49, "" ))) ->  | K108: =IF(OR($C$31="", $C$32="", $C$33="", $C$34="",$C$35="Choose from dropdown", $C$36="Choose from dropdown", $C$38="Choose from dropdown", $C$39="Choose from dropdown"), "", IF($C$36="Construction on sandy seabed",'5. Reference richness'!J15*'1. CF tool'!K49, IF($C$36="Construction on rocky seabed",'5. Reference richness'!J22*'1. CF tool'!K49, "" ))) ->  | L108: =IF(OR($C$31="", $C$32="", $C$33="", $C$34="",$C$35="Choose from dropdown", $C$36="Choose from dropdown", $C$38="Choose from dropdown", $C$39="Choose from dropdown"), "", IF($C$36="Construction on sandy seabed",'5. Reference richness'!K15*'1. CF tool'!L49, IF($C$36="Construction on rocky seabed",'5. Reference richness'!K22*'1. CF tool'!L49, "" ))) -> 
B109: Decommissioning (1 year after) | C109: =IF(OR($C$31="", $C$32="", $C$33="", $C$34="",$C$35="Choose from dropdown", $C$36="Choose from dropdown", $C$38="Choose from dropdown", $C$39="Choose from dropdown"), "", INDEX('5. Reference richness'!B32:B57,MATCH($C$31,'5. Reference richness'!$A$32:$A$57,0))*C54) ->  | D109: =IF(OR($C$31="", $C$32="", $C$33="", $C$34="",$C$35="Choose from dropdown", $C$36="Choose from dropdown", $C$38="Choose from dropdown", $C$39="Choose from dropdown"), "", INDEX('5. Reference richness'!C32:C57,MATCH($C$31,'5. Reference richness'!$A$32:$A$57,0))*D54) ->  | E109: =IF(OR($C$31="", $C$32="", $C$33="", $C$34="",$C$35="Choose from dropdown", $C$36="Choose from dropdown", $C$38="Choose from dropdown", $C$39="Choose from dropdown"), "", INDEX('5. Reference richness'!D32:D57,MATCH($C$31,'5. Reference richness'!$A$32:$A$57,0))*E54) ->  | F109: =IF(OR($C$31="", $C$32="", $C$33="", $C$34="",$C$35="Choose from dropdown", $C$36="Choose from dropdown", $C$38="Choose from dropdown", $C$39="Choose from dropdown"), "", INDEX('5. Reference richness'!E32:E57,MATCH($C$31,'5. Reference richness'!$A$32:$A$57,0))*F54) ->  | G109: =IF(OR($C$31="", $C$32="", $C$33="", $C$34="",$C$35="Choose from dropdown", $C$36="Choose from dropdown", $C$38="Choose from dropdown", $C$39="Choose from dropdown"), "", INDEX('5. Reference richness'!F32:F57,MATCH($C$31,'5. Reference richness'!$A$32:$A$57,0))*G54) ->  | H109: =IF(OR($C$31="", $C$32="", $C$33="", $C$34="",$C$35="Choose from dropdown", $C$36="Choose from dropdown", $C$38="Choose from dropdown", $C$39="Choose from dropdown"), "", INDEX('5. Reference richness'!G32:G57,MATCH($C$31,'5. Reference richness'!$A$32:$A$57,0))*H54) ->  | I109: =IF(OR($C$31="", $C$32="", $C$33="", $C$34="",$C$35="Choose from dropdown", $C$36="Choose from dropdown", $C$38="Choose from dropdown", $C$39="Choose from dropdown"), "", INDEX('5. Reference richness'!H32:H57,MATCH($C$31,'5. Reference richness'!$A$32:$A$57,0))*I54) ->  | J109: =IF(OR($C$31="", $C$32="", $C$33="", $C$34="",$C$35="Choose from dropdown", $C$36="Choose from dropdown", $C$38="Choose from dropdown", $C$39="Choose from dropdown"), "", INDEX('5. Reference richness'!I32:I57,MATCH($C$31,'5. Reference richness'!$A$32:$A$57,0))*J54) ->  | K109: =IF(OR($C$31="", $C$32="", $C$33="", $C$34="",$C$35="Choose from dropdown", $C$36="Choose from dropdown", $C$38="Choose from dropdown", $C$39="Choose from dropdown"), "", INDEX('5. Reference richness'!J32:J57,MATCH($C$31,'5. Reference richness'!$A$32:$A$57,0))*K54) ->  | L109: =IF(OR($C$31="", $C$32="", $C$33="", $C$34="",$C$35="Choose from dropdown", $C$36="Choose from dropdown", $C$38="Choose from dropdown", $C$39="Choose from dropdown"), "", INDEX('5. Reference richness'!K32:K57,MATCH($C$31,'5. Reference richness'!$A$32:$A$57,0))*L54) -> 
B110: Decommissioning (25 years after) | C110: =IF(OR($C$31="", $C$32="", $C$33="", $C$34="",$C$35="Choose from dropdown", $C$36="Choose from dropdown", $C$38="Choose from dropdown", $C$39="Choose from dropdown"), "", INDEX('5. Reference richness'!B32:B57,MATCH($C$31,'5. Reference richness'!$A$32:$A$57,0))*C59) ->  | D110: =IF(OR($C$31="", $C$32="", $C$33="", $C$34="",$C$35="Choose from dropdown", $C$36="Choose from dropdown", $C$38="Choose from dropdown", $C$39="Choose from dropdown"), "", INDEX('5. Reference richness'!C32:C57,MATCH($C$31,'5. Reference richness'!$A$32:$A$57,0))*D59) ->  | E110: =IF(OR($C$31="", $C$32="", $C$33="", $C$34="",$C$35="Choose from dropdown", $C$36="Choose from dropdown", $C$38="Choose from dropdown", $C$39="Choose from dropdown"), "", INDEX('5. Reference richness'!D32:D57,MATCH($C$31,'5. Reference richness'!$A$32:$A$57,0))*E59) ->  | F110: =IF(OR($C$31="", $C$32="", $C$33="", $C$34="",$C$35="Choose from dropdown", $C$36="Choose from dropdown", $C$38="Choose from dropdown", $C$39="Choose from dropdown"), "", INDEX('5. Reference richness'!E32:E57,MATCH($C$31,'5. Reference richness'!$A$32:$A$57,0))*F59) ->  | G110: =IF(OR($C$31="", $C$32="", $C$33="", $C$34="",$C$35="Choose from dropdown", $C$36="Choose from dropdown", $C$38="Choose from dropdown", $C$39="Choose from dropdown"), "", INDEX('5. Reference richness'!F32:F57,MATCH($C$31,'5. Reference richness'!$A$32:$A$57,0))*G59) ->  | H110: =IF(OR($C$31="", $C$32="", $C$33="", $C$34="",$C$35="Choose from dropdown", $C$36="Choose from dropdown", $C$38="Choose from dropdown", $C$39="Choose from dropdown"), "", INDEX('5. Reference richness'!G32:G57,MATCH($C$31,'5. Reference richness'!$A$32:$A$57,0))*H59) ->  | I110: =IF(OR($C$31="", $C$32="", $C$33="", $C$34="",$C$35="Choose from dropdown", $C$36="Choose from dropdown", $C$38="Choose from dropdown", $C$39="Choose from dropdown"), "", INDEX('5. Reference richness'!H32:H57,MATCH($C$31,'5. Reference richness'!$A$32:$A$57,0))*I59) ->  | J110: =IF(OR($C$31="", $C$32="", $C$33="", $C$34="",$C$35="Choose from dropdown", $C$36="Choose from dropdown", $C$38="Choose from dropdown", $C$39="Choose from dropdown"), "", INDEX('5. Reference richness'!I32:I57,MATCH($C$31,'5. Reference richness'!$A$32:$A$57,0))*J59) ->  | K110: =IF(OR($C$31="", $C$32="", $C$33="", $C$34="",$C$35="Choose from dropdown", $C$36="Choose from dropdown", $C$38="Choose from dropdown", $C$39="Choose from dropdown"), "", INDEX('5. Reference richness'!J32:J57,MATCH($C$31,'5. Reference richness'!$A$32:$A$57,0))*K59) ->  | L110: =IF(OR($C$31="", $C$32="", $C$33="", $C$34="",$C$35="Choose from dropdown", $C$36="Choose from dropdown", $C$38="Choose from dropdown", $C$39="Choose from dropdown"), "", INDEX('5. Reference richness'!K32:K57,MATCH($C$31,'5. Reference richness'!$A$32:$A$57,0))*L59) -> 
B111: Lifetime impacts (1 year after decommissioning) | C111: =IF(OR($C$31="", $C$32="", $C$33="", $C$34="",$C$35="Choose from dropdown", $C$36="Choose from dropdown", $C$38="Choose from dropdown", $C$39="Choose from dropdown"), "", IF($C$36="Construction on sandy seabed",'5. Reference richness'!B15*'1. CF tool'!C64, IF($C$36="Construction on rocky seabed",'5. Reference richness'!B22*'1. CF tool'!C64, "" ))) ->  | D111: =IF(OR($C$31="", $C$32="", $C$33="", $C$34="",$C$35="Choose from dropdown", $C$36="Choose from dropdown", $C$38="Choose from dropdown", $C$39="Choose from dropdown"), "", IF($C$36="Construction on sandy seabed",'5. Reference richness'!C15*'1. CF tool'!D64, IF($C$36="Construction on rocky seabed",'5. Reference richness'!C22*'1. CF tool'!D64, "" ))) ->  | E111: =IF(OR($C$31="", $C$32="", $C$33="", $C$34="",$C$35="Choose from dropdown", $C$36="Choose from dropdown", $C$38="Choose from dropdown", $C$39="Choose from dropdown"), "", IF($C$36="Construction on sandy seabed",'5. Reference richness'!D15*'1. CF tool'!E64, IF($C$36="Construction on rocky seabed",'5. Reference richness'!D22*'1. CF tool'!E64, "" ))) ->  | F111: =IF(OR($C$31="", $C$32="", $C$33="", $C$34="",$C$35="Choose from dropdown", $C$36="Choose from dropdown", $C$38="Choose from dropdown", $C$39="Choose from dropdown"), "", IF($C$36="Construction on sandy seabed",'5. Reference richness'!E15*'1. CF tool'!F64, IF($C$36="Construction on rocky seabed",'5. Reference richness'!E22*'1. CF tool'!F64, "" ))) ->  | G111: =IF(OR($C$31="", $C$32="", $C$33="", $C$34="",$C$35="Choose from dropdown", $C$36="Choose from dropdown", $C$38="Choose from dropdown", $C$39="Choose from dropdown"), "", IF($C$36="Construction on sandy seabed",'5. Reference richness'!F15*'1. CF tool'!G64, IF($C$36="Construction on rocky seabed",'5. Reference richness'!F22*'1. CF tool'!G64, "" ))) ->  | H111: =IF(OR($C$31="", $C$32="", $C$33="", $C$34="",$C$35="Choose from dropdown", $C$36="Choose from dropdown", $C$38="Choose from dropdown", $C$39="Choose from dropdown"), "", IF($C$36="Construction on sandy seabed",'5. Reference richness'!G15*'1. CF tool'!H64, IF($C$36="Construction on rocky seabed",'5. Reference richness'!G22*'1. CF tool'!H64, "" ))) ->  | I111: =IF(OR($C$31="", $C$32="", $C$33="", $C$34="",$C$35="Choose from dropdown", $C$36="Choose from dropdown", $C$38="Choose from dropdown", $C$39="Choose from dropdown"), "", IF($C$36="Construction on sandy seabed",'5. Reference richness'!H15*'1. CF tool'!I64, IF($C$36="Construction on rocky seabed",'5. Reference richness'!H22*'1. CF tool'!I64, "" ))) ->  | J111: =IF(OR($C$31="", $C$32="", $C$33="", $C$34="",$C$35="Choose from dropdown", $C$36="Choose from dropdown", $C$38="Choose from dropdown", $C$39="Choose from dropdown"), "", IF($C$36="Construction on sandy seabed",'5. Reference richness'!I15*'1. CF tool'!J64, IF($C$36="Construction on rocky seabed",'5. Reference richness'!I22*'1. CF tool'!J64, "" ))) ->  | K111: =IF(OR($C$31="", $C$32="", $C$33="", $C$34="",$C$35="Choose from dropdown", $C$36="Choose from dropdown", $C$38="Choose from dropdown", $C$39="Choose from dropdown"), "", IF($C$36="Construction on sandy seabed",'5. Reference richness'!J15*'1. CF tool'!K64, IF($C$36="Construction on rocky seabed",'5. Reference richness'!J22*'1. CF tool'!K64, "" ))) ->  | L111: =IF(OR($C$31="", $C$32="", $C$33="", $C$34="",$C$35="Choose from dropdown", $C$36="Choose from dropdown", $C$38="Choose from dropdown", $C$39="Choose from dropdown"), "", IF($C$36="Construction on sandy seabed",'5. Reference richness'!K15*'1. CF tool'!L64, IF($C$36="Construction on rocky seabed",'5. Reference richness'!K22*'1. CF tool'!L64, "" ))) -> 
B112: Lifetime impacts (25 years after decommissioning) | C112: =IF(OR($C$31="", $C$32="", $C$33="", $C$34="",$C$35="Choose from dropdown", $C$36="Choose from dropdown", $C$38="Choose from dropdown", $C$39="Choose from dropdown"), "", IF($C$36="Construction on sandy seabed",'5. Reference richness'!B15*'1. CF tool'!C69, IF($C$36="Construction on rocky seabed",'5. Reference richness'!B22*'1. CF tool'!C69, "" ))) ->  | D112: =IF(OR($C$31="", $C$32="", $C$33="", $C$34="",$C$35="Choose from dropdown", $C$36="Choose from dropdown", $C$38="Choose from dropdown", $C$39="Choose from dropdown"), "", IF($C$36="Construction on sandy seabed",'5. Reference richness'!C15*'1. CF tool'!D69, IF($C$36="Construction on rocky seabed",'5. Reference richness'!C22*'1. CF tool'!D69, "" ))) ->  | E112: =IF(OR($C$31="", $C$32="", $C$33="", $C$34="",$C$35="Choose from dropdown", $C$36="Choose from dropdown", $C$38="Choose from dropdown", $C$39="Choose from dropdown"), "", IF($C$36="Construction on sandy seabed",'5. Reference richness'!D15*'1. CF tool'!E69, IF($C$36="Construction on rocky seabed",'5. Reference richness'!D22*'1. CF tool'!E69, "" ))) ->  | F112: =IF(OR($C$31="", $C$32="", $C$33="", $C$34="",$C$35="Choose from dropdown", $C$36="Choose from dropdown", $C$38="Choose from dropdown", $C$39="Choose from dropdown"), "", IF($C$36="Construction on sandy seabed",'5. Reference richness'!E15*'1. CF tool'!F69, IF($C$36="Construction on rocky seabed",'5. Reference richness'!E22*'1. CF tool'!F69, "" ))) ->  | G112: =IF(OR($C$31="", $C$32="", $C$33="", $C$34="",$C$35="Choose from dropdown", $C$36="Choose from dropdown", $C$38="Choose from dropdown", $C$39="Choose from dropdown"), "", IF($C$36="Construction on sandy seabed",'5. Reference richness'!F15*'1. CF tool'!G69, IF($C$36="Construction on rocky seabed",'5. Reference richness'!F22*'1. CF tool'!G69, "" ))) ->  | H112: =IF(OR($C$31="", $C$32="", $C$33="", $C$34="",$C$35="Choose from dropdown", $C$36="Choose from dropdown", $C$38="Choose from dropdown", $C$39="Choose from dropdown"), "", IF($C$36="Construction on sandy seabed",'5. Reference richness'!G15*'1. CF tool'!H69, IF($C$36="Construction on rocky seabed",'5. Reference richness'!G22*'1. CF tool'!H69, "" ))) ->  | I112: =IF(OR($C$31="", $C$32="", $C$33="", $C$34="",$C$35="Choose from dropdown", $C$36="Choose from dropdown", $C$38="Choose from dropdown", $C$39="Choose from dropdown"), "", IF($C$36="Construction on sandy seabed",'5. Reference richness'!H15*'1. CF tool'!I69, IF($C$36="Construction on rocky seabed",'5. Reference richness'!H22*'1. CF tool'!I69, "" ))) ->  | J112: =IF(OR($C$31="", $C$32="", $C$33="", $C$34="",$C$35="Choose from dropdown", $C$36="Choose from dropdown", $C$38="Choose from dropdown", $C$39="Choose from dropdown"), "", IF($C$36="Construction on sandy seabed",'5. Reference richness'!I15*'1. CF tool'!J69, IF($C$36="Construction on rocky seabed",'5. Reference richness'!I22*'1. CF tool'!J69, "" ))) ->  | K112: =IF(OR($C$31="", $C$32="", $C$33="", $C$34="",$C$35="Choose from dropdown", $C$36="Choose from dropdown", $C$38="Choose from dropdown", $C$39="Choose from dropdown"), "", IF($C$36="Construction on sandy seabed",'5. Reference richness'!J15*'1. CF tool'!K69, IF($C$36="Construction on rocky seabed",'5. Reference richness'!J22*'1. CF tool'!K69, "" ))) ->  | L112: =IF(OR($C$31="", $C$32="", $C$33="", $C$34="",$C$35="Choose from dropdown", $C$36="Choose from dropdown", $C$38="Choose from dropdown", $C$39="Choose from dropdown"), "", IF($C$36="Construction on sandy seabed",'5. Reference richness'!K15*'1. CF tool'!L69, IF($C$36="Construction on rocky seabed",'5. Reference richness'!K22*'1. CF tool'!L69, "" ))) -> 

Sheet 2. Relative CFs per turbine
A1: Potentially Disappeared Fraction of species from habitat changes associated with the turbine structures [PDF.yr/turbine]
A3: The factors for PDF presented in this sheet represent the relative impacts on species richness within each species group associated with construction, decommissioning, and the whole lifetime of a turbine structure in the North Sea. The PDFs are given for structure ages 1-25 years. Unit: PDF.year/turbine. Abbreviations: PDF = Potentially Disappeared Fraction of species.
A8: Color scale
A9: The cells are colored according to what is interpreted as a positive, neutral or negative impact. The coloring is different for alien species compared to all other species groups, as and increas of alien species is not considered positive like an increase in the other species groups are in LCA.
B12: Aliens | C12: All other species
A13: Positive | B13: Decrease in PDF.year (positive numbers) | C13: Increase in PDF.year (negative numbers)
A14: No impact | B14: Constant number of species
A15: Negative | B15: Increase in PDF.year (negative numbers) | C15: Decrease in PDF.year (positive numbers)
A17: Relative CFs for construction impacts
A18: Scenario I-C: From sandy seabed to the full structure. | M18: Scenario II-C: From hard seabed to the full structure.
A19: Unit: PDF.year/structure | M19: Unit: PDF.year/structure
A20: Age, t [yr] | B20: TOTAL | C20: Porifera | D20: Cnidaria | E20: Worms | F20: Mollusca | G20: Arthropoda | H20: Bryozoa | I20: Echinodermata | J20: Chordata | K20: Aliens | M20: Age, t [yr] | N20: TOTAL | O20: Porifera | P20: Cnidaria | Q20: Worms | R20: Mollusca | S20: Arthropoda | T20: Bryozoa | U20: Echinodermata | V20: Chordata | W20: Aliens
A21: 1 | B21: 1 | D21: 0 | E21: 1 | F21: 1 | G21: 0 | H21: -3 | I21: 1 | J21: -12 | K21: -11 | M21: 1 | N21: 0 | O21: -1 | P21: 1 | Q21: 1 | R21: -0 | S21: 0 | T21: 0 | U21: -2 | V21: 1 | W21: -0
A22: 2 | B22: 1 | D22: 0 | E22: 2 | F22: 1 | G22: 1 | H22: -6 | I22: 1 | J22: -24 | K22: -24 | M22: 2 | N22: 1 | O22: -3 | P22: 1 | Q22: 2 | R22: -1 | S22: 0 | T22: 1 | U22: -5 | V22: 1 | W22: -0
A23: 3 | B23: 2 | D23: 0 | E23: 3 | F23: 2 | G23: 1 | H23: -10 | I23: 2 | J23: -37 | K23: -37 | M23: 3 | N23: 1 | O23: -5 | P23: 2 | Q23: 2 | R23: -2 | S23: 0 | T23: 1 | U23: -7 | V23: 2 | W23: -0
A24: 4 | B24: 2 | D24: 0 | E24: 4 | F24: 3 | G24: 1 | H24: -14 | I24: 2 | J24: -50 | K24: -51 | M24: 4 | N24: 1 | O24: -7 | P24: 2 | Q24: 1 | R24: -3 | S24: 0 | T24: 1 | U24: -11 | V24: 3 | W24: -1
A25: 5 | B25: 3 | D25: 0 | E25: 5 | F25: 3 | G25: 1 | H25: -19 | I25: 3 | J25: -64 | K25: -67 | M25: 5 | N25: 1 | O25: -9 | P25: 3 | Q25: 0 | R25: -4 | S25: -0 | T25: 2 | U25: -14 | V25: 3 | W25: -1
A26: 6 | B26: 3 | D26: -0 | E26: 5 | F26: 4 | G26: 1 | H26: -24 | I26: 3 | J26: -79 | K26: -83 | M26: 6 | N26: 1 | O26: -12 | P26: 3 | Q26: -1 | R26: -5 | S26: -0 | T26: 2 | U26: -18 | V26: 4 | W26: -2
A27: 7 | B27: 4 | D27: -1 | E27: 6 | F27: 4 | G27: 1 | H27: -29 | I27: 4 | J27: -94 | K27: -99 | M27: 7 | N27: 1 | O27: -14 | P27: 3 | Q27: -3 | R27: -7 | S27: -1 | T27: 2 | U27: -22 | V27: 4 | W27: -2
A28: 8 | B28: 4 | D28: -2 | E28: 7 | F28: 5 | G28: 1 | H28: -34 | I28: 4 | J28: -109 | K28: -117 | M28: 8 | N28: 0 | O28: -17 | P28: 3 | Q28: -5 | R28: -9 | S28: -2 | T28: 2 | U28: -27 | V28: 5 | W28: -3
A29: 9 | B29: 4 | D29: -2 | E29: 8 | F29: 5 | G29: 1 | H29: -40 | I29: 5 | J29: -125 | K29: -134 | M29: 9 | N29: -0 | O29: -20 | P29: 3 | Q29: -8 | R29: -11 | S29: -2 | T29: 2 | U29: -32 | V29: 6 | W29: -3
A30: 10 | B30: 4 | D30: -3 | E30: 8 | F30: 6 | G30: 1 | H30: -46 | I30: 5 | J30: -141 | K30: -153 | M30: 10 | N30: -1 | O30: -23 | P30: 3 | Q30: -11 | R30: -13 | S30: -3 | T30: 2 | U30: -37 | V30: 6 | W30: -4
A31: 11 | B31: 4 | D31: -4 | E31: 9 | F31: 6 | G31: 0 | H31: -53 | I31: 5 | J31: -157 | K31: -171 | M31: 11 | N31: -1 | O31: -26 | P31: 4 | Q31: -14 | R31: -16 | S31: -4 | T31: 2 | U31: -42 | V31: 7 | W31: -5
A32: 12 | B32: 4 | D32: -5 | E32: 10 | F32: 6 | G32: -0 | H32: -60 | I32: 6 | J32: -174 | K32: -190 | M32: 12 | N32: -2 | O32: -29 | P32: 4 | Q32: -17 | R32: -18 | S32: -5 | T32: 2 | U32: -47 | V32: 7 | W32: -5
A33: 13 | B33: 4 | D33: -6 | E33: 10 | F33: 7 | G33: -1 | H33: -67 | I33: 6 | J33: -190 | K33: -209 | M33: 13 | N33: -3 | O33: -32 | P33: 3 | Q33: -21 | R33: -21 | S33: -6 | T33: 2 | U33: -53 | V33: 8 | W33: -6
A34: 14 | B34: 4 | D34: -8 | E34: 11 | F34: 7 | G34: -1 | H34: -74 | I34: 6 | J34: -207 | K34: -228 | M34: 14 | N34: -4 | O34: -34 | P34: 3 | Q34: -24 | R34: -24 | S34: -7 | T34: 1 | U34: -59 | V34: 8 | W34: -7
A35: 15 | B35: 4 | D35: -9 | E35: 12 | F35: 7 | G35: -2 | H35: -82 | I35: 6 | J35: -223 | K35: -247 | M35: 15 | N35: -5 | O35: -37 | P35: 3 | Q35: -28 | R35: -27 | S35: -9 | T35: 1 | U35: -64 | V35: 9 | W35: -7
A36: 16 | B36: 4 | D36: -10 | E36: 12 | F36: 7 | G36: -3 | H36: -90 | I36: 7 | J36: -240 | K36: -265 | M36: 16 | N36: -6 | O36: -40 | P36: 3 | Q36: -32 | R36: -30 | S36: -10 | T36: 1 | U36: -70 | V36: 9 | W36: -8
A37: 17 | B37: 4 | D37: -11 | E37: 13 | F37: 8 | G37: -3 | H37: -99 | I37: 7 | J37: -257 | K37: -284 | M37: 17 | N37: -7 | O37: -42 | P37: 3 | Q37: -36 | R37: -33 | S37: -12 | T37: 0 | U37: -77 | V37: 10 | W37: -9
A38: 18 | B38: 4 | D38: -13 | E38: 13 | F38: 8 | G38: -4 | H38: -108 | I38: 7 | J38: -273 | K38: -302 | M38: 18 | N38: -8 | O38: -45 | P38: 3 | Q38: -40 | R38: -36 | S38: -13 | T38: -0 | U38: -83 | V38: 10 | W38: -9
A39: 19 | B39: 4 | D39: -14 | E39: 14 | F39: 8 | G39: -5 | H39: -117 | I39: 7 | J39: -289 | K39: -320 | M39: 19 | N39: -9 | O39: -47 | P39: 3 | Q39: -43 | R39: -39 | S39: -15 | T39: -0 | U39: -89 | V39: 11 | W39: -10
A40: 20 | B40: 4 | D40: -15 | E40: 15 | F40: 8 | G40: -6 | H40: -126 | I40: 7 | J40: -305 | K40: -337 | M40: 20 | N40: -11 | O40: -49 | P40: 3 | Q40: -47 | R40: -42 | S40: -17 | T40: -1 | U40: -95 | V40: 12 | W40: -11
A41: 21 | B41: 3 | D41: -17 | E41: 15 | F41: 9 | G41: -7 | H41: -136 | I41: 8 | J41: -321 | K41: -354 | M41: 21 | N41: -12 | O41: -50 | P41: 3 | Q41: -51 | R41: -46 | S41: -19 | T41: -2 | U41: -102 | V41: 12 | W41: -11
A42: 22 | B42: 3 | D42: -18 | E42: 16 | F42: 9 | G42: -8 | H42: -146 | I42: 8 | J42: -337 | K42: -370 | M42: 22 | N42: -13 | O42: -52 | P42: 2 | Q42: -55 | R42: -49 | S42: -20 | T42: -2 | U42: -108 | V42: 13 | W42: -12
A43: 23 | B43: 3 | D43: -19 | E43: 16 | F43: 9 | G43: -9 | H43: -156 | I43: 8 | J43: -352 | K43: -385 | M43: 23 | N43: -15 | O43: -53 | P43: 2 | Q43: -58 | R43: -52 | S43: -22 | T43: -3 | U43: -114 | V43: 13 | W43: -12
A44: 24 | B44: 3 | D44: -20 | E44: 17 | F44: 9 | G44: -11 | H44: -166 | I44: 8 | J44: -366 | K44: -400 | M44: 24 | N44: -16 | O44: -54 | P44: 2 | Q44: -61 | R44: -55 | S44: -24 | T44: -3 | U44: -121 | V44: 14 | W44: -12
A45: 25 | B45: 2 | D45: -22 | E45: 18 | F45: 9 | G45: -12 | H45: -177 | I45: 8 | J45: -380 | K45: -413 | M45: 25 | N45: -18 | O45: -54 | P45: 2 | Q45: -64 | R45: -58 | S45: -26 | T45: -4 | U45: -127 | V45: 14 | W45: -13
A48: Relative CFs for decommissioning impacts, considering 1 year after decommissioning
A49: Interpretation: the impacts of one PDF.year when decommissioning at age t. To look at the impacts over longer times, it should be multiplied by the number of years that the area is expected to be kept like that after decommissioning.
A51: Scenario I-D: Full structure to sandy seabed | M51: Scenario II-D: Full structure to scour protection | Y51: Scenario III-D: Full structure to scour protection + 5m of foundation
A52: Unit: PDF.year/structure | M52: Unit: PDF.year/structure | Y52: Unit: PDF.year/structure
A53: Age, t [yr] | B53: TOTAL | C53: Porifera | D53: Cnidaria | E53: Worms | F53: Mollusca | G53: Arthropoda | H53: Bryozoa | I53: Echinodermata | J53: Chordata | K53: Aliens | M53: Age, t [yr] | N53: TOTAL | O53: Porifera | P53: Cnidaria | Q53: Worms | R53: Mollusca | S53: Arthropoda | T53: Bryozoa | U53: Echinodermata | V53: Chordata | W53: Aliens | Y53: Age, t [yr] | Z53: TOTAL | AA53: Porifera | AB53: Cnidaria | AC53: Worms | AD53: Mollusca | AE53: Arthropoda | AF53: Bryozoa | AG53: Echinodermata | AH53: Chordata | AI53: Aliens
A54: 1 | B54: -2.0 | C54: 1.0 | D54: -0.3 | E54: -59.1 | F54: -2.8 | G54: -0.7 | H54: 0.8 | I54: -1.8 | J54: 0.9 | K54: 0.9 | M54: 1 | N54: 2.3E-01 | O54: 2.0E-01 | P54: 3.6E-01 | Q54: 3.3E+00 | R54: 1.9E-01 | S54: 4.0E-01 | T54: 2.2E-02 | U54: 2.0E-01 | V54: 5.6E-01 | W54: 1.1E-01 | Y54: 1 | Z54: 2.1E-01 | AA54: 4.7E-01 | AB54: 3.4E-01 | AC54: 3.3E+00 | AD54: 1.0E-01 | AE54: 3.7E-01 | AF54: 1.1E-02 | AG54: 2.0E-01 | AH54: 5.2E-01 | AI54: 9.1E-02
A55: 2 | B55: -1.5 | C55: 1.0 | D55: -0.1 | E55: -15.2 | F55: -2.2 | G55: -0.5 | H55: 0.8 | I55: -1.5 | J55: 0.9 | K55: 0.9 | M55: 2 | N55: 1.7E-01 | O55: 3.4E-01 | P55: 2.6E-01 | Q55: 8.3E-01 | R55: 1.9E-01 | S55: 3.3E-01 | T55: 1.6E-02 | U55: 2.0E-01 | V55: 6.1E-01 | W55: 8.9E-02 | Y55: 2 | Z55: 1.6E-01 | AA55: 5.5E-01 | AB55: 2.5E-01 | AC55: 8.3E-01 | AD55: 1.0E-01 | AE55: 3.1E-01 | AF55: 7.9E-03 | AG55: 2.0E-01 | AH55: 5.7E-01 | AI55: 7.5E-02
A56: 3 | B56: -1.2 | C56: 1.0 | D56: 0.1 | E56: -8.6 | F56: -1.8 | G56: -0.3 | H56: 0.8 | I56: -1.3 | J56: 0.9 | K56: 0.9 | M56: 3 | N56: 1.3E-01 | O56: 4.5E-01 | P56: 2.0E-01 | Q56: 4.7E-01 | R56: 1.9E-01 | S56: 2.7E-01 | T56: 1.2E-02 | U56: 2.0E-01 | V56: 6.6E-01 | W56: 7.5E-02 | Y56: 3 | Z56: 1.2E-01 | AA56: 6.1E-01 | AB56: 1.9E-01 | AC56: 4.7E-01 | AD56: 1.0E-01 | AE56: 2.6E-01 | AF56: 5.8E-03 | AG56: 2.0E-01 | AH56: 6.0E-01 | AI56: 6.2E-02
A57: 4 | B57: -0.9 | C57: 1.0 | D57: 0.2 | E57: -6.0 | F57: -1.5 | G57: -0.2 | H57: 0.8 | I57: -1.1 | J57: 0.9 | K57: 0.9 | M57: 4 | N57: 1.0E-01 | O57: 5.3E-01 | P57: 1.5E-01 | Q57: 3.2E-01 | R57: 1.9E-01 | S57: 2.3E-01 | T57: 8.1E-03 | U57: 2.0E-01 | V57: 6.9E-01 | W57: 6.4E-02 | Y57: 4 | Z57: 9.4E-02 | AA57: 6.6E-01 | AB57: 1.5E-01 | AC57: 3.2E-01 | AD57: 1.0E-01 | AE57: 2.2E-01 | AF57: 4.1E-03 | AG57: 2.0E-01 | AH57: 6.3E-01 | AI57: 5.1E-02
A58: 5 | B58: -0.7 | C58: 1.0 | D58: 0.3 | E58: -4.5 | F58: -1.2 | G58: -0.1 | H58: 0.8 | I58: -0.9 | J58: 0.9 | K58: 0.9 | M58: 5 | N58: 7.9E-02 | O58: 6.0E-01 | P58: 1.2E-01 | Q58: 2.4E-01 | R58: 1.9E-01 | S58: 2.0E-01 | T58: 5.4E-03 | U58: 1.9E-01 | V58: 7.2E-01 | W58: 5.5E-02 | Y58: 5 | Z58: 7.4E-02 | AA58: 6.9E-01 | AB58: 1.2E-01 | AC58: 2.4E-01 | AD58: 1.0E-01 | AE58: 1.9E-01 | AF58: 2.8E-03 | AG58: 1.9E-01 | AH58: 6.5E-01 | AI58: 4.3E-02
A59: 6 | B59: -0.5 | C59: 1.0 | D59: 0.3 | E59: -3.7 | F59: -1.0 | G59: 0.0 | H59: 0.8 | I59: -0.8 | J59: 0.9 | K59: 0.9 | M59: 6 | N59: 6.3E-02 | O59: 6.5E-01 | P59: 9.6E-02 | Q59: 1.9E-01 | R59: 1.9E-01 | S59: 1.7E-01 | T59: 3.4E-03 | U59: 1.9E-01 | V59: 7.4E-01 | W59: 4.7E-02 | Y59: 6 | Z59: 5.8E-02 | AA59: 7.2E-01 | AB59: 9.2E-02 | AC59: 1.9E-01 | AD59: 1.0E-01 | AE59: 1.7E-01 | AF59: 1.8E-03 | AG59: 1.9E-01 | AH59: 6.6E-01 | AI59: 3.5E-02
A60: 7 | B60: -0.4 | C60: 1.0 | D60: 0.4 | E60: -3.1 | F60: -0.9 | G60: 0.1 | H60: 0.8 | I60: -0.7 | J60: 0.9 | K60: 0.9 | M60: 7 | N60: 4.9E-02 | O60: 6.9E-01 | P60: 7.6E-02 | Q60: 1.6E-01 | R60: 1.9E-01 | S60: 1.5E-01 | T60: 1.9E-03 | U60: 1.9E-01 | V60: 7.5E-01 | W60: 4.1E-02 | Y60: 7 | Z60: 4.6E-02 | AA60: 7.5E-01 | AB60: 7.3E-02 | AC60: 1.6E-01 | AD60: 1.0E-01 | AE60: 1.4E-01 | AF60: 1.0E-03 | AG60: 1.9E-01 | AH60: 6.7E-01 | AI60: 2.9E-02
A61: 8 | B61: -0.3 | C61: 1.0 | D61: 0.4 | E61: -2.7 | F61: -0.8 | G61: 0.2 | H61: 0.9 | I61: -0.6 | J61: 0.9 | K61: 0.9 | M61: 8 | N61: 3.9E-02 | O61: 7.3E-01 | P61: 6.1E-02 | Q61: 1.3E-01 | R61: 1.9E-01 | S61: 1.3E-01 | T61: 9.3E-04 | U61: 1.8E-01 | V61: 7.6E-01 | W61: 3.5E-02 | Y61: 8 | Z61: 3.7E-02 | AA61: 7.6E-01 | AB61: 5.8E-02 | AC61: 1.3E-01 | AD61: 1.0E-01 | AE61: 1.3E-01 | AF61: 5.3E-04 | AG61: 1.8E-01 | AH61: 6.7E-01 | AI61: 2.4E-02
A62: 9 | B62: -0.2 | C62: 1.0 | D62: 0.5 | E62: -2.3 | F62: -0.7 | G62: 0.2 | H62: 0.9 | I62: -0.6 | J62: 0.9 | K62: 0.9 | M62: 9 | N62: 3.0E-02 | O62: 7.5E-01 | P62: 4.8E-02 | Q62: 1.1E-01 | R62: 1.9E-01 | S62: 1.2E-01 | T62: 3.2E-04 | U62: 1.8E-01 | V62: 7.6E-01 | W62: 3.0E-02 | Y62: 9 | Z62: 2.9E-02 | AA62: 7.8E-01 | AB62: 4.6E-02 | AC62: 1.1E-01 | AD62: 1.0E-01 | AE62: 1.1E-01 | AF62: 2.0E-04 | AG62: 1.7E-01 | AH62: 6.7E-01 | AI62: 1.9E-02
A63: 10 | B63: -0.2 | C63: 1.0 | D63: 0.5 | E63: -2.1 | F63: -0.6 | G63: 0.3 | H63: 0.9 | I63: -0.5 | J63: 0.9 | K63: 0.9 | M63: 10 | N63: 2.3E-02 | O63: 7.8E-01 | P63: 3.7E-02 | Q63: 9.8E-02 | R63: 1.9E-01 | S63: 1.0E-01 | T63: 3.8E-05 | U63: 1.7E-01 | V63: 7.6E-01 | W63: 2.6E-02 | Y63: 10 | Z63: 2.2E-02 | AA63: 7.9E-01 | AB63: 3.6E-02 | AC63: 9.8E-02 | AD63: 1.0E-01 | AE63: 9.9E-02 | AF63: 3.5E-05 | AG63: 1.7E-01 | AH63: 6.6E-01 | AI63: 1.5E-02
A64: 11 | B64: -0.1 | C64: 1.0 | D64: 0.5 | E64: -1.9 | F64: -0.5 | G64: 0.3 | H64: 0.9 | I64: -0.5 | J64: 0.9 | K64: 0.9 | M64: 11 | N64: 1.8E-02 | O64: 7.9E-01 | P64: 2.9E-02 | Q64: 8.6E-02 | R64: 1.9E-01 | S64: 9.1E-02 | T64: =5.12483088908536*10^-5 -> 5.1E-05 | U64: 1.6E-01 | V64: 7.5E-01 | W64: 2.2E-02 | Y64: 11 | Z64: 1.7E-02 | AA64: 7.9E-01 | AB64: 2.8E-02 | AC64: 8.6E-02 | AD64: 1.0E-01 | AE64: 8.8E-02 | AF64: =4.15311768193449*10^-6 -> 4.2E-06 | AG64: 1.6E-01 | AH64: 6.6E-01 | AI64: 1.2E-02
A65: 12 | B65: -0.1 | C65: 1.0 | D65: 0.5 | E65: -1.8 | F65: -0.5 | G65: 0.3 | H65: 0.9 | I65: -0.4 | J65: 0.9 | K65: 0.9 | M65: 12 | N65: 1.3E-02 | O65: 8.0E-01 | P65: 2.2E-02 | Q65: 7.5E-02 | R65: 1.9E-01 | S65: 8.0E-02 | T65: 3.2E-04 | U65: 1.6E-01 | V65: 7.4E-01 | W65: 1.9E-02 | Y65: 12 | Z65: 1.3E-02 | AA65: 8.0E-01 | AB65: 2.1E-02 | AC65: 7.5E-02 | AD65: 1.0E-01 | AE65: 7.8E-02 | AF65: 9.4E-05 | AG65: 1.6E-01 | AH65: 6.4E-01 | AI65: 8.9E-03
A66: 13 | B66: -0.0 | C66: 1.0 | D66: 0.5 | E66: -1.7 | F66: -0.4 | G66: 0.4 | H66: 0.9 | I66: -0.4 | J66: 0.9 | K66: 0.9 | M66: 13 | N66: 9.5E-03 | O66: 8.1E-01 | P66: 1.6E-02 | Q66: 6.6E-02 | R66: 1.9E-01 | S66: 7.1E-02 | T66: 8.2E-04 | U66: 1.5E-01 | V66: 7.2E-01 | W66: 1.6E-02 | Y66: 13 | Z66: 9.5E-03 | AA66: 8.0E-01 | AB66: 1.6E-02 | AC66: 6.6E-02 | AD66: 1.0E-01 | AE66: 6.9E-02 | AF66: 2.9E-04 | AG66: 1.5E-01 | AH66: 6.3E-01 | AI66: 6.5E-03
A67: 14 | B67: 0.0 | C67: 1.0 | D67: 0.5 | E67: -1.6 | F67: -0.4 | G67: 0.4 | H67: 0.9 | I67: -0.3 | J67: 0.9 | K67: 0.9 | M67: 14 | N67: 6.7E-03 | O67: 8.2E-01 | P67: 1.1E-02 | Q67: 5.9E-02 | R67: 1.9E-01 | S67: 6.2E-02 | T67: 1.5E-03 | U67: 1.4E-01 | V67: 7.0E-01 | W67: 1.4E-02 | Y67: 14 | Z67: 6.7E-03 | AA67: 8.0E-01 | AB67: 1.1E-02 | AC67: 5.9E-02 | AD67: 1.0E-01 | AE67: 6.0E-02 | AF67: 5.8E-04 | AG67: 1.4E-01 | AH67: 6.0E-01 | AI67: 4.5E-03
A68: 15 | B68: 0.1 | C68: 1.0 | D68: 0.6 | E68: -1.6 | F68: -0.4 | G68: 0.4 | H68: 0.9 | I68: -0.3 | J68: 0.9 | K68: 0.9 | M68: 15 | N68: 4.6E-03 | O68: 8.2E-01 | P68: 7.5E-03 | Q68: 5.2E-02 | R68: 1.9E-01 | S68: 5.4E-02 | T68: 2.4E-03 | U68: 1.3E-01 | V68: 6.7E-01 | W68: 1.2E-02 | Y68: 15 | Z68: 4.5E-03 | AA68: 7.9E-01 | AB68: 7.4E-03 | AC68: 5.2E-02 | AD68: 1.0E-01 | AE68: 5.3E-02 | AF68: 9.6E-04 | AG68: 1.3E-01 | AH68: 5.8E-01 | AI68: 2.9E-03
A69: 16 | B69: 0.1 | C69: 1.0 | D69: 0.6 | E69: -1.5 | F69: -0.3 | G69: 0.4 | H69: 0.9 | I69: -0.3 | J69: 0.9 | K69: 0.9 | M69: 16 | N69: 3.0E-03 | O69: 8.1E-01 | P69: 4.6E-03 | Q69: 4.6E-02 | R69: 1.9E-01 | S69: 4.7E-02 | T69: 3.4E-03 | U69: 1.2E-01 | V69: 6.4E-01 | W69: 9.9E-03 | Y69: 16 | Z69: 2.8E-03 | AA69: 7.8E-01 | AB69: 4.6E-03 | AC69: 4.6E-02 | AD69: 1.0E-01 | AE69: 4.6E-02 | AF69: 1.4E-03 | AG69: 1.2E-01 | AH69: 5.5E-01 | AI69: 1.6E-03
A70: 17 | B70: 0.1 | C70: 1.0 | D70: 0.6 | E70: -1.5 | F70: -0.3 | G70: 0.5 | H70: 0.9 | I70: -0.3 | J70: 0.9 | K70: 0.9 | M70: 17 | N70: 1.9E-03 | O70: 8.0E-01 | P70: 2.5E-03 | Q70: 4.0E-02 | R70: 1.9E-01 | S70: 4.0E-02 | T70: 4.6E-03 | U70: 1.1E-01 | V70: 6.0E-01 | W70: 8.5E-03 | Y70: 17 | Z70: 1.5E-03 | AA70: 7.6E-01 | AB70: 2.5E-03 | AC70: 4.0E-02 | AD70: 1.0E-01 | AE70: 3.9E-02 | AF70: 1.9E-03 | AG70: 1.1E-01 | AH70: 5.2E-01 | AI70: 7.4E-04
A71: 18 | B71: 0.1 | C71: 1.0 | D71: 0.6 | E71: -1.5 | F71: -0.3 | G71: 0.5 | H71: 0.9 | I71: -0.3 | J71: 0.9 | K71: 0.9 | M71: 18 | N71: 1.4E-03 | O71: 7.8E-01 | P71: 1.2E-03 | Q71: 3.5E-02 | R71: 1.9E-01 | S71: 3.4E-02 | T71: 5.9E-03 | U71: 1.0E-01 | V71: 5.5E-01 | W71: 7.3E-03 | Y71: 18 | Z71: 6.5E-04 | AA71: 7.4E-01 | AB71: 1.0E-03 | AC71: 3.5E-02 | AD71: 1.0E-01 | AE71: 3.3E-02 | AF71: 2.5E-03 | AG71: 1.0E-01 | AH71: 4.8E-01 | AI71: 1.8E-04
A72: 19 | B72: 0.2 | C72: 1.0 | D72: 0.6 | E72: -1.5 | F72: -0.3 | G72: 0.5 | H72: 0.9 | I72: -0.3 | J72: 0.9 | K72: 0.9 | M72: 19 | N72: 1.2E-03 | O72: 7.6E-01 | P72: 4.9E-04 | Q72: 3.0E-02 | R72: 1.9E-01 | S72: 2.8E-02 | T72: 7.4E-03 | U72: 9.1E-02 | V72: 5.0E-01 | W72: 6.5E-03 | Y72: 19 | Z72: 1.6E-04 | AA72: 7.2E-01 | AB72: 2.0E-04 | AC72: 3.0E-02 | AD72: 1.0E-01 | AE72: 2.8E-02 | AF72: 3.2E-03 | AG72: 9.0E-02 | AH72: 4.3E-01 | AI72: -3.9E-07
A73: 20 | B73: 0.2 | C73: 1.0 | D73: 0.6 | E73: -1.6 | F73: -0.3 | G73: 0.5 | H73: 0.9 | I73: -0.3 | J73: 0.9 | K73: 0.9 | M73: 20 | N73: 1.4E-03 | O73: 7.2E-01 | P73: 5.1E-04 | Q73: 2.5E-02 | R73: 1.9E-01 | S73: 2.3E-02 | T73: 9.0E-03 | U73: 7.9E-02 | V73: 4.4E-01 | W73: 6.0E-03 | Y73: 20 | Z73: =-1.08191317267319*10^-6 -> -1.1E-06 | AA73: 6.8E-01 | AB73: =7.89097392874561*10^-6 -> 7.9E-06 | AC73: 2.5E-02 | AD73: 1.0E-01 | AE73: 2.2E-02 | AF73: 3.9E-03 | AG73: 7.8E-02 | AH73: 3.8E-01 | AI73: 2.1E-04
A74: 21 | B74: 0.2 | C74: 1.0 | D74: 0.6 | E74: -1.6 | F74: -0.3 | G74: 0.5 | H74: 0.9 | I74: -0.2 | J74: 0.9 | K74: 0.9 | M74: 21 | N74: 2.1E-03 | O74: 6.7E-01 | P74: 1.2E-03 | Q74: 2.0E-02 | R74: 1.9E-01 | S74: 1.8E-02 | T74: 1.1E-02 | U74: 6.5E-02 | V74: 3.8E-01 | W74: 5.8E-03 | Y74: 21 | Z74: 1.6E-04 | AA74: 6.3E-01 | AB74: 4.3E-04 | AC74: 2.0E-02 | AD74: 1.0E-01 | AE74: 1.7E-02 | AF74: 4.6E-03 | AG74: 6.5E-02 | AH74: 3.2E-01 | AI74: 8.4E-04
A75: 22 | B75: 0.2 | C75: 1.0 | D75: 0.6 | E75: -1.7 | F75: -0.3 | G75: 0.5 | H75: 0.9 | I75: -0.2 | J75: 0.9 | K75: 0.9 | M75: 22 | N75: 3.0E-03 | O75: 5.9E-01 | P75: 2.6E-03 | Q75: 1.5E-02 | R75: 1.9E-01 | S75: 1.3E-02 | T75: 1.2E-02 | U75: 5.1E-02 | V75: 3.0E-01 | W75: 6.0E-03 | Y75: 22 | Z75: 6.1E-04 | AA75: 5.6E-01 | AB75: 1.5E-03 | AC75: 1.5E-02 | AD75: 1.0E-01 | AE75: 1.3E-02 | AF75: 5.4E-03 | AG75: 5.0E-02 | AH75: 2.6E-01 | AI75: 2.0E-03
A76: 23 | B76: 0.2 | C76: 1.0 | D76: 0.6 | E76: -1.8 | F76: -0.3 | G76: 0.5 | H76: 0.9 | I76: -0.3 | J76: 0.9 | K76: 0.9 | M76: 23 | N76: 4.3E-03 | O76: 4.8E-01 | P76: 4.8E-03 | Q76: 1.1E-02 | R76: 1.9E-01 | S76: 8.4E-03 | T76: 1.4E-02 | U76: 3.5E-02 | V76: 2.1E-01 | W76: 6.6E-03 | Y76: 23 | Z76: 1.3E-03 | AA76: 4.5E-01 | AB76: 3.2E-03 | AC76: 1.1E-02 | AD76: 1.0E-01 | AE76: 8.3E-03 | AF76: 6.3E-03 | AG76: 3.5E-02 | AH76: 1.8E-01 | AI76: 3.7E-03
A77: 24 | B77: 0.2 | C77: 1.0 | D77: 0.5 | E77: -2.0 | F77: -0.3 | G77: 0.5 | H77: 0.9 | I77: -0.3 | J77: 0.9 | K77: 0.9 | M77: 24 | N77: 6.0E-03 | O77: 3.1E-01 | P77: 7.7E-03 | Q77: 5.5E-03 | R77: 1.9E-01 | S77: 4.1E-03 | T77: 1.6E-02 | U77: 1.8E-02 | V77: 1.1E-01 | W77: 7.6E-03 | Y77: 24 | Z77: 2.4E-03 | AA77: 2.9E-01 | AB77: 5.7E-03 | AC77: 5.5E-03 | AD77: 1.0E-01 | AE77: 4.1E-03 | AF77: 7.2E-03 | AG77: 1.8E-02 | AH77: 9.8E-02 | AI77: 6.1E-03
A78: 25 | B78: 0.2 | C78: 1.0 | D78: 0.5 | E78: -2.1 | F78: -0.3 | G78: 0.5 | H78: 0.9 | I78: -0.3 | J78: 0.9 | K78: 0.9 | M78: 25 | N78: 7.9E-03 | O78: =3.0945655227528*10^-9 -> 3.1E-09 | P78: 1.2E-02 | Q78: =9.10299430138031*10^-10 -> 9.1E-10 | R78: 1.9E-01 | S78: =9.28782553023146*10^-6 -> 9.3E-06 | T78: 1.8E-02 | U78: =1.33930057474062*10^-7 -> 1.3E-07 | V78: =1.11719105089917*10^-9 -> 1.1E-09 | W78: 9.3E-03 | Y78: 25 | Z78: 3.6E-03 | AA78: =2.2084204256487*10^-9 -> 2.2E-09 | AB78: 8.9E-03 | AC78: =9.10299430138031*10^-10 -> 9.1E-10 | AD78: 1.0E-01 | AE78: =5.28925583405031*10^-11 -> 5.3E-11 | AF78: 8.1E-03 | AG78: =3.82491698944063*10^-8 -> 3.8E-08 | AH78: =1.65219975158955*10^-10 -> 1.7E-10 | AI78: 9.3E-03
A81: Relative CFs for decommissioning impacts, considering 25 years after decommissioning
A82: Scenario I-D: Full structure to sandy seabed | M82: Scenario II-D: Full structure to scour protection | Y82: Scenario III-D: Full structure to scour protection + 5m of foundation
A83: Unit: PDF.year/structure | M83: Unit: PDF.year/structure | Y83: Unit: PDF.year/structure
A84: Age, t [yr] | B84: TOTAL | C84: Porifera | D84: Cnidaria | E84: Worms | F84: Mollusca | G84: Arthropoda | H84: Bryozoa | I84: Echinodermata | J84: Chordata | K84: Aliens | M84: Age, t [yr] | N84: TOTAL | O84: Porifera | P84: Cnidaria | Q84: Worms | R84: Mollusca | S84: Arthropoda | T84: Bryozoa | U84: Echinodermata | V84: Chordata | W84: Aliens | Y84: Age, t [yr] | Z84: TOTAL | AA84: Porifera | AB84: Cnidaria | AC84: Worms | AD84: Mollusca | AE84: Arthropoda | AF84: Bryozoa | AG84: Echinodermata | AH84: Chordata | AI84: Aliens
A85: 1 | B85: =B54*25 -> -50 | C85: 25 | D85: -8 | E85: -1479 | F85: -71 | G85: -18 | H85: 19 | I85: -45 | J85: 23 | K85: 23 | M85: 1 | N85: =N54*25 -> 6 | O85: 5 | P85: 9 | Q85: 81 | R85: 5 | S85: 10 | T85: 1 | U85: 5 | V85: 14 | W85: 3 | Y85: 1 | Z85: =Z54*25 -> 5 | AA85: 12 | AB85: 8 | AC85: 81 | AD85: 3 | AE85: 9 | AF85: 0 | AG85: 5 | AH85: 13 | AI85: 2
A86: 2 | B86: =B55*25 -> -38 | C86: 25 | D86: -2 | E86: -379 | F86: -55 | G86: -12 | H86: 20 | I86: -37 | J86: 23 | K86: 23 | M86: 2 | N86: =N55*25 -> 4 | O86: =O55*25 -> 9 | P86: 7 | Q86: 21 | R86: 5 | S86: 8 | T86: 0 | U86: 5 | V86: 15 | W86: 2 | Y86: 2 | Z86: =Z55*25 -> 4 | AA86: 14 | AB86: 6 | AC86: 21 | AD86: 3 | AE86: 8 | AF86: 0 | AG86: 5 | AH86: 14 | AI86: 2
A87: 3 | B87: =B56*25 -> -29 | C87: 25 | D87: 2 | E87: -215 | F87: -44 | G87: -8 | H87: 20 | I87: -32 | J87: 23 | K87: 23 | M87: 3 | N87: =N56*25 -> 3 | O87: =O56*25 -> 11 | P87: 5 | Q87: 12 | R87: 5 | S87: 7 | T87: 0 | U87: 5 | V87: 16 | W87: 2 | Y87: 3 | Z87: =Z56*25 -> 3 | AA87: 15 | AB87: 5 | AC87: 12 | AD87: 3 | AE87: 6 | AF87: 0 | AG87: 5 | AH87: 15 | AI87: 2
A88: 4 | B88: =B57*25 -> -22 | C88: 25 | D88: 5 | E88: -149 | F88: -37 | G88: -4 | H88: 20 | I88: -27 | J88: 23 | K88: 23 | M88: 4 | N88: =N57*25 -> 3 | O88: =O57*25 -> 13 | P88: 4 | Q88: 8 | R88: 5 | S88: 6 | T88: 0 | U88: 5 | V88: 17 | W88: 2 | Y88: 4 | Z88: =Z57*25 -> 2 | AA88: 16 | AB88: 4 | AC88: 8 | AD88: 3 | AE88: 6 | AF88: 0 | AG88: 5 | AH88: 16 | AI88: 1
A89: 5 | B89: =B58*25 -> -18 | C89: 25 | D89: 7 | E89: -114 | F89: -31 | G89: -2 | H89: 21 | I89: -23 | J89: 23 | K89: 23 | M89: 5 | N89: =N58*25 -> 2 | O89: =O58*25 -> 15 | P89: 3 | Q89: 6 | R89: 5 | S89: 5 | T89: 0 | U89: 5 | V89: 18 | W89: 1 | Y89: 5 | Z89: =Z58*25 -> 2 | AA89: 17 | AB89: 3 | AC89: 6 | AD89: 3 | AE89: 5 | AF89: 0 | AG89: 5 | AH89: 16 | AI89: 1
A90: 6 | B90: =B59*25 -> -14 | C90: 25 | D90: 8 | E90: -92 | F90: -26 | G90: 1 | H90: 21 | I90: -20 | J90: 23 | K90: 24 | M90: 6 | N90: =N59*25 -> 2 | O90: =O59*25 -> 16 | P90: 2 | Q90: 5 | R90: 5 | S90: 4 | T90: 0 | U90: 5 | V90: 19 | W90: 1 | Y90: 6 | Z90: =Z59*25 -> 1 | AA90: 18 | AB90: 2 | AC90: 5 | AD90: 3 | AE90: 4 | AF90: 0 | AG90: 5 | AH90: 16 | AI90: 1
A91: 7 | B91: =B60*25 -> -11 | C91: 25 | D91: 9 | E91: -77 | F91: -22 | G91: 3 | H91: 21 | I91: -18 | J91: 23 | K91: 24 | M91: 7 | N91: =N60*25 -> 1 | O91: =O60*25 -> 17 | P91: 2 | Q91: 4 | R91: 5 | S91: 4 | T91: 0 | U91: 5 | V91: 19 | W91: 1 | Y91: 7 | Z91: =Z60*25 -> 1 | AA91: 19 | AB91: 2 | AC91: 4 | AD91: 3 | AE91: 4 | AF91: 0 | AG91: 5 | AH91: 17 | AI91: 1
A92: 8 | B92: =B61*25 -> -8 | C92: 25 | D92: 10 | E92: -66 | F92: -19 | G92: 4 | H92: 21 | I92: -16 | J92: 23 | K92: 24 | M92: 8 | N92: =N61*25 -> 1 | O92: =O61*25 -> 18 | P92: 2 | Q92: 3 | R92: 5 | S92: 3 | T92: 0 | U92: 5 | V92: 19 | W92: 1 | Y92: 8 | Z92: =Z61*25 -> 1 | AA92: 19 | AB92: 1 | AC92: 3 | AD92: 3 | AE92: 3 | AF92: 0 | AG92: 5 | AH92: 17 | AI92: 1
A93: 9 | B93: =B62*25 -> -6 | C93: 25 | D93: 11 | E93: -59 | F93: -17 | G93: 5 | H93: 21 | I93: -14 | J93: 24 | K93: 24 | M93: 9 | N93: =N62*25 -> 1 | O93: =O62*25 -> 19 | P93: 1 | Q93: 3 | R93: 5 | S93: 3 | T93: 0 | U93: 4 | V93: 19 | W93: 1 | Y93: 9 | Z93: =Z62*25 -> 1 | AA93: 19 | AB93: 1 | AC93: 3 | AD93: 3 | AE93: 3 | AF93: 0 | AG93: 4 | AH93: 17 | AI93: 0
A94: 10 | B94: =B63*25 -> -4 | C94: 25 | D94: 12 | E94: -53 | F94: -15 | G94: 6 | H94: 22 | I94: -13 | J94: 24 | K94: 24 | M94: 10 | N94: =N63*25 -> 1 | O94: =O63*25 -> 19 | P94: 1 | Q94: 2 | R94: 5 | S94: 3 | T94: 0 | U94: 4 | V94: 19 | W94: 1 | Y94: 10 | Z94: =Z63*25 -> 1 | AA94: 20 | AB94: 1 | AC94: 2 | AD94: 3 | AE94: 2 | AF94: 0 | AG94: 4 | AH94: 17 | AI94: 0
A95: 11 | B95: =B64*25 -> -3 | C95: 25 | D95: 12 | E95: -48 | F95: -13 | G95: 7 | H95: 22 | I95: -11 | J95: 24 | K95: 24 | M95: 11 | N95: =N64*25 -> 0 | O95: =O64*25 -> 20 | P95: 1 | Q95: 2 | R95: 5 | S95: 2 | T95: 0 | U95: 4 | V95: 19 | W95: 1 | Y95: 11 | Z95: =Z64*25 -> 0 | AA95: 20 | AB95: 1 | AC95: 2 | AD95: 3 | AE95: 2 | AF95: 0 | AG95: 4 | AH95: 16 | AI95: 0
A96: 12 | B96: =B65*25 -> -1 | C96: 25 | D96: 13 | E96: -45 | F96: -12 | G96: 8 | H96: 22 | I96: -10 | J96: 24 | K96: 24 | M96: 12 | N96: =N65*25 -> 0 | O96: =O65*25 -> 20 | P96: 1 | Q96: 2 | R96: 5 | S96: 2 | T96: 0 | U96: 4 | V96: 18 | W96: 0 | Y96: 12 | Z96: =Z65*25 -> 0.32 | AA96: 20 | AB96: 1 | AC96: 2 | AD96: 3 | AE96: 2 | AF96: 0 | AG96: 4 | AH96: 16 | AI96: 0
A97: 13 | B97: =B66*25 -> -0 | C97: 25 | D97: 13 | E97: -42 | F97: -11 | G97: 9 | H97: 22 | I97: -9 | J97: 24 | K97: 24 | M97: 13 | N97: =N66*25 -> 0 | O97: =O66*25 -> 20 | P97: 0 | Q97: 2 | R97: 5 | S97: 2 | T97: 0 | U97: 4 | V97: 18 | W97: 0 | Y97: 13 | Z97: =Z66*25 -> 0.24 | AA97: 20 | AB97: 0 | AC97: 2 | AD97: 3 | AE97: 2 | AF97: 0 | AG97: 4 | AH97: 16 | AI97: 0
A98: 14 | B98: =B67*25 -> 1 | C98: 25 | D98: 14 | E98: -40 | F98: -10 | G98: 10 | H98: 22 | I98: -9 | J98: 24 | K98: 24 | M98: 14 | N98: =N67*25 -> 0 | O98: =O67*25 -> 20 | P98: 0 | Q98: 1 | R98: 5 | S98: 2 | T98: 0 | U98: 4 | V98: 17 | W98: 0 | Y98: 14 | Z98: =Z67*25 -> 0.17 | AA98: 20 | AB98: 0 | AC98: 1 | AD98: 3 | AE98: 2 | AF98: 0 | AG98: 4 | AH98: 15 | AI98: 0
A99: 15 | B99: =B68*25 -> 2 | C99: 25 | D99: 14 | E99: -39 | F99: -9 | G99: 10 | H99: 22 | I99: -8 | J99: 24 | K99: 24 | M99: 15 | N99: =N68*25 -> 0 | O99: =O68*25 -> 20 | P99: 0 | Q99: 1 | R99: 5 | S99: 1 | T99: 0 | U99: 3 | V99: 17 | W99: 0 | Y99: 15 | Z99: =Z68*25 -> 0.11 | AA99: 20 | AB99: 0 | AC99: 1 | AD99: 3 | AE99: 1 | AF99: 0 | AG99: 3 | AH99: 14 | AI99: 0
A100: 16 | B100: =B69*25 -> 2 | C100: 25 | D100: 14 | E100: -38 | F100: -8 | G100: 11 | H100: 22 | I100: -7 | J100: 24 | K100: 24 | M100: 16 | N100: =N69*25 -> 0 | O100: =O69*25 -> 20 | P100: 0 | Q100: 1 | R100: 5 | S100: 1 | T100: 0 | U100: 3 | V100: 16 | W100: 0 | Y100: 16 | Z100: =Z69*25 -> 0.07 | AA100: 19 | AB100: 0 | AC100: 1 | AD100: 3 | AE100: 1 | AF100: 0 | AG100: 3 | AH100: 14 | AI100: 0
A101: 17 | B101: =B70*25 -> 3 | C101: 25 | D101: 14 | E101: -38 | F101: -8 | G101: 11 | H101: 22 | I101: -7 | J101: 24 | K101: 24 | M101: 17 | N101: =N70*25 -> 0 | O101: =O70*25 -> 20 | P101: 0 | Q101: 1 | R101: 5 | S101: 1 | T101: 0 | U101: 3 | V101: 15 | W101: 0 | Y101: 17 | Z101: =Z70*25 -> 0.04 | AA101: 19 | AB101: 0 | AC101: 1 | AD101: 3 | AE101: 1 | AF101: 0 | AG101: 3 | AH101: 13 | AI101: 0
A102: 18 | B102: =B71*25 -> 4 | C102: 25 | D102: 14 | E102: -38 | F102: -7 | G102: 12 | H102: 22 | I102: -7 | J102: 24 | K102: 24 | M102: 18 | N102: =N71*25 -> 0 | O102: =O71*25 -> 20 | P102: 0 | Q102: 1 | R102: 5 | S102: 1 | T102: 0 | U102: 3 | V102: 14 | W102: 0 | Y102: 18 | Z102: =Z71*25 -> 0.02 | AA102: 19 | AB102: 0 | AC102: 1 | AD102: 3 | AE102: 1 | AF102: 0 | AG102: 3 | AH102: 12 | AI102: 0
A103: 19 | B103: =B72*25 -> 4 | C103: 25 | D103: 14 | E103: -38 | F103: -7 | G103: 12 | H103: 23 | I103: -6 | J103: 24 | K103: 24 | M103: 19 | N103: =N72*25 -> 0 | O103: =O72*25 -> 19 | P103: 0 | Q103: 1 | R103: 5 | S103: 1 | T103: 0 | U103: 2 | V103: 13 | W103: 0 | Y103: 19 | Z103: =Z72*25 -> 0.00 | AA103: 18 | AB103: 0 | AC103: 1 | AD103: 3 | AE103: 1 | AF103: 0 | AG103: 2 | AH103: 11 | AI103: -0
A104: 20 | B104: =B73*25 -> 5 | C104: 25 | D104: 14 | E104: -39 | F104: -7 | G104: 12 | H104: 23 | I104: -6 | J104: 24 | K104: 24 | M104: 20 | N104: =N73*25 -> 0 | O104: =O73*25 -> 18 | P104: 0 | Q104: 1 | R104: 5 | S104: 1 | T104: 0 | U104: 2 | V104: 11 | W104: 0 | Y104: 20 | Z104: =Z73*25 -> -0.00 | AA104: 17 | AB104: 0 | AC104: 1 | AD104: 3 | AE104: 1 | AF104: 0 | AG104: 2 | AH104: 10 | AI104: 0
A105: 21 | B105: =B74*25 -> 5 | C105: 25 | D105: 14 | E105: -41 | F105: -7 | G105: 13 | H105: 23 | I105: -6 | J105: 23 | K105: 24 | M105: 21 | N105: =N74*25 -> 0 | O105: =O74*25 -> 17 | P105: 0 | Q105: 1 | R105: 5 | S105: 0 | T105: 0 | U105: 2 | V105: 9 | W105: 0 | Y105: 21 | Z105: =Z74*25 -> 0.00 | AA105: 16 | AB105: 0 | AC105: 1 | AD105: 3 | AE105: 0 | AF105: 0 | AG105: 2 | AH105: 8 | AI105: 0
A106: 22 | B106: =B75*25 -> 5 | C106: 25 | D106: 14 | E106: -43 | F106: -7 | G106: 13 | H106: 23 | I106: -6 | J106: 23 | K106: 24 | M106: 22 | N106: =N75*25 -> 0 | O106: =O75*25 -> 15 | P106: 0 | Q106: 0 | R106: 5 | S106: 0 | T106: 0 | U106: 1 | V106: 8 | W106: 0 | Y106: 22 | Z106: =Z75*25 -> 0.02 | AA106: 14 | AB106: 0 | AC106: 0 | AD106: 3 | AE106: 0 | AF106: 0 | AG106: 1 | AH106: 6 | AI106: 0
A107: 23 | B107: =B76*25 -> 6 | C107: 25 | D107: 14 | E107: -45 | F107: -7 | G107: 13 | H107: 23 | I107: -6 | J107: 23 | K107: 23 | M107: 23 | N107: =N76*25 -> 0 | O107: =O76*25 -> 12 | P107: 0 | Q107: 0 | R107: 5 | S107: 0 | T107: 0 | U107: 1 | V107: 5 | W107: 0 | Y107: 23 | Z107: =Z76*25 -> 0.03 | AA107: 11 | AB107: 0 | AC107: 0 | AD107: 2 | AE107: 0 | AF107: 0 | AG107: 1 | AH107: 5 | AI107: 0
A108: 24 | B108: =B77*25 -> 6 | C108: 25 | D108: 14 | E108: -49 | F108: -7 | G108: 14 | H108: 23 | I108: -7 | J108: 23 | K108: 23 | M108: 24 | N108: =N77*25 -> 0 | O108: =O77*25 -> 8 | P108: 0 | Q108: 0 | R108: 5 | S108: 0 | T108: 0 | U108: 0 | V108: 3 | W108: 0 | Y108: 24 | Z108: =Z77*25 -> 0.06 | AA108: 7 | AB108: 0 | AC108: 0 | AD108: 2 | AE108: 0 | AF108: 0 | AG108: 0 | AH108: 2 | AI108: 0
A109: 25 | B109: =B78*25 -> 6 | C109: 25 | D109: 13 | E109: -54 | F109: -8 | G109: 14 | H109: 23 | I109: -7 | J109: 23 | K109: 23 | M109: 25 | N109: =N78*25 -> 0 | O109: =O78*25 -> 0 | P109: 0 | Q109: 0 | R109: 5 | S109: 0 | T109: 0 | U109: 0 | V109: 0 | W109: 0 | Y109: 25 | Z109: =Z78*25 -> 0.09 | AA109: 0 | AB109: 0 | AC109: 0 | AD109: 3 | AE109: 0 | AF109: 0 | AG109: 0 | AH109: 0 | AI109: 0
A112: Relative CFs for lifetime impacts, considering 1 year after decommissioning
M113: Sandy seabed to scour protection | Y113: Sandy seabed to scour protection + 5m of foundation
M114: Unit: PDF.year/structure | Y114: Unit: PDF.year/structure
M115: Age, t [yr] | N115: TOTAL | O115: Porifera | P115: Cnidaria | Q115: Worms | R115: Mollusca | S115: Arthropoda | T115: Bryozoa | U115: Echinodermata | V115: Chordata | W115: Aliens | Y115: Age, t [yr] | Z115: TOTAL | AA115: Porifera | AB115: Cnidaria | AC115: Worms | AD115: Mollusca | AE115: Arthropoda | AF115: Bryozoa | AG115: Echinodermata | AH115: Chordata | AI115: Aliens
M116: 1 | N116: 1 | P116: 1 | Q116: 2 | R116: 2 | S116: 1 | T116: -6 | U116: 1 | V116: -16 | W116: -22 | Y116: 1 | Z116: 1 | AB116: 1 | AC116: 2 | AD116: 2 | AE116: 1 | AF116: -6 | AG116: 1 | AH116: -17 | AI116: -22
M117: 2 | N117: 2 | P117: 1 | Q117: 3 | R117: 2 | S117: 1 | T117: -10 | U117: 2 | V117: -28 | W117: -35 | Y117: 2 | Z117: 2 | AB117: 1 | AC117: 3 | AD117: 2 | AE117: 1 | AF117: -10 | AG117: 2 | AH117: -29 | AI117: -35
M118: 3 | N118: 3 | P118: 1 | Q118: 4 | R118: 3 | S118: 2 | T118: -14 | U118: 3 | V118: -41 | W118: -50 | Y118: 3 | Z118: 2 | AB118: 1 | AC118: 4 | AD118: 3 | AE118: 2 | AF118: -14 | AG118: 3 | AH118: -41 | AI118: -50
M119: 4 | N119: 3 | P119: 0 | Q119: 5 | R119: 3 | S119: 2 | T119: -18 | U119: 3 | V119: -54 | W119: -65 | Y119: 4 | Z119: 3 | AB119: 0 | AC119: 5 | AD119: 3 | AE119: 2 | AF119: -19 | AG119: 3 | AH119: -55 | AI119: -65
M120: 5 | N120: 3 | P120: -0 | Q120: 5 | R120: 4 | S120: 2 | T120: -23 | U120: 3 | V120: -67 | W120: -81 | Y120: 5 | Z120: 3 | AB120: -0 | AC120: 5 | AD120: 4 | AE120: 2 | AF120: -23 | AG120: 3 | AH120: -69 | AI120: -82
M121: 6 | N121: 4 | P121: -1 | Q121: 6 | R121: 4 | S121: 2 | T121: -29 | U121: 4 | V121: -82 | W121: -98 | Y121: 6 | Z121: 4 | AB121: -1 | AC121: 6 | AD121: 4 | AE121: 2 | AF121: -29 | AG121: 4 | AH121: -83 | AI121: -98
M122: 7 | N122: 4 | P122: -1 | Q122: 7 | R122: 5 | S122: 1 | T122: -34 | U122: 4 | V122: -97 | W122: -116 | Y122: 7 | Z122: 4 | AB122: -1 | AC122: 7 | AD122: 5 | AE122: 1 | AF122: -34 | AG122: 4 | AH122: -98 | AI122: -116
M123: 8 | N123: 4 | P123: -2 | Q123: 8 | R123: 5 | S123: 1 | T123: -40 | U123: 5 | V123: -112 | W123: -134 | Y123: 8 | Z123: 4 | AB123: -2 | AC123: 8 | AD123: 5 | AE123: 1 | AF123: -40 | AG123: 5 | AH123: -114 | AI123: -134
M124: 9 | N124: 4 | P124: -3 | Q124: 8 | R124: 6 | S124: 1 | T124: -46 | U124: 5 | V124: -128 | W124: -152 | Y124: 9 | Z124: 4 | AB124: -3 | AC124: 8 | AD124: 6 | AE124: 1 | AF124: -46 | AG124: 5 | AH124: -129 | AI124: -152
M125: 10 | N125: 4 | P125: -4 | Q125: 9 | R125: 6 | S125: 0 | T125: -53 | U125: 5 | V125: -144 | W125: -170 | Y125: 10 | Z125: 4 | AB125: -4 | AC125: 9 | AD125: 6 | AE125: 0 | AF125: -53 | AG125: 5 | AH125: -146 | AI125: -171
M126: 11 | N126: 4 | P126: -5 | Q126: 10 | R126: 6 | S126: -0 | T126: -59 | U126: 6 | V126: -160 | W126: -189 | Y126: 11 | Z126: 4 | AB126: -5 | AC126: 10 | AD126: 6 | AE126: -0 | AF126: -59 | AG126: 6 | AH126: -162 | AI126: -190
M127: 12 | N127: 4 | P127: -6 | Q127: 10 | R127: 7 | S127: -1 | T127: -67 | U127: 6 | V127: -177 | W127: -208 | Y127: 12 | Z127: 4 | AB127: -6 | AC127: 10 | AD127: 7 | AE127: -1 | AF127: -67 | AG127: 6 | AH127: -179 | AI127: -208
M128: 13 | N128: 4 | P128: -7 | Q128: 11 | R128: 7 | S128: -1 | T128: -74 | U128: 6 | V128: -194 | W128: -227 | Y128: 13 | Z128: 4 | AB128: -7 | AC128: 11 | AD128: 7 | AE128: -1 | AF128: -74 | AG128: 6 | AH128: -196 | AI128: -228
M129: 14 | N129: 4 | P129: -9 | Q129: 12 | R129: 7 | S129: -2 | T129: -82 | U129: 6 | V129: -211 | W129: -246 | Y129: 14 | Z129: 4 | AB129: -9 | AC129: 12 | AD129: 7 | AE129: -2 | AF129: -82 | AG129: 6 | AH129: -213 | AI129: -246
M130: 15 | N130: 4 | P130: -10 | Q130: 12 | R130: 8 | S130: -3 | T130: -90 | U130: 7 | V130: -228 | W130: -265 | Y130: 15 | Z130: 4 | AB130: -10 | AC130: 12 | AD130: 8 | AE130: -3 | AF130: -90 | AG130: 7 | AH130: -230 | AI130: -265
M131: 16 | N131: 4 | P131: -11 | Q131: 13 | R131: 8 | S131: -3 | T131: -99 | U131: 7 | V131: -246 | W131: -284 | Y131: 16 | Z131: 4 | AB131: -11 | AC131: 13 | AD131: 8 | AE131: -3 | AF131: -99 | AG131: 7 | AH131: -247 | AI131: -284
M132: 17 | N132: 4 | P132: -13 | Q132: 13 | R132: 8 | S132: -4 | T132: -107 | U132: 7 | V132: -263 | W132: -302 | Y132: 17 | Z132: 4 | AB132: -13 | AC132: 13 | AD132: 8 | AE132: -4 | AF132: -107 | AG132: 7 | AH132: -264 | AI132: -302
M133: 18 | N133: 4 | P133: -14 | Q133: 14 | R133: 8 | S133: -5 | T133: -116 | U133: 7 | V133: -280 | W133: -320 | Y133: 18 | Z133: 4 | AB133: -14 | AC133: 14 | AD133: 8 | AE133: -5 | AF133: -116 | AG133: 7 | AH133: -281 | AI133: -320
M134: 19 | N134: 4 | P134: -15 | Q134: 15 | R134: 8 | S134: -6 | T134: -126 | U134: 8 | V134: -297 | W134: -337 | Y134: 19 | Z134: 4 | AB134: -15 | AC134: 15 | AD134: 8 | AE134: -6 | AF134: -126 | AG134: 8 | AH134: -298 | AI134: -338
M135: 20 | N135: 3 | P135: -17 | Q135: 15 | R135: 9 | S135: -7 | T135: -135 | U135: 8 | V135: -314 | W135: -354 | Y135: 20 | Z135: 3 | AB135: -17 | AC135: 15 | AD135: 9 | AE135: -7 | AF135: -135 | AG135: 8 | AH135: -315 | AI135: -354
M136: 21 | N136: 3 | P136: -18 | Q136: 16 | R136: 9 | S136: -8 | T136: -145 | U136: 8 | V136: -331 | W136: -370 | Y136: 21 | Z136: 3 | AB136: -18 | AC136: 16 | AD136: 9 | AE136: -8 | AF136: -145 | AG136: 8 | AH136: -331 | AI136: -370
M137: 22 | N137: 3 | P137: -19 | Q137: 16 | R137: 9 | S137: -9 | T137: -155 | U137: 8 | V137: -347 | W137: -386 | Y137: 22 | Z137: 3 | AB137: -19 | AC137: 16 | AD137: 9 | AE137: -9 | AF137: -156 | AG137: 8 | AH137: -348 | AI137: -386
M138: 23 | N138: 3 | P138: -20 | Q138: 17 | R138: 9 | S138: -11 | T138: -166 | U138: 8 | V138: -363 | W138: -400 | Y138: 23 | Z138: 3 | AB138: -20 | AC138: 17 | AD138: 9 | AE138: -11 | AF138: -166 | AG138: 8 | AH138: -364 | AI138: -400
M139: 24 | N139: 2 | P139: -22 | Q139: 18 | R139: 10 | S139: -12 | T139: -177 | U139: 8 | V139: -379 | W139: -414 | Y139: 24 | Z139: 2 | AB139: -22 | AC139: 18 | AD139: 10 | AE139: -12 | AF139: -177 | AG139: 8 | AH139: -379 | AI139: -414
M140: 25 | N140: 2 | P140: -23 | Q140: 18 | R140: 10 | S140: -13 | T140: -188 | U140: 9 | V140: -394 | W140: -426 | Y140: 25 | Z140: 2 | AB140: -23 | AC140: 18 | AD140: 10 | AE140: -13 | AF140: -188 | AG140: 9 | AH140: -394 | AI140: -426
A142: Hard seabed to sandy seabed | M142: Hard seabed to scour protection | Y142: Hard seabed to scour protection + 5m of foundation
A143: Unit: PDF.year/structure | M143: Unit: PDF.year/structure | Y143: Unit: PDF.year/structure
A144: Age, t [yr] | B144: TOTAL | C144: Porifera | D144: Cnidaria | E144: Worms | F144: Mollusca | G144: Arthropoda | H144: Bryozoa | I144: Echinodermata | J144: Chordata | K144: Aliens | M144: Age, t [yr] | N144: TOTAL | O144: Porifera | P144: Cnidaria | Q144: Worms | R144: Mollusca | S144: Arthropoda | T144: Bryozoa | U144: Echinodermata | V144: Chordata | W144: Aliens | Y144: Age, t [yr] | Z144: TOTAL | AA144: Porifera | AB144: Cnidaria | AC144: Worms | AD144: Mollusca | AE144: Arthropoda | AF144: Bryozoa | AG144: Echinodermata | AH144: Chordata | AI144: Aliens
A145: 1 | B145: -0 | C145: -0 | D145: 1 | E145: -10 | F145: -5 | G145: -0 | H145: 1 | I145: -10 | J145: 25 | K145: 1 | M145: 1 | N145: 1 | O145: -2 | P145: 1 | Q145: 3 | R145: -0 | S145: 1 | T145: 1 | U145: -4 | V145: 2 | W145: -0 | Y145: 1 | Z145: 1 | AA145: -2 | AB145: 1 | AC145: 3 | AD145: -1 | AE145: 1 | AF145: 1 | AG145: -4 | AH145: 2 | AI145: -0
A146: 2 | B146: -0 | C146: -2 | D146: 2 | E146: -10 | F146: -5 | G146: -0 | H146: 2 | I146: -13 | J146: 26 | K146: 1 | M146: 2 | N146: 1 | O146: -4 | P146: 2 | Q146: 2 | R146: -1 | S146: 1 | T146: 1 | U146: -7 | V146: 2 | W146: -0 | Y146: 2 | Z146: 1 | AA146: -3 | AB146: 2 | AC146: 2 | AD146: -1 | AE146: 1 | AF146: 1 | AG146: -7 | AH146: 2 | AI146: -0
A147: 3 | B147: 0 | C147: -4 | D147: 2 | E147: -10 | F147: -6 | G147: -0 | H147: 2 | I147: -16 | J147: 26 | K147: 0 | M147: 3 | N147: 1 | O147: -6 | P147: 2 | Q147: 2 | R147: -2 | S147: 1 | T147: 1 | U147: -10 | V147: 3 | W147: -1 | Y147: 3 | Z147: 1 | AA147: -5 | AB147: 2 | AC147: 2 | AD147: -2 | AE147: 1 | AF147: 1 | AG147: -10 | AH147: 3 | AI147: -1
A148: 4 | B148: 0 | C148: -6 | D148: 3 | E148: -10 | F148: -7 | G148: -0 | H148: 2 | I148: -19 | J148: 27 | K148: 0 | M148: 4 | N148: 1 | O148: -7 | P148: 3 | Q148: 1 | R148: -3 | S148: 0 | T148: 2 | U148: -13 | V148: 3 | W148: -1 | Y148: 4 | Z148: 1 | AA148: -7 | AB148: 3 | AC148: 1 | AD148: -4 | AE148: 0 | AF148: 2 | AG148: -13 | AH148: 3 | AI148: -1
A149: 5 | B149: 0 | C149: -8 | D149: 3 | E149: -11 | F149: -8 | G149: -0 | H149: 2 | I149: -22 | J149: 28 | K149: -0 | M149: 5 | N149: 1 | O149: -10 | P149: 3 | Q149: -1 | R149: -5 | S149: -0 | T149: 2 | U149: -17 | V149: 4 | W149: -1 | Y149: 5 | Z149: 1 | AA149: -9 | AB149: 3 | AC149: -1 | AD149: -5 | AE149: -0 | AF149: 2 | AG149: -17 | AH149: 4 | AI149: -2
A150: 6 | B150: -0 | C150: -11 | D150: 3 | E150: -13 | F150: -10 | G150: -1 | H150: 3 | I150: -26 | J150: 28 | K150: -1 | M150: 6 | N150: 1 | O150: -12 | P150: 3 | Q150: -2 | R150: -7 | S150: -1 | T150: 2 | U150: -21 | V150: 5 | W150: -2 | Y150: 6 | Z150: 1 | AA150: -12 | AB150: 3 | AC150: -2 | AD150: -7 | AE150: -1 | AF150: 2 | AG150: -21 | AH150: 5 | AI150: -2
A151: 7 | B151: -0 | C151: -13 | D151: 4 | E151: -14 | F151: -12 | G151: -1 | H151: 3 | I151: -31 | J151: 29 | K151: -1 | M151: 7 | N151: 0 | O151: -15 | P151: 3 | Q151: -5 | R151: -8 | S151: -1 | T151: 2 | U151: -26 | V151: 5 | W151: -3 | Y151: 7 | Z151: 0 | AA151: -14 | AB151: 3 | AC151: -5 | AD151: -9 | AE151: -1 | AF151: 2 | AG151: -26 | AH151: 5 | AI151: -3
A152: 8 | B152: -1 | C152: -16 | D152: 4 | E152: -17 | F152: -13 | G152: -2 | H152: 3 | I152: -35 | J152: 29 | K152: -2 | M152: 8 | N152: -0 | O152: -17 | P152: 3 | Q152: -7 | R152: -11 | S152: -2 | T152: 2 | U152: -30 | V152: 6 | W152: -3 | Y152: 8 | Z152: -0 | AA152: -17 | AB152: 3 | AC152: -7 | AD152: -11 | AE152: -2 | AF152: 2 | AG152: -30 | AH152: 6 | AI152: -3
A153: 9 | B153: -1 | C153: -19 | D153: 4 | E153: -19 | F153: -16 | G153: -3 | H153: 3 | I153: -40 | J153: 30 | K153: -2 | M153: 9 | N153: -1 | O153: -20 | P153: 4 | Q153: -10 | R153: -13 | S153: -3 | T153: 2 | U153: -35 | V153: 6 | W153: -4 | Y153: 9 | Z153: -1 | AA153: -20 | AB153: 4 | AC153: -10 | AD153: -13 | AE153: -3 | AF153: 2 | AG153: -35 | AH153: 6 | AI153: -4
A154: 10 | B154: -2 | C154: -22 | D154: 4 | E154: -22 | F154: -18 | G154: -3 | H154: 3 | I154: -45 | J154: 30 | K154: -3 | M154: 10 | N154: -1 | O154: -23 | P154: 4 | Q154: -13 | R154: -15 | S154: -4 | T154: 2 | U154: -41 | V154: 7 | W154: -5 | Y154: 10 | Z154: -1 | AA154: -23 | AB154: 4 | AC154: -13 | AD154: -16 | AE154: -4 | AF154: 2 | AG154: -41 | AH154: 7 | AI154: -5
A155: 11 | B155: -2 | C155: -25 | D155: 4 | E155: -25 | F155: -20 | G155: -4 | H155: 3 | I155: -50 | J155: 31 | K155: -4 | M155: 11 | N155: -2 | O155: -26 | P155: 4 | Q155: -17 | R155: -18 | S155: -5 | T155: 2 | U155: -46 | V155: 8 | W155: -5 | Y155: 11 | Z155: -2 | AA155: -26 | AB155: 4 | AC155: -17 | AD155: -18 | AE155: -5 | AF155: 2 | AG155: -46 | AH155: 7 | AI155: -5
A156: 12 | B156: -3 | C156: -28 | D156: 4 | E156: -28 | F156: -23 | G156: -5 | H156: 3 | I156: -55 | J156: 32 | K156: -4 | M156: 12 | N156: -3 | O156: -28 | P156: 4 | Q156: -20 | R156: -20 | S156: -6 | T156: 2 | U156: -52 | V156: 8 | W156: -6 | Y156: 12 | Z156: -3 | AA156: -29 | AB156: 4 | AC156: -20 | AD156: -21 | AE156: -6 | AF156: 2 | AG156: -52 | AH156: 8 | AI156: -6
A157: 13 | B157: -4 | C157: -31 | D157: 4 | E157: -32 | F157: -26 | G157: -7 | H157: 2 | I157: -61 | J157: 32 | K157: -5 | M157: 13 | N157: -4 | O157: -31 | P157: 3 | Q157: -24 | R157: -23 | S157: -7 | T157: 1 | U157: -57 | V157: 9 | W157: -7 | Y157: 13 | Z157: -4 | AA157: -31 | AB157: 3 | AC157: -24 | AD157: -24 | AE157: -7 | AF157: 1 | AG157: -57 | AH157: 9 | AI157: -7
A158: 14 | B158: -5 | C158: -33 | D158: 4 | E158: -35 | F158: -28 | G158: -8 | H158: 2 | I158: -67 | J158: 33 | K158: -6 | M158: 14 | N158: -5 | O158: -34 | P158: 3 | Q158: -28 | R158: -26 | S158: -9 | T158: 1 | U158: -63 | V158: 9 | W158: -7 | Y158: 14 | Z158: -5 | AA158: -34 | AB158: 3 | AC158: -28 | AD158: -26 | AE158: -9 | AF158: 1 | AG158: -63 | AH158: 9 | AI158: -7
A159: 15 | B159: -6 | C159: -36 | D159: 4 | E159: -39 | F159: -31 | G159: -9 | H159: 2 | I159: -73 | J159: 33 | K159: -7 | M159: 15 | N159: -6 | O159: -37 | P159: 3 | Q159: -31 | R159: -29 | S159: -10 | T159: 1 | U159: -69 | V159: 10 | W159: -8 | Y159: 15 | Z159: -6 | AA159: -37 | AB159: 3 | AC159: -31 | AD159: -29 | AE159: -10 | AF159: 1 | AG159: -70 | AH159: 10 | AI159: -8
A160: 16 | B160: -7 | C160: -39 | D160: 4 | E160: -43 | F160: -34 | G160: -11 | H160: 2 | I160: -79 | J160: 34 | K160: -7 | M160: 16 | N160: -7 | O160: -40 | P160: 3 | Q160: -35 | R160: -32 | S160: -12 | T160: 0 | U160: -76 | V160: 10 | W160: -9 | Y160: 16 | Z160: -7 | AA160: -40 | AB160: 3 | AC160: -35 | AD160: -33 | AE160: -12 | AF160: 0 | AG160: -76 | AH160: 10 | AI160: -9
A161: 17 | B161: -8 | C161: -41 | D161: 4 | E161: -47 | F161: -37 | G161: -12 | H161: 1 | I161: -85 | J161: 34 | K161: -8 | M161: 17 | N161: -8 | O161: -42 | P161: 3 | Q161: -39 | R161: -35 | S161: -13 | T161: -0 | U161: -82 | V161: 11 | W161: -9 | Y161: 17 | Z161: -8 | AA161: -42 | AB161: 3 | AC161: -39 | AD161: -36 | AE161: -13 | AF161: -0 | AG161: -82 | AH161: 11 | AI161: -9
A162: 18 | B162: -9 | C162: -44 | D162: 3 | E162: -51 | F162: -40 | G162: -14 | H162: 1 | I162: -91 | J162: 35 | K162: -9 | M162: 18 | N162: -9 | O162: -44 | P162: 3 | Q162: -43 | R162: -38 | S162: -15 | T162: -0 | U162: -88 | V162: 11 | W162: -10 | Y162: 18 | Z162: -9 | AA162: -45 | AB162: 3 | AC162: -43 | AD162: -39 | AE162: -15 | AF162: -0 | AG162: -88 | AH162: 11 | AI162: -10
A163: 19 | B163: -10 | C163: -46 | D163: 3 | E163: -55 | F163: -44 | G163: -15 | H163: 0 | I163: -97 | J163: 35 | K163: -9 | M163: 19 | N163: -11 | O163: -47 | P163: 3 | Q163: -47 | R163: -42 | S163: -17 | T163: -1 | U163: -95 | V163: 12 | W163: -11 | Y163: 19 | Z163: -11 | AA163: -47 | AB163: 3 | AC163: -47 | AD163: -42 | AE163: -17 | AF163: -1 | AG163: -95 | AH163: 12 | AI163: -11
A164: 20 | B164: -11 | C164: -48 | D164: 3 | E164: -59 | F164: -47 | G164: -17 | H164: -0 | I164: -104 | J164: 36 | K164: -10 | M164: 20 | N164: -12 | O164: -49 | P164: 3 | Q164: -51 | R164: -45 | S164: -18 | T164: -1 | U164: -101 | V164: 12 | W164: -11 | Y164: 20 | Z164: -12 | AA164: -49 | AB164: 3 | AC164: -51 | AD164: -45 | AE164: -18 | AF164: -1 | AG164: -101 | AH164: 12 | AI164: -11
A165: 21 | B165: -13 | C165: -49 | D165: 3 | E165: -62 | F165: -50 | G165: -19 | H165: -1 | I165: -110 | J165: 36 | K165: -10 | M165: 21 | N165: -13 | O165: -50 | P165: 2 | Q165: -55 | R165: -48 | S165: -20 | T165: -2 | U165: -108 | V165: 13 | W165: -12 | Y165: 21 | Z165: -13 | AA165: -50 | AB165: 2 | AC165: -55 | AD165: -48 | AE165: -20 | AF165: -2 | AG165: -108 | AH165: 13 | AI165: -12
A166: 22 | B166: -14 | C166: -51 | D166: 3 | E166: -66 | F166: -53 | G166: -21 | H166: -1 | I166: -116 | J166: 37 | K166: -11 | M166: 22 | N166: -15 | O166: -52 | P166: 2 | Q166: -58 | R166: -51 | S166: -22 | T166: -3 | U166: -114 | V166: 13 | W166: -12 | Y166: 22 | Z166: -15 | AA166: -52 | AB166: 2 | AC166: -58 | AD166: -52 | AE166: -22 | AF166: -3 | AG166: -114 | AH166: 13 | AI166: -12
A167: 23 | B167: -16 | C167: -52 | D167: 3 | E167: -69 | F167: -56 | G167: -23 | H167: -2 | I167: -123 | J167: 38 | K167: -11 | M167: 23 | N167: -16 | O167: -53 | P167: 2 | Q167: -61 | R167: -54 | S167: -24 | T167: -3 | U167: -121 | V167: 14 | W167: -12 | Y167: 23 | Z167: -16 | AA167: -53 | AB167: 2 | AC167: -61 | AD167: -55 | AE167: -24 | AF167: -3 | AG167: -121 | AH167: 14 | AI167: -12
A168: 24 | B168: -17 | C168: -53 | D168: 3 | E168: -73 | F168: -59 | G168: -25 | H168: -2 | I168: -129 | J168: 38 | K168: -11 | M168: 24 | N168: -18 | O168: -54 | P168: 2 | Q168: -64 | R168: -57 | S168: -26 | T168: -4 | U168: -127 | V168: 14 | W168: -13 | Y168: 24 | Z168: -18 | AA168: -54 | AB168: 2 | AC168: -64 | AD168: -58 | AE168: -26 | AF168: -4 | AG168: -127 | AH168: 14 | AI168: -13
A169: 25 | B169: -18 | C169: -53 | D169: 3 | E169: -76 | F169: -63 | G169: -27 | H169: -3 | I169: -135 | J169: 39 | K169: -12 | M169: 25 | N169: -19 | O169: -54 | P169: 2 | Q169: -67 | R169: -60 | S169: -29 | T169: -5 | U169: -133 | V169: 15 | W169: -13 | Y169: 25 | Z169: -19 | AA169: -54 | AB169: 2 | AC169: -67 | AD169: -61 | AE169: -29 | AF169: -5 | AG169: -133 | AH169: 15 | AI169: -13
A172: Relative CFs for lifetime impacts, considering 25 years after decommissioning
M173: Sandy seabed to scour protection | Y173: Sandy seabed to scour protection + 5m of foundation
M174: Unit: PDF.year/structure | Y174: Unit: PDF.year/structure
M175: Age, t [yr] | N175: TOTAL | O175: Porifera | P175: Cnidaria | Q175: Worms | R175: Mollusca | S175: Arthropoda | T175: Bryozoa | U175: Echinodermata | V175: Chordata | W175: Aliens | Y175: Age, t [yr] | Z175: TOTAL | AA175: Porifera | AB175: Cnidaria | AC175: Worms | AD175: Mollusca | AE175: Arthropoda | AF175: Bryozoa | AG175: Echinodermata | AH175: Chordata | AI175: Aliens
M176: 1 | N176: 19 | P176: 13 | Q176: 27 | R176: 20 | S176: 17 | T176: -81 | U176: 18 | V176: -130 | W176: -273 | Y176: 1 | Z176: 19 | AB176: 13 | AC176: 27 | AD176: 20 | AE176: 16 | AF176: -82 | AG176: 18 | AH176: -140 | AI176: -278
M177: 2 | N177: 18 | P177: 9 | Q177: 27 | R177: 20 | S177: 15 | T177: -94 | U177: 18 | V177: -130 | W177: -316 | Y177: 2 | Z177: 18 | AB177: 8 | AC177: 27 | AD177: 19 | AE177: 14 | AF177: -95 | AG177: 18 | AH177: -146 | AI177: -320
M178: 3 | N178: 17 | P178: 4 | Q178: 27 | R178: 20 | S178: 12 | T178: -107 | U178: 18 | V178: -133 | W178: -357 | Y178: 3 | Z178: 17 | AB178: 4 | AC178: 27 | AD178: 19 | AE178: 12 | AF178: -108 | AG178: 18 | AH178: -154 | AI178: -362
M179: 4 | N179: 16 | P179: -1 | Q179: 26 | R179: 20 | S179: 10 | T179: -120 | U179: 18 | V179: -138 | W179: -396 | Y179: 4 | Z179: 15 | AB179: -1 | AC179: 26 | AD179: 19 | AE179: 10 | AF179: -121 | AG179: 18 | AH179: -163 | AI179: -402
M180: 5 | N180: 14 | P180: -5 | Q180: 26 | R180: 19 | S180: 8 | T180: -134 | U180: 18 | V180: -146 | W180: -435 | Y180: 5 | Z180: 14 | AB180: -5 | AC180: 26 | AD180: 18 | AE180: 7 | AF180: -134 | AG180: 17 | AH180: -175 | AI180: -440
M181: 6 | N181: 13 | P181: -9 | Q181: 26 | R181: 19 | S181: 5 | T181: -148 | U181: 17 | V181: -156 | W181: -471 | Y181: 6 | Z181: 13 | AB181: -9 | AC181: 26 | AD181: 18 | AE181: 5 | AF181: -148 | AG181: 17 | AH181: -188 | AI181: -476
M182: 7 | N182: 12 | P182: -13 | Q182: 26 | R182: 19 | S182: 3 | T182: -162 | U182: 17 | V182: -168 | W182: -506 | Y182: 7 | Z182: 12 | AB182: -13 | AC182: 26 | AD182: 17 | AE182: 3 | AF182: -162 | AG182: 17 | AH182: -204 | AI182: -511
M183: 8 | N183: 11 | P183: -17 | Q183: 26 | R183: 18 | S183: 0 | T183: -176 | U183: 17 | V183: -183 | W183: -539 | Y183: 8 | Z183: 11 | AB183: -17 | AC183: 26 | AD183: 17 | AE183: 0 | AF183: -176 | AG183: 17 | AH183: -221 | AI183: -544
M184: 9 | N184: 9 | P184: -21 | Q184: 26 | R184: 18 | S184: -2 | T184: -191 | U184: 16 | V184: -200 | W184: -570 | Y184: 9 | Z184: 9 | AB184: -21 | AC184: 26 | AD184: 17 | AE184: -2 | AF184: -191 | AG184: 16 | AH184: -239 | AI184: -575
M185: 10 | N185: 8 | P185: -24 | Q185: 26 | R185: 18 | S185: -5 | T185: -205 | U185: 16 | V185: -219 | W185: -599 | Y185: 10 | Z185: 8 | AB185: -24 | AC185: 26 | AD185: 17 | AE185: -5 | AF185: -205 | AG185: 16 | AH185: -260 | AI185: -604
M186: 11 | N186: 7 | P186: -28 | Q186: 26 | R186: 18 | S186: -7 | T186: -220 | U186: 16 | V186: -240 | W186: -626 | Y186: 11 | Z186: 7 | AB186: -28 | AC186: 26 | AD186: 16 | AE186: -7 | AF186: -220 | AG186: 16 | AH186: -282 | AI186: -631
M187: 12 | N187: 6 | P187: -31 | Q187: 26 | R187: 18 | S187: -10 | T187: -235 | U187: 16 | V187: -263 | W187: -651 | Y187: 12 | Z187: 6 | AB187: -31 | AC187: 26 | AD187: 16 | AE187: -10 | AF187: -235 | AG187: 16 | AH187: -305 | AI187: -656
M188: 13 | N188: 5 | P188: -34 | Q188: 27 | R188: 17 | S188: -12 | T188: -250 | U188: 15 | V188: -288 | W188: -674 | Y188: 13 | Z188: 5 | AB188: -34 | AC188: 27 | AD188: 16 | AE188: -12 | AF188: -250 | AG188: 15 | AH188: -330 | AI188: -678
M189: 14 | N189: 4 | P189: -37 | Q189: 27 | R189: 17 | S189: -15 | T189: -266 | U189: 15 | V189: -315 | W189: -694 | Y189: 14 | Z189: 4 | AB189: -37 | AC189: 27 | AD189: 16 | AE189: -15 | AF189: -266 | AG189: 15 | AH189: -357 | AI189: -699
M190: 15 | N190: 3 | P190: -39 | Q190: 27 | R190: 17 | S190: -17 | T190: -281 | U190: 15 | V190: -344 | W190: -712 | Y190: 15 | Z190: 3 | AB190: -39 | AC190: 27 | AD190: 16 | AE190: -17 | AF190: -282 | AG190: 15 | AH190: -384 | AI190: -716
M191: 16 | N191: 2 | P191: -41 | Q191: 28 | R191: 17 | S191: -20 | T191: -297 | U191: 15 | V191: -375 | W191: -727 | Y191: 16 | Z191: 2 | AB191: -41 | AC191: 28 | AD191: 16 | AE191: -20 | AF191: -297 | AG191: 15 | AH191: -413 | AI191: -731
M192: 17 | N192: 1 | P192: -43 | Q192: 28 | R192: 17 | S192: -22 | T192: -313 | U192: 14 | V192: -408 | W192: -740 | Y192: 17 | Z192: 1 | AB192: -43 | AC192: 28 | AD192: 16 | AE192: -22 | AF192: -313 | AG192: 14 | AH192: -444 | AI192: -744
M193: 18 | N193: -0 | P193: -45 | Q193: 29 | R193: 17 | S193: -25 | T193: -329 | U193: 14 | V193: -442 | W193: -750 | Y193: 18 | Z193: -0 | AB193: -45 | AC193: 29 | AD193: 16 | AE193: -25 | AF193: -330 | AG193: 14 | AH193: -475 | AI193: -753
M194: 19 | N194: -1 | P194: -47 | Q194: 29 | R194: 17 | S194: -27 | T194: -345 | U194: 14 | V194: -478 | W194: -757 | Y194: 19 | Z194: -1 | AB194: -47 | AC194: 29 | AD194: 16 | AE194: -27 | AF194: -346 | AG194: 14 | AH194: -508 | AI194: -760
M195: 20 | N195: -2 | P195: -48 | Q195: 30 | R195: 18 | S195: -30 | T195: -361 | U195: 14 | V195: -516 | W195: -761 | Y195: 20 | Z195: -2 | AB195: -48 | AC195: 30 | AD195: 16 | AE195: -30 | AF195: -363 | AG195: 14 | AH195: -542 | AI195: -764
M196: 21 | N196: -3 | P196: -49 | Q196: 31 | R196: 18 | S196: -32 | T196: -378 | U196: 14 | V196: -555 | W196: -763 | Y196: 21 | Z196: -3 | AB196: -49 | AC196: 31 | AD196: 16 | AE196: -32 | AF196: -379 | AG196: 14 | AH196: -577 | AI196: -765
M197: 22 | N197: -4 | P197: -50 | Q197: 32 | R197: 18 | S197: -35 | T197: -394 | U197: 14 | V197: -596 | W197: -761 | Y197: 22 | Z197: -4 | AB197: -50 | AC197: 32 | AD197: 16 | AE197: -35 | AF197: -396 | AG197: 14 | AH197: -613 | AI197: -762
M198: 23 | N198: -4 | P198: -50 | Q198: 33 | R198: 18 | S198: -37 | T198: -411 | U198: 14 | V198: -638 | W198: -756 | Y198: 23 | Z198: -4 | AB198: -50 | AC198: 33 | AD198: 17 | AE198: -37 | AF198: -413 | AG198: 14 | AH198: -650 | AI198: -757
M199: 24 | N199: -5 | P199: -50 | Q199: 34 | R199: 19 | S199: -40 | T199: -428 | U199: 14 | V199: -682 | W199: -748 | Y199: 24 | Z199: -5 | AB199: -50 | AC199: 34 | AD199: 17 | AE199: -40 | AF199: -430 | AG199: 14 | AH199: -688 | AI199: -748
M200: 25 | N200: -6 | P200: -50 | Q200: 35 | R200: 19 | S200: -42 | T200: -445 | U200: 14 | V200: -727 | W200: -736 | Y200: 25 | Z200: -6 | AB200: -50 | AC200: 35 | AD200: 17 | AE200: -42 | AF200: -448 | AG200: 14 | AH200: -727 | AI200: -736
A202: Hard seabed to sandy seabed | M202: Hard seabed to scour protection | Y202: Hard seabed to scour protection + 5m of foundation
A203: Unit: PDF.year/structure | M203: Unit: PDF.year/structure | Y203: Unit: PDF.year/structure
A204: Age, t [yr] | B204: TOTAL | C204: Porifera | D204: Cnidaria | E204: Worms | F204: Mollusca | G204: Arthropoda | H204: Bryozoa | I204: Echinodermata | J204: Chordata | K204: Aliens | M204: Age, t [yr] | N204: TOTAL | O204: Porifera | P204: Cnidaria | Q204: Worms | R204: Mollusca | S204: Arthropoda | T204: Bryozoa | U204: Echinodermata | V204: Chordata | W204: Aliens | Y204: Age, t [yr] | Z204: TOTAL | AA204: Porifera | AB204: Cnidaria | AC204: Worms | AD204: Mollusca | AE204: Arthropoda | AF204: Bryozoa | AG204: Echinodermata | AH204: Chordata | AI204: Aliens
A205: 1 | B205: -21 | C205: 24 | D205: 13 | E205: -281 | F205: -109 | G205: -10 | H205: 22 | I205: -207 | J205: 25 | K205: 23 | M205: 1 | N205: 14 | O205: -26 | P205: 20 | Q205: 38 | R205: -3 | S205: 13 | T205: 11 | U205: -43 | V205: 22 | W205: 0 | Y205: 1 | Z205: 13 | AA205: -10 | AB205: 20 | AC205: 38 | AD205: -7 | AE205: 13 | AF205: 11 | AG205: -43 | AH205: 22 | AI205: -0
A206: 2 | B206: -21 | C206: 22 | D206: 14 | E206: -281 | F206: -110 | G206: -10 | H206: 22 | I206: -209 | J206: 26 | K206: 23 | M206: 2 | N206: 10 | O206: -23 | P206: 18 | Q206: 23 | R206: -10 | S206: 10 | T206: 10 | U206: -53 | V206: 23 | W206: -2 | Y206: 2 | Z206: 10 | AA206: -9 | AB206: 18 | AC206: 23 | AD206: -13 | AE206: 9 | AF206: 10 | AG206: -53 | AH206: 22 | AI206: -3
A207: 3 | B207: -21 | C207: 20 | D207: 14 | E207: -281 | F207: -110 | G207: -10 | H207: 23 | I207: -212 | J207: 26 | K207: 22 | M207: 3 | N207: 7 | O207: -21 | P207: 16 | Q207: 10 | R207: -16 | S207: 6 | T207: 9 | U207: -64 | V207: 24 | W207: -5 | Y207: 3 | Z207: 7 | AA207: -9 | AB207: 16 | AC207: 10 | AD207: -20 | AE207: 6 | AF207: 9 | AG207: -64 | AH207: 23 | AI207: -5
A208: 4 | B208: -21 | C208: 18 | D208: 15 | E208: -281 | F208: -111 | G208: -10 | H208: 23 | I208: -215 | J208: 27 | K208: 22 | M208: 4 | N208: 4 | O208: -20 | P208: 14 | Q208: -4 | R208: -22 | S208: 2 | T208: 8 | U208: -74 | V208: 25 | W208: -7 | Y208: 4 | Z208: 4 | AA208: -10 | AB208: 14 | AC208: -4 | AD208: -27 | AE208: 2 | AF208: 7 | AG208: -74 | AH208: 24 | AI208: -8
A209: 5 | B209: -21 | C209: 16 | D209: 15 | E209: -282 | F209: -113 | G209: -10 | H209: 23 | I209: -219 | J209: 28 | K209: 22 | M209: 5 | N209: 1 | O209: -19 | P209: 13 | Q209: -17 | R209: -28 | S209: -1 | T209: 6 | U209: -85 | V209: 25 | W209: -10 | Y209: 5 | Z209: 1 | AA209: -10 | AB209: 13 | AC209: -17 | AD209: -33 | AE209: -2 | AF209: 6 | AG209: -85 | AH209: 25 | AI209: -10
A210: 6 | B210: -21 | C210: 13 | D210: 16 | E210: -284 | F210: -114 | G210: -10 | H210: 23 | I210: -223 | J210: 28 | K210: 21 | M210: 6 | N210: -2 | O210: -18 | P210: 11 | Q210: -29 | R210: -34 | S210: -5 | T210: 5 | U210: -95 | V210: 26 | W210: -12 | Y210: 6 | Z210: -3 | AA210: -11 | AB210: 11 | AC210: -29 | AD210: -40 | AE210: -5 | AF210: 5 | AG210: -96 | AH210: 25 | AI210: -12
A211: 7 | B211: -21 | C211: 11 | D211: 16 | E211: -285 | F211: -116 | G211: -11 | H211: 23 | I211: -227 | J211: 29 | K211: 21 | M211: 7 | N211: -6 | O211: -18 | P211: 10 | Q211: -42 | R211: -39 | S211: -9 | T211: 4 | U211: -106 | V211: 27 | W211: -14 | Y211: 7 | Z211: -6 | AA211: -13 | AB211: 10 | AC211: -42 | AD211: -46 | AE211: -9 | AF211: 4 | AG211: -106 | AH211: 26 | AI211: -15
A212: 8 | B212: -21 | C212: 8 | D212: 16 | E212: -288 | F212: -118 | G212: -12 | H212: 23 | I212: -232 | J212: 29 | K212: 20 | M212: 8 | N212: -9 | O212: -18 | P212: 8 | Q212: -53 | R212: -45 | S212: -13 | T212: 3 | U212: -117 | V212: 27 | W212: -16 | Y212: 8 | Z212: -9 | AA212: -15 | AB212: 8 | AC212: -53 | AD212: -52 | AE212: -13 | AF212: 3 | AG212: -117 | AH212: 26 | AI212: -16
A213: 9 | B213: -22 | C213: 5 | D213: 16 | E213: -290 | F213: -120 | G213: -12 | H213: 23 | I213: -236 | J213: 30 | K213: 20 | M213: 9 | N213: -12 | O213: -19 | P213: 7 | Q213: -64 | R213: -51 | S213: -17 | T213: 2 | U213: -128 | V213: 28 | W213: -18 | Y213: 9 | Z213: -12 | AA213: -16 | AB213: 7 | AC213: -64 | AD213: -58 | AE213: -17 | AF213: 2 | AG213: -128 | AH213: 27 | AI213: -18
A214: 10 | B214: -22 | C214: 2 | D214: 16 | E214: -293 | F214: -122 | G214: -13 | H214: 23 | I214: -241 | J214: 30 | K214: 19 | M214: 10 | N214: -15 | O214: -20 | P214: 6 | Q214: -75 | R214: -56 | S214: -20 | T214: 0 | U214: -138 | V214: 28 | W214: -19 | Y214: 10 | Z214: -15 | AA214: -19 | AB214: 6 | AC214: -75 | AD214: -64 | AE214: -21 | AF214: 0 | AG214: -138 | AH214: 27 | AI214: -20
A215: 11 | B215: -23 | C215: -1 | D215: 16 | E215: -296 | F215: -125 | G215: -14 | H215: 23 | I215: -247 | J215: 31 | K215: 18 | M215: 11 | N215: -18 | O215: -21 | P215: 5 | Q215: -84 | R215: -62 | S215: -24 | T215: -1 | U215: -149 | V215: 29 | W215: -21 | Y215: 11 | Z215: -18 | AA215: -21 | AB215: 5 | AC215: -84 | AD215: -70 | AE215: -25 | AF215: -1 | AG215: -149 | AH215: 28 | AI215: -21
A216: 12 | B216: -24 | C216: -4 | D216: 16 | E216: -299 | F216: -127 | G216: -15 | H216: 23 | I216: -252 | J216: 32 | K216: 18 | M216: 12 | N216: -21 | O216: -23 | P216: 4 | Q216: -94 | R216: -67 | S216: -28 | T216: -2 | U216: -159 | V216: 29 | W216: -22 | Y216: 12 | Z216: -21 | AA216: -24 | AB216: 4 | AC216: -94 | AD216: -75 | AE216: -28 | AF216: -2 | AG216: -160 | AH216: 28 | AI216: -22
A217: 13 | B217: -25 | C217: -7 | D217: 16 | E217: -303 | F217: -130 | G217: -16 | H217: 23 | I217: -258 | J217: 32 | K217: 17 | M217: 13 | N217: -24 | O217: -25 | P217: 3 | Q217: -102 | R217: -72 | S217: -32 | T217: -3 | U217: -170 | V217: 29 | W217: -23 | Y217: 13 | Z217: -24 | AA217: -26 | AB217: 3 | AC217: -102 | AD217: -81 | AE217: -32 | AF217: -3 | AG217: -170 | AH217: 28 | AI217: -23
A218: 14 | B218: -26 | C218: -9 | D218: 16 | E218: -306 | F218: -133 | G218: -17 | H218: 23 | I218: -263 | J218: 33 | K218: 16 | M218: 14 | N218: -27 | O218: -27 | P218: 2 | Q218: -110 | R218: -77 | S218: -36 | T218: -5 | U218: -180 | V218: 30 | W218: -24 | Y218: 14 | Z218: -27 | AA218: -29 | AB218: 2 | AC218: -110 | AD218: -86 | AE218: -36 | AF218: -5 | AG218: -180 | AH218: 29 | AI218: -24
A219: 15 | B219: -26 | C219: -12 | D219: 16 | E219: -310 | F219: -136 | G219: -19 | H219: 22 | I219: -269 | J219: 33 | K219: 15 | M219: 15 | N219: -30 | O219: -29 | P219: 1 | Q219: -117 | R219: -82 | S219: -40 | T219: -6 | U219: -191 | V219: 30 | W219: -24 | Y219: 15 | Z219: -30 | AA219: -32 | AB219: 1 | AC219: -117 | AD219: -91 | AE219: -40 | AF219: -6 | AG219: -191 | AH219: 29 | AI219: -25
... 10 more rows

Sheet 3. Absolute CFs per turbine
A1: Absolute Characterization Factors for impacts on species from habitat changes associated with the turbine structures [species.yr/turbine]
A3: The Characterization Factors (CFs) presented in this sheet represent the absolute impacts on species richness within each species group associated with construction, decommissioning, and the whole lifetime of a turbine structure in the North Sea. The CFs are given for structure ages 1-25 years. Unit: species.year/turbine.
A8: Color scale
A9: The cells are colored according to what is interpreted as a positive, neutral or negative impact. The coloring is different for alien species compared to all other species groups, as and increas of alien species is not considered positive like an increase in the other species groups are in LCA.
B12: Aliens | C12: All other species
A13: Positive | B13: Decrease in species.year (positive numbers) | C13: Increase in species.year (negative numbers)
A14: No impact | B14: Constant number of species
A15: Negative | B15: Increase in species.year (negative numbers) | C15: Decrease in species.year (positive numbers)
A17: Absolute CFs for construction impacts
A18: Scenario I-C: From sandy seabed to the full structure. | M18: Scenario II-C: From hard seabed to the full structure.
A19: Unit: species.year/structure | M19: Unit: species.year/structure
A20: Age, t [yr] | B20: TOTAL | C20: Porifera | D20: Cnidaria | E20: Worms | F20: Mollusca | G20: Arthropoda | H20: Bryozoa | I20: Echinodermata | J20: Chordata | K20: Aliens | M20: Age, t [yr] | N20: TOTAL | O20: Porifera | P20: Cnidaria | Q20: Worms | R20: Mollusca | S20: Arthropoda | T20: Bryozoa | U20: Echinodermata | V20: Chordata | W20: Aliens
A21: 1 | B21: 21 | D21: 1 | E21: 22 | F21: 5 | G21: 3 | H21: -1 | I21: 2 | J21: -0 | K21: -2 | M21: 1 | N21: 7 | O21: -0.1 | P21: 3 | Q21: 2 | R21: -0 | S21: 1 | T21: 1 | U21: -1 | V21: 1 | W21: -0
A22: 2 | B22: 40 | D22: 1 | E22: 44 | F22: 10 | G22: 6 | H22: -2 | I22: 3 | J22: -1 | K22: -5 | M22: 2 | N22: 12 | O22: -0.3 | P22: 5 | Q22: 3 | R22: -1 | S22: 2 | T22: 2 | U22: -1 | V22: 1 | W22: -0
A23: 3 | B23: 57 | D23: 1 | E23: 64 | F23: 15 | G23: 8 | H23: -3 | I23: 5 | J23: -1 | K23: -8 | M23: 3 | N23: 15 | O23: -0.4 | P23: 8 | Q23: 3 | R23: -2 | S23: 2 | T23: 2 | U23: -2 | V23: 2 | W23: -1
A24: 4 | B24: 72 | D24: 1 | E24: 84 | F24: 19 | G24: 9 | H24: -4 | I24: 6 | J24: -1 | K24: -11 | M24: 4 | N24: 17 | O24: -1 | P24: 10 | Q24: 2 | R24: -3 | S24: 1 | T24: 3 | U24: -3 | V24: 2 | W24: -2
A25: 5 | B25: 86 | D25: 0 | E25: 103 | F25: 23 | G25: 9 | H25: -5 | I25: 7 | J25: -1 | K25: -14 | M25: 5 | N25: 16 | O25: -1 | P25: 11 | Q25: 0 | R25: -5 | S25: -0 | T25: 3 | U25: -4 | V25: 3 | W25: -3
A26: 6 | B26: 97 | D26: -1 | E26: 121 | F26: 26 | G26: 10 | H26: -6 | I26: 8 | J26: -2 | K26: -17 | M26: 6 | N26: 13 | O26: -1 | P26: 12 | Q26: -2 | R26: -7 | S26: -2 | T26: 3 | U26: -5 | V26: 3 | W26: -4
A27: 7 | B27: 107 | D27: -2 | E27: 138 | F27: 30 | G27: 9 | H27: -8 | I27: 10 | J27: -2 | K27: -21 | M27: 7 | N27: 9 | O27: -1 | P27: 14 | Q27: -6 | R27: -9 | S27: -4 | T27: 4 | U27: -6 | V27: 4 | W27: -5
A28: 8 | B28: 115 | D28: -3 | E28: 154 | F28: 33 | G28: 8 | H28: -9 | I28: 11 | J28: -2 | K28: -25 | M28: 8 | N28: 3 | O28: -2 | P28: 14 | Q28: -10 | R28: -12 | S28: -7 | T28: 4 | U28: -7 | V28: 4 | W28: -7
A29: 9 | B29: 122 | D29: -5 | E29: 170 | F29: 36 | G29: 7 | H29: -11 | I29: 11 | J29: -3 | K29: -28 | M29: 9 | N29: -4 | O29: -2 | P29: 15 | Q29: -14 | R29: -14 | S29: -11 | T29: 4 | U29: -9 | V29: 5 | W29: -8
A30: 10 | B30: 127 | D30: -7 | E30: 186 | F30: 38 | G30: 4 | H30: -13 | I30: 12 | J30: -3 | K30: -32 | M30: 10 | N30: -13 | O30: -2 | P30: 15 | Q30: -19 | R30: -17 | S30: -15 | T30: 4 | U30: -10 | V30: 5 | W30: -10
A31: 11 | B31: 130 | D31: -9 | E31: 201 | F31: 41 | G31: 2 | H31: -14 | I31: 13 | J31: -3 | K31: -36 | M31: 11 | N31: -23 | O31: -2 | P31: 15 | Q31: -25 | R31: -20 | S31: -19 | T31: 3 | U31: -11 | V31: 5 | W31: -11
A32: 12 | B32: 132 | D32: -11 | E32: 215 | F32: 43 | G32: -1 | H32: -16 | I32: 14 | J32: -4 | K32: -40 | M32: 12 | N32: -35 | O32: -3 | P32: 15 | Q32: -31 | R32: -24 | S32: -24 | T32: 3 | U32: -13 | V32: 6 | W32: -13
A33: 13 | B33: 133 | D33: -14 | E33: 229 | F33: 45 | G33: -5 | H33: -18 | I33: 15 | J33: -4 | K33: -44 | M33: 13 | N33: -48 | O33: -3 | P33: 15 | Q33: -37 | R33: -27 | S33: -29 | T33: 3 | U33: -14 | V33: 6 | W33: -15
A34: 14 | B34: 133 | D34: -16 | E34: 243 | F34: 47 | G34: -9 | H34: -20 | I34: 15 | J34: -4 | K34: -48 | M34: 14 | N34: -62 | O34: -3 | P34: 15 | Q34: -44 | R34: -31 | S34: -35 | T34: 2 | U34: -16 | V34: 7 | W34: -16
A35: 15 | B35: 131 | D35: -19 | E35: 257 | F35: 49 | G35: -13 | H35: -23 | I35: 16 | J35: -5 | K35: -52 | M35: 15 | N35: -78 | O35: -3 | P35: 15 | Q35: -51 | R35: -34 | S35: -42 | T35: 2 | U35: -18 | V35: 7 | W35: -18
A36: 16 | B36: 129 | D36: -21 | E36: 271 | F36: 51 | G36: -18 | H36: -25 | I36: 17 | J36: -5 | K36: -56 | M36: 16 | N36: -94 | O36: -4 | P36: 14 | Q36: -58 | R36: -38 | S36: -48 | T36: 1 | U36: -19 | V36: 8 | W36: -20
A37: 17 | B37: 125 | D37: -24 | E37: 284 | F37: 52 | G37: -23 | H37: -27 | I37: 17 | J37: -5 | K37: -60 | M37: 17 | N37: -112 | O37: -4 | P37: 14 | Q37: -65 | R37: -42 | S37: -55 | T37: 1 | U37: -21 | V37: 8 | W37: -22
A38: 18 | B38: 120 | D38: -27 | E38: 297 | F38: 54 | G38: -29 | H38: -30 | I38: 18 | J38: -6 | K38: -64 | M38: 18 | N38: -131 | O38: -4 | P38: 13 | Q38: -72 | R38: -46 | S38: -63 | T38: -0 | U38: -23 | V38: 9 | W38: -23
A39: 19 | B39: 115 | D39: -30 | E39: 311 | F39: 55 | G39: -35 | H39: -32 | I39: 18 | J39: -6 | K39: -67 | M39: 19 | N39: -150 | O39: -4 | P39: 12 | Q39: -79 | R39: -50 | S39: -71 | T39: -1 | U39: -24 | V39: 9 | W39: -25
A40: 20 | B40: 108 | D40: -33 | E40: 324 | F40: 57 | G40: -41 | H40: -35 | I40: 19 | J40: -7 | K40: -71 | M40: 20 | N40: -171 | O40: -4 | P40: 12 | Q40: -86 | R40: -54 | S40: -79 | T40: -2 | U40: -26 | V40: 9 | W40: -26
A41: 21 | B41: 101 | D41: -35 | E41: 338 | F41: 58 | G41: -48 | H41: -37 | I41: 19 | J41: -7 | K41: -74 | M41: 21 | N41: -192 | O41: -5 | P41: 11 | Q41: -93 | R41: -58 | S41: -88 | T41: -3 | U41: -28 | V41: 10 | W41: -27
A42: 22 | B42: 93 | D42: -38 | E42: 352 | F42: 60 | G42: -55 | H42: -40 | I42: 20 | J42: -7 | K42: -78 | M42: 22 | N42: -214 | O42: -5 | P42: 11 | Q42: -99 | R42: -62 | S42: -97 | T42: -4 | U42: -29 | V42: 10 | W42: -28
A43: 23 | B43: 85 | D43: -41 | E43: 366 | F43: 61 | G43: -62 | H43: -43 | I43: 20 | J43: -8 | K43: -81 | M43: 23 | N43: -236 | O43: -5 | P43: 10 | Q43: -106 | R43: -66 | S43: -106 | T43: -5 | U43: -31 | V43: 11 | W43: -29
A44: 24 | B44: 76 | D44: -44 | E44: 381 | F44: 63 | G44: -70 | H44: -46 | I44: 21 | J44: -8 | K44: -84 | M44: 24 | N44: -259 | O44: -5 | P44: 10 | Q44: -112 | R44: -70 | S44: -115 | T44: -6 | U44: -33 | V44: 11 | W44: -30
A45: 25 | B45: 66 | D45: -46 | E45: 396 | F45: 65 | G45: -78 | H45: -49 | I45: 21 | J45: -8 | K45: -87 | M45: 25 | N45: -283 | O45: -5 | P45: 9 | Q45: -117 | R45: -74 | S45: -125 | T45: -8 | U45: -35 | V45: 12 | W45: -31
A48: Absolute CFs for decommissioning impacts, considering 1 year after decommissioning
A49: Interpretation: the impacts of one species.year when decommissioning at age t. To look at the impacts over longer times, it should be multiplied by the number of years that the area is expected to be kept like that after decommissioning.
A51: Scenario I-D: Full structure to sandy seabed | M51: Scenario II-D: Full structure to scour protection | Y51: Scenario III-D: Full structure to scour protection + 5m of foundation
A52: Unit: species.year/structure | M52: Unit: species.year/structure | Y52: Unit: species.year/structure
A53: Age, t [yr] | B53: TOTAL | C53: Porifera | D53: Cnidaria | E53: Worms | F53: Mollusca | G53: Arthropoda | H53: Bryozoa | I53: Echinodermata | J53: Chordata | K53: Aliens | M53: Age, t [yr] | N53: TOTAL | O53: Porifera | P53: Cnidaria | Q53: Worms | R53: Mollusca | S53: Arthropoda | T53: Bryozoa | U53: Echinodermata | V53: Chordata | W53: Aliens | Y53: Age, t [yr] | Z53: TOTAL | AA53: Porifera | AB53: Cnidaria | AC53: Worms | AD53: Mollusca | AE53: Arthropoda | AF53: Bryozoa | AG53: Echinodermata | AH53: Chordata | AI53: Aliens
A54: 1 | B54: -20 | C54: 0 | D54: -1 | E54: -22 | F54: -5 | G54: -3 | H54: 1 | I54: -2 | J54: 0 | K54: 2 | M54: 1 | N54: 2.3 | O54: 0.0 | P54: 0.6 | Q54: 1.2 | R54: 0.3 | S54: 1.5 | T54: 0.0 | U54: 0.2 | V54: 0.2 | W54: 0.3 | Y54: 1 | Z54: 0.2 | AA54: 0.1 | AB54: 0.5 | AC54: 1.2 | AD54: 0.2 | AE54: 1.4 | AF54: 0.0 | AG54: 0.2 | AH54: 0.1 | AI54: 0.2
A55: 2 | B55: -18 | C55: 0 | D55: -0 | E55: -21 | F55: -5 | G55: -2 | H55: 1 | I55: -1 | J55: 0 | K55: 3 | M55: 2 | N55: 2.1 | O55: 0.1 | P55: 0.5 | Q55: 1.2 | R55: 0.4 | S55: 1.5 | T55: 0.0 | U55: 0.2 | V55: 0.2 | W55: 0.3 | Y55: 2 | Z55: 0.2 | AA55: 0.1 | AB55: 0.5 | AC55: 1.2 | AD55: 0.2 | AE55: 1.4 | AF55: 0.0 | AG55: 0.2 | AH55: 0.2 | AI55: 0.2
A56: 3 | B56: -16 | C56: 0 | D56: 0 | E56: -20 | F56: -4 | G56: -2 | H56: 1 | I56: -1 | J56: 0 | K56: 3 | M56: 3 | N56: 1.8 | O56: 0.1 | P56: 0.5 | Q56: 1.1 | R56: 0.5 | S56: 1.4 | T56: 0.0 | U56: 0.2 | V56: 0.2 | W56: 0.2 | Y56: 3 | Z56: 0.1 | AA56: 0.2 | AB56: 0.4 | AC56: 1.1 | AD56: 0.2 | AE56: 1.3 | AF56: 0.0 | AG56: 0.2 | AH56: 0.2 | AI56: 0.2
A57: 4 | B57: -14 | C57: 0 | D57: 0 | E57: -19 | F57: -4 | G57: -1 | H57: 1 | I57: -1 | J57: 0 | K57: 3 | M57: 4 | N57: 1.6 | O57: 0.2 | P57: 0.4 | Q57: 1.0 | R57: 0.5 | S57: 1.3 | T57: 0.0 | U57: 0.2 | V57: 0.2 | W57: 0.2 | Y57: 4 | Z57: 0.1 | AA57: 0.2 | AB57: 0.4 | AC57: 1.0 | AD57: 0.3 | AE57: 1.2 | AF57: 0.0 | AG57: 0.2 | AH57: 0.2 | AI57: 0.2
A58: 5 | B58: -12 | C58: 0 | D58: 1 | E58: -18 | F58: -4 | G58: -0 | H58: 1 | I58: -1 | J58: 0 | K58: 3 | M58: 5 | N58: 1.4 | O58: 0.2 | P58: 0.4 | Q58: 1.0 | R58: 0.6 | S58: 1.3 | T58: 0.0 | U58: 0.3 | V58: 0.2 | W58: 0.2 | Y58: 5 | Z58: 0.1 | AA58: 0.2 | AB58: 0.3 | AC58: 1.0 | AD58: 0.3 | AE58: 1.2 | AF58: 0.0 | AG58: 0.2 | AH58: 0.2 | AI58: 0.1
A59: 6 | B59: -11 | C59: 0 | D59: 1 | E59: -18 | F59: -3 | G59: 0 | H59: 1 | I59: -1 | J59: 0 | K59: 3 | M59: 6 | N59: 1.2 | O59: 0.2 | P59: 0.3 | Q59: 0.9 | R59: 0.6 | S59: 1.2 | T59: 0.0 | U59: 0.3 | V59: 0.2 | W59: 0.2 | Y59: 6 | Z59: 0.1 | AA59: 0.2 | AB59: 0.3 | AC59: 0.9 | AD59: 0.3 | AE59: 1.1 | AF59: 0.0 | AG59: 0.3 | AH59: 0.2 | AI59: 0.1
A60: 7 | B60: -9 | C60: 0 | D60: 1 | E60: -17 | F60: -3 | G60: 1 | H60: 1 | I60: -1 | J60: 0 | K60: 4 | M60: 7 | N60: 1.0 | O60: 0.2 | P60: 0.3 | Q60: 0.9 | R60: 0.7 | S60: 1.1 | T60: 0.0 | U60: 0.3 | V60: 0.3 | W60: 0.2 | Y60: 7 | Z60: 0.0 | AA60: 0.3 | AB60: 0.3 | AC60: 0.9 | AD60: 0.4 | AE60: 1.1 | AF60: 0.0 | AG60: 0.3 | AH60: 0.2 | AI60: 0.1
A61: 8 | B61: -7 | C61: 0 | D61: 2 | E61: -16 | F61: -3 | G61: 1 | H61: 2 | I61: -1 | J61: 0 | K61: 4 | M61: 8 | N61: 0.9 | O61: 0.3 | P61: 0.2 | Q61: 0.8 | R61: 0.7 | S61: 1.1 | T61: 0.0 | U61: 0.3 | V61: 0.3 | W61: 0.1 | Y61: 8 | Z61: 0.0 | AA61: 0.3 | AB61: 0.2 | AC61: 0.8 | AD61: 0.4 | AE61: 1.0 | AF61: 0.0 | AG61: 0.3 | AH61: 0.2 | AI61: 0.1
A62: 9 | B62: -6 | C62: 0 | D62: 2 | E62: -16 | F62: -3 | G62: 2 | H62: 2 | I62: -1 | J62: 0 | K62: 4 | M62: 9 | N62: 0.7 | O62: 0.3 | P62: 0.2 | Q62: 0.8 | R62: 0.8 | S62: 1.0 | T62: 0.0 | U62: 0.3 | V62: 0.3 | W62: 0.1 | Y62: 9 | Z62: 0.0 | AA62: 0.3 | AB62: 0.2 | AC62: 0.8 | AD62: 0.4 | AE62: 0.9 | AF62: 0.0 | AG62: 0.3 | AH62: 0.2 | AI62: 0.1
A63: 10 | B63: -4 | C63: 0 | D63: 2 | E63: -15 | F63: -3 | G63: 2 | H63: 2 | I63: -1 | J63: 0 | K63: 4 | M63: 10 | N63: 0.6 | O63: 0.3 | P63: 0.2 | Q63: 0.7 | R63: 0.8 | S63: 0.9 | T63: =7.6006218026059*10^-5 -> 0.0 | U63: 0.3 | V63: 0.3 | W63: 0.1 | Y63: 10 | Z63: 0.0 | AA63: 0.3 | AB63: 0.1 | AC63: 0.7 | AD63: 0.4 | AE63: 0.9 | AF63: =7.04093520473847*10^-5 -> 0.0 | AG63: 0.3 | AH63: 0.2 | AI63: 0.1
A64: 11 | B64: -3 | C64: 0 | D64: 2 | E64: -15 | F64: -2 | G64: 3 | H64: 2 | I64: -1 | J64: 0 | K64: 4 | M64: 11 | N64: 0.5 | O64: 0.3 | P64: 0.1 | Q64: 0.7 | R64: 0.8 | S64: 0.9 | T64: 0.0 | U64: 0.3 | V64: 0.3 | W64: 0.1 | Y64: 11 | Z64: 0.0 | AA64: 0.3 | AB64: 0.1 | AC64: 0.7 | AD64: 0.4 | AE64: 0.8 | AF64: =8.76944141747771*10^-6 -> 0.0 | AG64: 0.3 | AH64: 0.2 | AI64: 0.0
A65: 12 | B65: -2 | C65: 0 | D65: 2 | E65: -14 | F65: -2 | G65: 3 | H65: 2 | I65: -1 | J65: 0 | K65: 4 | M65: 12 | N65: 0.4 | O65: 0.3 | P65: 0.1 | Q65: 0.6 | R65: 0.9 | S65: 0.8 | T65: 0.0 | U65: 0.3 | V65: 0.3 | W65: 0.1 | Y65: 12 | Z65: 0.0 | AA65: 0.3 | AB65: 0.1 | AC65: 0.6 | AD65: 0.5 | AE65: 0.8 | AF65: 0.0 | AG65: 0.3 | AH65: 0.2 | AI65: 0.0
A66: 13 | B66: -0 | C66: 0 | D66: 2 | E66: -14 | F66: -2 | G66: 4 | H66: 2 | I66: -1 | J66: 0 | K66: 4 | M66: 13 | N66: 0.3 | O66: 0.3 | P66: 0.1 | Q66: 0.6 | R66: 0.9 | S66: 0.7 | T66: 0.0 | U66: 0.3 | V66: 0.3 | W66: 0.1 | Y66: 13 | Z66: 0.0 | AA66: 0.3 | AB66: 0.1 | AC66: 0.6 | AD66: 0.5 | AE66: 0.7 | AF66: 0.0 | AG66: 0.3 | AH66: 0.2 | AI66: 0.0
A67: 14 | B67: 1 | C67: 0 | D67: 3 | E67: -14 | F67: -2 | G67: 4 | H67: 2 | I67: -1 | J67: 0 | K67: 4 | M67: 14 | N67: 0.2 | O67: 0.3 | P67: 0.1 | Q67: 0.5 | R67: 0.9 | S67: 0.7 | T67: 0.0 | U67: 0.3 | V67: 0.3 | W67: 0.1 | Y67: 14 | Z67: 0.0 | AA67: 0.3 | AB67: 0.1 | AC67: 0.5 | AD67: 0.5 | AE67: 0.7 | AF67: 0.0 | AG67: 0.3 | AH67: 0.2 | AI67: 0.0
A68: 15 | B68: 2 | C68: 0 | D68: 3 | E68: -14 | F68: -2 | G68: 5 | H68: 2 | I68: -1 | J68: 0 | K68: 4 | M68: 15 | N68: 0.1 | O68: 0.3 | P68: 0.0 | Q68: 0.5 | R68: 1.0 | S68: 0.6 | T68: 0.0 | U68: 0.3 | V68: 0.3 | W68: 0.0 | Y68: 15 | Z68: 0.0 | AA68: 0.3 | AB68: 0.0 | AC68: 0.5 | AD68: 0.5 | AE68: 0.6 | AF68: 0.0 | AG68: 0.3 | AH68: 0.2 | AI68: 0.0
A69: 16 | B69: 3 | C69: 0 | D69: 3 | E69: -13 | F69: -2 | G69: 5 | H69: 2 | I69: -1 | J69: 0 | K69: 4 | M69: 16 | N69: 0.1 | O69: 0.3 | P69: 0.0 | Q69: 0.4 | R69: 1.0 | S69: 0.5 | T69: 0.0 | U69: 0.2 | V69: 0.2 | W69: 0.0 | Y69: 16 | Z69: 0.0 | AA69: 0.3 | AB69: 0.0 | AC69: 0.4 | AD69: 0.5 | AE69: 0.5 | AF69: 0.0 | AG69: 0.2 | AH69: 0.2 | AI69: 0.0
A70: 17 | B70: 4 | C70: 0 | D70: 3 | E70: -13 | F70: -2 | G70: 5 | H70: 2 | I70: -1 | J70: 0 | K70: 4 | M70: 17 | N70: 0.1 | O70: 0.2 | P70: 0.0 | Q70: 0.4 | R70: 1.0 | S70: 0.5 | T70: 0.0 | U70: 0.2 | V70: 0.2 | W70: 0.0 | Y70: 17 | Z70: 0.0 | AA70: 0.2 | AB70: 0.0 | AC70: 0.4 | AD70: 0.5 | AE70: 0.5 | AF70: 0.0 | AG70: 0.2 | AH70: 0.2 | AI70: 0.0
A71: 18 | B71: 5 | C71: 0 | D71: 3 | E71: -13 | F71: -2 | G71: 6 | H71: 2 | I71: -1 | J71: 0 | K71: 4 | M71: 18 | N71: 0.0 | O71: 0.2 | P71: 0.0 | Q71: 0.3 | R71: 1.0 | S71: 0.4 | T71: 0.0 | U71: 0.2 | V71: 0.2 | W71: 0.0 | Y71: 18 | Z71: 0.0 | AA71: 0.2 | AB71: 0.0 | AC71: 0.3 | AD71: 0.5 | AE71: 0.4 | AF71: 0.0 | AG71: 0.2 | AH71: 0.2 | AI71: 0.0
A72: 19 | B72: 6 | C72: 0 | D72: 3 | E72: -13 | F72: -2 | G72: 6 | H72: 3 | I72: -1 | J72: 0 | K72: 4 | M72: 19 | N72: 0.0 | O72: 0.2 | P72: 0.0 | Q72: 0.3 | R72: 1.0 | S72: 0.4 | T72: 0.0 | U72: 0.2 | V72: 0.2 | W72: 0.0 | Y72: 19 | Z72: 0.0 | AA72: 0.2 | AB72: 0.0 | AC72: 0.3 | AD72: 0.5 | AE72: 0.4 | AF72: 0.0 | AG72: 0.2 | AH72: 0.2 | AI72: -0.0
A73: 20 | B73: 7 | C73: 0 | D73: 3 | E73: -14 | F73: -1 | G73: 7 | H73: 3 | I73: -1 | J73: 0 | K73: 4 | M73: 20 | N73: 0.1 | O73: 0.2 | P73: 0.0 | Q73: 0.2 | R73: 1.0 | S73: 0.3 | T73: 0.0 | U73: 0.2 | V73: 0.2 | W73: 0.0 | Y73: 20 | Z73: -0.0 | AA73: 0.2 | AB73: =3.92603439607342*10^-5 -> 0.0 | AC73: 0.2 | AD73: 0.5 | AE73: 0.3 | AF73: 0.0 | AG73: 0.2 | AH73: 0.1 | AI73: 0.0
A74: 21 | B74: 8 | C74: 0 | D74: 3 | E74: -14 | F74: -1 | G74: 7 | H74: 3 | I74: -0 | J74: 0 | K74: 3 | M74: 21 | N74: 0.1 | O74: 0.2 | P74: 0.0 | Q74: 0.2 | R74: 1.0 | S74: 0.2 | T74: 0.0 | U74: 0.1 | V74: 0.1 | W74: 0.0 | Y74: 21 | Z74: 0.0 | AA74: 0.1 | AB74: 0.0 | AC74: 0.2 | AD74: 0.5 | AE74: 0.2 | AF74: 0.0 | AG74: 0.1 | AH74: 0.1 | AI74: 0.0
A75: 22 | B75: 8 | C75: 0 | D75: 3 | E75: -14 | F75: -1 | G75: 7 | H75: 3 | I75: -1 | J75: 0 | K75: 3 | M75: 22 | N75: 0.1 | O75: 0.1 | P75: 0.0 | Q75: 0.1 | R75: 1.0 | S75: 0.2 | T75: 0.0 | U75: 0.1 | V75: 0.1 | W75: 0.0 | Y75: 22 | Z75: 0.0 | AA75: 0.1 | AB75: 0.0 | AC75: 0.1 | AD75: 0.5 | AE75: 0.2 | AF75: 0.0 | AG75: 0.1 | AH75: 0.1 | AI75: 0.0
A76: 23 | B76: 9 | C76: 0 | D76: 3 | E76: -14 | F76: -2 | G76: 8 | H76: 3 | I76: -1 | J76: 0 | K76: 3 | M76: 23 | N76: 0.2 | O76: 0.1 | P76: 0.0 | Q76: 0.1 | R76: 1.0 | S76: 0.1 | T76: 0.0 | U76: 0.1 | V76: 0.1 | W76: 0.0 | Y76: 23 | Z76: 0.0 | AA76: 0.1 | AB76: 0.0 | AC76: 0.1 | AD76: 0.5 | AE76: 0.1 | AF76: 0.0 | AG76: 0.1 | AH76: 0.1 | AI76: 0.0
A77: 24 | B77: 9 | C77: 0 | D77: 3 | E77: -15 | F77: -2 | G77: 8 | H77: 3 | I77: -1 | J77: 0 | K77: 3 | M77: 24 | N77: 0.2 | O77: 0.0 | P77: 0.0 | Q77: 0.0 | R77: 1.0 | S77: 0.1 | T77: 0.1 | U77: 0.0 | V77: 0.0 | W77: 0.0 | Y77: 24 | Z77: 0.0 | AA77: 0.0 | AB77: 0.0 | AC77: 0.0 | AD77: 0.5 | AE77: 0.1 | AF77: 0.0 | AG77: 0.0 | AH77: 0.0 | AI77: 0.0
A78: 25 | B78: 10 | C78: 0 | D78: 3 | E78: -15 | F78: -2 | G78: 8 | H78: 3 | I78: -1 | J78: 0 | K78: 3 | M78: 25 | N78: 0.3 | O78: =3.340792087414*10^-10 -> 0.0 | P78: 0.1 | Q78: =6.45954045808139*10^-9 -> 0.0 | R78: 1.0 | S78: 0.0 | T78: 0.1 | U78: =2.63868308092441*10^-7 -> 0.0 | V78: =3.54019202841727*10^-10 -> 0.0 | W78: 0.0 | Y78: 25 | Z78: 0.0 | AA78: =2.38413871977983*10^-10 -> 0.0 | AB78: 0.0 | AC78: =6.45954045808139*10^-9 -> 0.0 | AD78: 0.5 | AE78: =7.77072628466158*10^-10 -> 0.0 | AF78: 0.0 | AG78: =7.53583171420047*10^-8 -> 0.0 | AH78: =5.23554533060633*10^-11 -> 0.0 | AI78: 0.0
A81: Absolute CFs for decommissioning impacts, considering 25 years after decommissioning
A82: Scenario I-D: Full structure to sandy seabed | M82: Scenario II-D: Full structure to scour protection | Y82: Scenario III-D: Full structure to scour protection + 5m of foundation
A83: Unit: species.year/structure | M83: Unit: species.year/structure | Y83: Unit: species.year/structure
A84: Age, t [yr] | B84: TOTAL | C84: Porifera | D84: Cnidaria | E84: Worms | F84: Mollusca | G84: Arthropoda | H84: Bryozoa | I84: Echinodermata | J84: Chordata | K84: Aliens | M84: Age, t [yr] | N84: TOTAL | O84: Porifera | P84: Cnidaria | Q84: Worms | R84: Mollusca | S84: Arthropoda | T84: Bryozoa | U84: Echinodermata | V84: Chordata | W84: Aliens | Y84: Age, t [yr] | Z84: TOTAL | AA84: Porifera | AB84: Cnidaria | AC84: Worms | AD84: Mollusca | AE84: Arthropoda | AF84: Bryozoa | AG84: Echinodermata | AH84: Chordata | AI84: Aliens
A85: 1 | B85: =B54*25 -> -502 | C85: 6 | D85: -13 | E85: -549 | F85: -126 | G85: -70 | H85: 22 | I85: -40 | J85: 6 | K85: 62 | M85: 1 | N85: =N54*25 -> 58 | O85: =O54*25 -> 1 | P85: 14 | Q85: 30 | R85: 8 | S85: 38 | T85: 1 | U85: 4 | V85: 4 | W85: 7 | Y85: 1 | Z85: =Z54*25 -> 5 | AA85: 3 | AB85: 14 | AC85: 30 | AD85: 4 | AE85: 36 | AF85: 0 | AG85: 4 | AH85: 4 | AI85: 6
A86: 2 | B86: =B55*25 -> -451 | C86: 6 | D86: -4 | E86: -524 | F86: -117 | G86: -55 | H86: 24 | I86: -37 | J86: 7 | K86: 68 | M86: 2 | N86: =N55*25 -> 51 | O86: 2 | P86: 13 | Q86: 29 | R86: 10 | S86: 36 | T86: 1 | U86: 5 | V86: 4 | W86: 6 | Y86: 2 | Z86: =Z55*25 -> 4 | AA86: 3 | AB86: 12 | AC86: 29 | AD86: 5 | AE86: 34 | AF86: 0 | AG86: 5 | AH86: 4 | AI86: 6
A87: 3 | B87: =B56*25 -> -402 | C87: 7 | D87: 4 | E87: -500 | F87: -109 | G87: -39 | H87: 27 | I87: -35 | J87: 7 | K87: 73 | M87: 3 | N87: =N56*25 -> 46 | O87: 3 | P87: 12 | Q87: 27 | R87: 12 | S87: 35 | T87: 0 | U87: 6 | V87: 5 | W87: 6 | Y87: 3 | Z87: =Z56*25 -> 3 | AA87: 4 | AB87: 11 | AC87: 27 | AD87: 6 | AE87: 33 | AF87: 0 | AG87: 5 | AH87: 5 | AI87: 5
A88: 4 | B88: =B57*25 -> -355 | C88: 7 | D88: 12 | E88: -478 | F88: -101 | G88: -24 | H88: 29 | I88: -33 | J88: 7 | K88: 78 | M88: 4 | N88: =N57*25 -> 40 | O88: 4 | P88: 10 | Q88: 26 | R88: 13 | S88: 33 | T88: 0 | U88: 6 | V88: 5 | W88: 5 | Y88: 4 | Z88: =Z57*25 -> 2 | AA88: 5 | AB88: 10 | AC88: 26 | AD88: 7 | AE88: 31 | AF88: 0 | AG88: 6 | AH88: 5 | AI88: 4
A89: 5 | B89: =B58*25 -> -309 | C89: 8 | D89: 20 | E89: -458 | F89: -94 | G89: -9 | H89: 32 | I89: -30 | J89: 8 | K89: 82 | M89: 5 | N89: =N58*25 -> 35 | O89: 5 | P89: 9 | Q89: 24 | R89: 15 | S89: 31 | T89: 0 | U89: 6 | V89: 6 | W89: 5 | Y89: 5 | Z89: =Z58*25 -> 2 | AA89: 5 | AB89: 8 | AC89: 24 | AD89: 8 | AE89: 30 | AF89: 0 | AG89: 6 | AH89: 5 | AI89: 4
A90: 6 | B90: =B59*25 -> -266 | C90: 8 | D90: 26 | E90: -439 | F90: -87 | G90: 5 | H90: 34 | I90: -28 | J90: 8 | K90: 86 | M90: 6 | N90: =N59*25 -> 30 | O90: 5 | P90: 8 | Q90: 23 | R90: 16 | S90: 30 | T90: 0 | U90: 7 | V90: 6 | W90: 4 | Y90: 6 | Z90: =Z59*25 -> 1 | AA90: 6 | AB90: 7 | AC90: 23 | AD90: 8 | AE90: 28 | AF90: 0 | AG90: 7 | AH90: 6 | AI90: 3
A91: 7 | B91: =B60*25 -> -223 | C91: 8 | D91: 33 | E91: -422 | F91: -80 | G91: 19 | H91: 37 | I91: -26 | J91: 8 | K91: 89 | M91: 7 | N91: =N60*25 -> 26 | O91: 6 | P91: 7 | Q91: 22 | R91: 17 | S91: 28 | T91: 0 | U91: 7 | V91: 7 | W91: 4 | Y91: 7 | Z91: =Z60*25 -> 1 | AA91: 6 | AB91: 6 | AC91: 22 | AD91: 9 | AE91: 27 | AF91: 0 | AG91: 7 | AH91: 6 | AI91: 3
A92: 8 | B92: =B61*25 -> -183 | C92: 9 | D92: 39 | E92: -406 | F92: -74 | G92: 32 | H92: 39 | I92: -24 | J92: 8 | K92: 92 | M92: 8 | N92: =N61*25 -> 22 | O92: 6 | P92: 6 | Q92: 20 | R92: 18 | S92: 26 | T92: 0 | U92: 7 | V92: 7 | W92: 3 | Y92: 8 | Z92: =Z61*25 -> 1 | AA92: 7 | AB92: 5 | AC92: 20 | AD92: 10 | AE92: 25 | AF92: 0 | AG92: 7 | AH92: 6 | AI92: 2
A93: 9 | B93: =B62*25 -> -144 | C93: 9 | D93: 44 | E93: -392 | F93: -69 | G93: 45 | H93: 41 | I93: -23 | J93: 8 | K93: 95 | M93: 9 | N93: =N62*25 -> 18 | O93: 7 | P93: 5 | Q93: 19 | R93: 19 | S93: 25 | T93: 0 | U93: 7 | V93: 7 | W93: 3 | Y93: 9 | Z93: =Z62*25 -> 1 | AA93: 7 | AB93: 5 | AC93: 19 | AD93: 10 | AE93: 24 | AF93: 0 | AG93: 7 | AH93: 6 | AI93: 2
A94: 10 | B94: =B63*25 -> -107 | C94: 9 | D94: 49 | E94: -379 | F94: -64 | G94: 58 | H94: 44 | I94: -21 | J94: 9 | K94: 97 | M94: 10 | N94: =N63*25 -> 15 | O94: 7 | P94: 4 | Q94: 18 | R94: 20 | S94: 23 | T94: 0 | U94: 7 | V94: 7 | W94: 3 | Y94: 10 | Z94: =Z63*25 -> 1 | AA94: 7 | AB94: 4 | AC94: 18 | AD94: 11 | AE94: 22 | AF94: 0 | AG94: 7 | AH94: 6 | AI94: 2
A95: 11 | B95: =B64*25 -> -72 | C95: 9 | D95: 54 | E95: -368 | F95: -59 | G95: 70 | H95: 46 | I95: -20 | J95: 9 | K95: 98 | M95: 11 | N95: =N64*25 -> 12 | O95: 7 | P95: 3 | Q95: 16 | R95: 21 | S95: 22 | T95: 0 | U95: 7 | V95: 7 | W95: 2 | Y95: 11 | Z95: =Z64*25 -> 0 | AA95: 7 | AB95: 3 | AC95: 16 | AD95: 11 | AE95: 21 | AF95: 0 | AG95: 7 | AH95: 6 | AI95: 1
A96: 12 | B96: =B65*25 -> -38 | C96: 9 | D96: 57 | E96: -359 | F96: -55 | G96: 82 | H96: 48 | I96: -18 | J96: 9 | K96: 99 | M96: 12 | N96: =N65*25 -> 9 | O96: 7 | P96: 2 | Q96: 15 | R96: 22 | S96: 20 | T96: 0 | U96: 7 | V96: 7 | W96: 2 | Y96: 12 | Z96: =Z65*25 -> 0 | AA96: 7 | AB96: 2 | AC96: 15 | AD96: 12 | AE96: 19 | AF96: 0 | AG96: 7 | AH96: 6 | AI96: 1
A97: 13 | B97: =B66*25 -> -6 | C97: 9 | D97: 61 | E97: -351 | F97: -51 | G97: 94 | H97: 50 | I97: -17 | J97: 9 | K97: 100 | M97: 13 | N97: =N66*25 -> 7 | O97: 7 | P97: 2 | Q97: 14 | R97: 23 | S97: 18 | T97: 0 | U97: 7 | V97: 7 | W97: 2 | Y97: 13 | Z97: =Z66*25 -> 0 | AA97: 7 | AB97: 2 | AC97: 14 | AD97: 12 | AE97: 18 | AF97: 0 | AG97: 7 | AH97: 6 | AI97: 1
A98: 14 | B98: =B67*25 -> 24 | C98: 9 | D98: 64 | E98: -345 | F98: -48 | G98: 105 | H98: 53 | I98: -16 | J98: 9 | K98: 100 | M98: 14 | N98: =N67*25 -> 5 | O98: 7 | P98: 1 | Q98: 13 | R98: 23 | S98: 17 | T98: 0 | U98: 7 | V98: 7 | W98: 1 | Y98: 14 | Z98: =Z67*25 -> 0 | AA98: 7 | AB98: 1 | AC98: 13 | AD98: 12 | AE98: 16 | AF98: 0 | AG98: 7 | AH98: 6 | AI98: 0
A99: 15 | B99: =B68*25 -> 53 | C99: 8 | D99: 66 | E99: -340 | F99: -45 | G99: 115 | H99: 55 | I99: -15 | J99: 9 | K99: 99 | M99: 15 | N99: =N68*25 -> 4 | O99: 7 | P99: 1 | Q99: 11 | R99: 24 | S99: 15 | T99: 0 | U99: 6 | V99: 6 | W99: 1 | Y99: 15 | Z99: =Z68*25 -> 0 | AA99: 7 | AB99: 1 | AC99: 11 | AD99: 13 | AE99: 15 | AF99: 0 | AG99: 6 | AH99: 5 | AI99: 0
A100: 16 | B100: =B69*25 -> 80 | C100: 8 | D100: 68 | E100: -337 | F100: -42 | G100: 126 | H100: 57 | I100: -14 | J100: 9 | K100: 98 | M100: 16 | N100: =N69*25 -> 2 | O100: 7 | P100: 1 | Q100: 10 | R100: 24 | S100: 14 | T100: 0 | U100: 6 | V100: 6 | W100: 1 | Y100: 16 | Z100: =Z69*25 -> 0 | AA100: 6 | AB100: 1 | AC100: 10 | AD100: 13 | AE100: 13 | AF100: 0 | AG100: 6 | AH100: 5 | AI100: 0
A101: 17 | B101: =B70*25 -> 105 | C101: 8 | D101: 70 | E101: -336 | F101: -40 | G101: 136 | H101: 59 | I101: -14 | J101: 9 | K101: 97 | M101: 17 | N101: =N70*25 -> 2 | O101: 6 | P101: 0 | Q101: 9 | R101: 25 | S101: 12 | T101: 0 | U101: 6 | V101: 6 | W101: 1 | Y101: 17 | Z101: =Z70*25 -> 0 | AA101: 6 | AB101: 0 | AC101: 9 | AD101: 13 | AE101: 12 | AF101: 0 | AG101: 6 | AH101: 5 | AI101: 0
A102: 18 | B102: =B71*25 -> 128 | C102: 7 | D102: 70 | E102: -336 | F102: -39 | G102: 145 | H102: 61 | I102: -13 | J102: 9 | K102: 95 | M102: 18 | N102: =N71*25 -> 1 | O102: 6 | P102: 0 | Q102: 8 | R102: 25 | S102: 11 | T102: 0 | U102: 5 | V102: 5 | W102: 1 | Y102: 18 | Z102: =Z71*25 -> 0 | AA102: 5 | AB102: 0 | AC102: 8 | AD102: 13 | AE102: 10 | AF102: 0 | AG102: 5 | AH102: 4 | AI102: 0
A103: 19 | B103: =B72*25 -> 150 | C103: 7 | D103: 71 | E103: -337 | F103: -38 | G103: 155 | H103: 63 | I103: -13 | J103: 9 | K103: 93 | M103: 19 | N103: =N72*25 -> 1 | O103: 5 | P103: 0 | Q103: 7 | R103: 25 | S103: 9 | T103: 1 | U103: 5 | V103: 5 | W103: 1 | Y103: 19 | Z103: =Z72*25 -> 0 | AA103: 5 | AB103: 0 | AC103: 7 | AD103: 13 | AE103: 9 | AF103: 0 | AG103: 5 | AH103: 4 | AI103: -0
A104: 20 | B104: =B73*25 -> 170 | C104: 6 | D104: 71 | E104: -341 | F104: -37 | G104: 163 | H104: 65 | I104: -13 | J104: 8 | K104: 90 | M104: 20 | N104: =N73*25 -> 1 | O104: 5 | P104: 0 | Q104: 5 | R104: 25 | S104: 7 | T104: 1 | U104: 4 | V104: 4 | W104: 1 | Y104: 20 | Z104: =Z73*25 -> -0 | AA104: 4 | AB104: 0 | AC104: 5 | AD104: 13 | AE104: 7 | AF104: 0 | AG104: 4 | AH104: 3 | AI104: 0
A105: 21 | B105: =B74*25 -> 189 | C105: 6 | D105: 70 | E105: -346 | F105: -37 | G105: 172 | H105: 67 | I105: -12 | J105: 8 | K105: 86 | M105: 21 | N105: =N74*25 -> 2 | O105: 4 | P105: 0 | Q105: 4 | R105: 25 | S105: 6 | T105: 1 | U105: 3 | V105: 3 | W105: 1 | Y105: 21 | Z105: =Z74*25 -> 0 | AA105: 4 | AB105: 0 | AC105: 4 | AD105: 13 | AE105: 6 | AF105: 0 | AG105: 3 | AH105: 3 | AI105: 0
A106: 22 | B106: =B75*25 -> 206 | C106: 5 | D106: 69 | E106: -352 | F106: -37 | G106: 180 | H106: 69 | I106: -13 | J106: 8 | K106: 83 | M106: 22 | N106: =N75*25 -> 3 | O106: 3 | P106: 0 | Q106: 3 | R106: 25 | S106: 4 | T106: 1 | U106: 3 | V106: 3 | W106: 1 | Y106: 22 | Z106: =Z75*25 -> 0 | AA106: 3 | AB106: 0 | AC106: 3 | AD106: 13 | AE106: 4 | AF106: 0 | AG106: 3 | AH106: 2 | AI106: 0
A107: 23 | B107: =B76*25 -> 221 | C107: 4 | D107: 67 | E107: -360 | F107: -38 | G107: 188 | H107: 71 | I107: -13 | J107: 8 | K107: 78 | M107: 23 | N107: =N76*25 -> 4 | O107: 2 | P107: 1 | Q107: 2 | R107: 25 | S107: 3 | T107: 1 | U107: 2 | V107: 2 | W107: 1 | Y107: 23 | Z107: =Z76*25 -> 0 | AA107: 2 | AB107: 0 | AC107: 2 | AD107: 13 | AE107: 3 | AF107: 0 | AG107: 2 | AH107: 2 | AI107: 0
A108: 24 | B108: =B77*25 -> 234 | C108: 4 | D108: 65 | E108: -370 | F108: -39 | G108: 195 | H108: 73 | I108: -13 | J108: 8 | K108: 74 | M108: 24 | N108: =N77*25 -> 6 | O108: 1 | P108: 1 | Q108: 1 | R108: 25 | S108: 1 | T108: 1 | U108: 1 | V108: 1 | W108: 1 | Y108: 24 | Z108: =Z77*25 -> 0 | AA108: 1 | AB108: 1 | AC108: 1 | AD108: 13 | AE108: 1 | AF108: 1 | AG108: 1 | AH108: 1 | AI108: 0
A109: 25 | B109: =B78*25 -> 246 | C109: 3 | D109: 63 | E109: -381 | F109: -41 | G109: 202 | H109: 75 | I109: -13 | J109: 7 | K109: 69 | M109: 25 | N109: =N78*25 -> 8 | O109: 0 | P109: 1 | Q109: 0 | R109: 25 | S109: 0 | T109: 1 | U109: 0 | V109: 0 | W109: 1 | Y109: 25 | Z109: =Z78*25 -> 0 | AA109: 0 | AB109: 1 | AC109: 0 | AD109: 13 | AE109: 0 | AF109: 1 | AG109: 0 | AH109: 0 | AI109: 1
A114: Absolute CFs for lifetime impacts, considering 1 year after decommissioning
M115: Sandy seabed to scour protection | Y115: Sandy seabed to scour protection + 5m of foundation
M116: Unit: species.year/structure | Y116: Unit: species.year/structure
M117: Age, t [yr] | N117: TOTAL | O117: Porifera | P117: Cnidaria | Q117: Worms | R117: Mollusca | S117: Arthropoda | T117: Bryozoa | U117: Echinodermata | V117: Chordata | W117: Aliens | Y117: Age, t [yr] | Z117: TOTAL | AA117: Porifera | AB117: Cnidaria | AC117: Worms | AD117: Mollusca | AE117: Arthropoda | AF117: Bryozoa | AG117: Echinodermata | AH117: Chordata | AI117: Aliens
M118: 1 | N118: 43 | P118: 2 | Q118: 46 | R118: 11 | S118: 7 | T118: -2 | U118: 3 | V118: -0 | W118: -5 | Y118: 1 | Z118: 43 | AB118: 2 | AC118: 46 | AD118: 10 | AE118: 7 | AF118: -2 | AG118: 3 | AH118: -0 | AI118: -5
M119: 2 | N119: 60 | P119: 2 | Q119: 66 | R119: 15 | S119: 9 | T119: -3 | U119: 5 | V119: -1 | W119: -7 | Y119: 2 | Z119: 60 | AB119: 2 | AC119: 66 | AD119: 15 | AE119: 9 | AF119: -3 | AG119: 5 | AH119: -1 | AI119: -7
M120: 3 | N120: 75 | P120: 1 | Q120: 86 | R120: 19 | S120: 10 | T120: -4 | U120: 6 | V120: -1 | W120: -10 | Y120: 3 | Z120: 75 | AB120: 1 | AC120: 86 | AD120: 19 | AE120: 10 | AF120: -4 | AG120: 6 | AH120: -1 | AI120: -11
M121: 4 | N121: 88 | P121: 1 | Q121: 104 | R121: 23 | S121: 11 | T121: -5 | U121: 8 | V121: -1 | W121: -14 | Y121: 4 | Z121: 88 | AB121: 1 | AC121: 104 | AD121: 23 | AE121: 11 | AF121: -5 | AG121: 8 | AH121: -1 | AI121: -14
M122: 5 | N122: 99 | P122: -0 | Q122: 122 | R122: 27 | S122: 11 | T122: -6 | U122: 9 | V122: -1 | W122: -17 | Y122: 5 | Z122: 99 | AB122: -0 | AC122: 122 | AD122: 27 | AE122: 11 | AF122: -6 | AG122: 9 | AH122: -1 | AI122: -17
M123: 6 | N123: 109 | P123: -2 | Q123: 139 | R123: 30 | S123: 11 | T123: -8 | U123: 10 | V123: -2 | W123: -21 | Y123: 6 | Z123: 109 | AB123: -2 | AC123: 139 | AD123: 30 | AE123: 10 | AF123: -8 | AG123: 10 | AH123: -2 | AI123: -21
M124: 7 | N124: 117 | P124: -3 | Q124: 156 | R124: 34 | S124: 9 | T124: -9 | U124: 11 | V124: -2 | W124: -24 | Y124: 7 | Z124: 117 | AB124: -3 | AC124: 156 | AD124: 33 | AE124: 9 | AF124: -9 | AG124: 11 | AH124: -2 | AI124: -24
M125: 8 | N125: 123 | P125: -5 | Q125: 171 | R125: 36 | S125: 8 | T125: -11 | U125: 12 | V125: -2 | W125: -28 | Y125: 8 | Z125: 123 | AB125: -5 | AC125: 171 | AD125: 36 | AE125: 8 | AF125: -11 | AG125: 12 | AH125: -2 | AI125: -28
M126: 9 | N126: 128 | P126: -7 | Q126: 187 | R126: 39 | S126: 6 | T126: -13 | U126: 13 | V126: -3 | W126: -32 | Y126: 9 | Z126: 128 | AB126: -7 | AC126: 187 | AD126: 39 | AE126: 6 | AF126: -13 | AG126: 13 | AH126: -3 | AI126: -32
M127: 10 | N127: 131 | P127: -9 | Q127: 202 | R127: 42 | S127: 3 | T127: -14 | U127: 13 | V127: -3 | W127: -36 | Y127: 10 | Z127: 131 | AB127: -9 | AC127: 202 | AD127: 41 | AE127: 3 | AF127: -14 | AG127: 13 | AH127: -3 | AI127: -36
M128: 11 | N128: 134 | P128: -11 | Q128: 216 | R128: 44 | S128: -0 | T128: -16 | U128: 14 | V128: -3 | W128: -40 | Y128: 11 | Z128: 133 | AB128: -11 | AC128: 216 | AD128: 43 | AE128: -0 | AF128: -16 | AG128: 14 | AH128: -3 | AI128: -40
M129: 12 | N129: 134 | P129: -13 | Q129: 230 | R129: 46 | S129: -4 | T129: -18 | U129: 15 | V129: -4 | W129: -44 | Y129: 12 | Z129: 134 | AB129: -13 | AC129: 230 | AD129: 46 | AE129: -4 | AF129: -18 | AG129: 15 | AH129: -4 | AI129: -44
M130: 13 | N130: 134 | P130: -16 | Q130: 244 | R130: 48 | S130: -8 | T130: -20 | U130: 16 | V130: -4 | W130: -48 | Y130: 13 | Z130: 134 | AB130: -16 | AC130: 244 | AD130: 48 | AE130: -8 | AF130: -20 | AG130: 16 | AH130: -4 | AI130: -48
M131: 14 | N131: 132 | P131: -19 | Q131: 258 | R131: 50 | S131: -12 | T131: -23 | U131: 16 | V131: -5 | W131: -52 | Y131: 14 | Z131: 132 | AB131: -19 | AC131: 258 | AD131: 49 | AE131: -12 | AF131: -23 | AG131: 16 | AH131: -5 | AI131: -52
M132: 15 | N132: 129 | P132: -21 | Q132: 271 | R132: 52 | S132: -17 | T132: -25 | U132: 17 | V132: -5 | W132: -56 | Y132: 15 | Z132: 129 | AB132: -21 | AC132: 271 | AD132: 51 | AE132: -17 | AF132: -25 | AG132: 17 | AH132: -5 | AI132: -56
M133: 16 | N133: 126 | P133: -24 | Q133: 284 | R133: 53 | S133: -22 | T133: -27 | U133: 17 | V133: -5 | W133: -60 | Y133: 16 | Z133: 126 | AB133: -24 | AC133: 284 | AD133: 53 | AE133: -22 | AF133: -27 | AG133: 17 | AH133: -5 | AI133: -60
M134: 17 | N134: 121 | P134: -27 | Q134: 298 | R134: 55 | S134: -28 | T134: -29 | U134: 18 | V134: -6 | W134: -64 | Y134: 17 | Z134: 121 | AB134: -27 | AC134: 298 | AD134: 54 | AE134: -28 | AF134: -29 | AG134: 18 | AH134: -6 | AI134: -64
M135: 18 | N135: 115 | P135: -30 | Q135: 311 | R135: 56 | S135: -34 | T135: -32 | U135: 18 | V135: -6 | W135: -67 | Y135: 18 | Z135: 115 | AB135: -30 | AC135: 311 | AD135: 56 | AE135: -34 | AF135: -32 | AG135: 18 | AH135: -6 | AI135: -67
M136: 19 | N136: 109 | P136: -33 | Q136: 325 | R136: 58 | S136: -41 | T136: -34 | U136: 19 | V136: -6 | W136: -71 | Y136: 19 | Z136: 109 | AB136: -33 | AC136: 325 | AD136: 57 | AE136: -41 | AF136: -35 | AG136: 19 | AH136: -6 | AI136: -71
M137: 20 | N137: 102 | P137: -35 | Q137: 338 | R137: 59 | S137: -47 | T137: -37 | U137: 19 | V137: -7 | W137: -75 | Y137: 20 | Z137: 101 | AB137: -35 | AC137: 338 | AD137: 59 | AE137: -47 | AF137: -37 | AG137: 19 | AH137: -7 | AI137: -75
M138: 21 | N138: 94 | P138: -38 | Q138: 352 | R138: 61 | S138: -54 | T138: -40 | U138: 20 | V138: -7 | W138: -78 | Y138: 21 | Z138: 94 | AB138: -38 | AC138: 352 | AD138: 60 | AE138: -54 | AF138: -40 | AG138: 20 | AH138: -7 | AI138: -78
M139: 22 | N139: 85 | P139: -41 | Q139: 366 | R139: 62 | S139: -62 | T139: -43 | U139: 20 | V139: -7 | W139: -81 | Y139: 22 | Z139: 85 | AB139: -41 | AC139: 366 | AD139: 62 | AE139: -62 | AF139: -43 | AG139: 20 | AH139: -7 | AI139: -81
M140: 23 | N140: 76 | P140: -44 | Q140: 381 | R140: 64 | S140: -70 | T140: -46 | U140: 21 | V140: -8 | W140: -84 | Y140: 23 | Z140: 76 | AB140: -44 | AC140: 381 | AD140: 63 | AE140: -70 | AF140: -46 | AG140: 21 | AH140: -8 | AI140: -84
M141: 24 | N141: 66 | P141: -46 | Q141: 396 | R141: 65 | S141: -78 | T141: -48 | U141: 21 | V141: -8 | W141: -87 | Y141: 24 | Z141: 66 | AB141: -46 | AC141: 396 | AD141: 65 | AE141: -78 | AF141: -49 | AG141: 21 | AH141: -8 | AI141: -87
M142: 25 | N142: 56 | P142: -49 | Q142: 411 | R142: 67 | S142: -86 | T142: -52 | U142: 22 | V142: -8 | W142: -90 | Y142: 25 | Z142: 56 | AB142: -49 | AC142: 411 | AD142: 67 | AE142: -86 | AF142: -52 | AG142: 22 | AH142: -8 | AI142: -90
A144: Hard seabed to sandy seabed | M144: Hard seabed to scour protection | Y144: Hard seabed to scour protection + 5m of foundation
A145: Unit: species.year/structure | M145: Unit: species.year/structure | Y145: Unit: species.year/structure
A146: Age, t [yr] | B146: TOTAL | C146: Porifera | D146: Cnidaria | E146: Worms | F146: Mollusca | G146: Arthropoda | H146: Bryozoa | I146: Echinodermata | J146: Chordata | K146: Aliens | M146: Age, t [yr] | N146: TOTAL | O146: Porifera | P146: Cnidaria | Q146: Worms | R146: Mollusca | S146: Arthropoda | T146: Bryozoa | U146: Echinodermata | V146: Chordata | W146: Aliens | Y146: Age, t [yr] | Z146: TOTAL | AA146: Porifera | AB146: Cnidaria | AC146: Worms | AD146: Mollusca | AE146: Arthropoda | AF146: Bryozoa | AG146: Echinodermata | AH146: Chordata | AI146: Aliens
A147: 1 | B147: -7 | C147: -0 | D147: 5 | E147: -19 | F147: -6 | G147: -1 | H147: 2 | I147: -3 | J147: 1 | K147: 2 | M147: 1 | N147: 16 | O147: -0 | P147: 6 | Q147: 5 | R147: -0 | S147: 4 | T147: 2 | U147: -1 | V147: 1 | W147: -0 | Y147: 1 | Z147: 15 | AA147: -0 | AB147: 6 | AC147: 5 | AD147: -1 | AE147: 4 | AF147: 2 | AG147: -1 | AH147: 1 | AI147: -0
A148: 2 | B148: -2 | C148: -0 | D148: 8 | E148: -18 | F148: -7 | G148: -0 | H148: 3 | I148: -3 | J148: 2 | K148: 2 | M148: 2 | N148: 18 | O148: -0 | P148: 8 | Q148: 5 | R148: -1 | S148: 4 | T148: 2 | U148: -2 | V148: 2 | W148: -1 | Y148: 2 | Z148: 18 | AA148: -0 | AB148: 8 | AC148: 5 | AD148: -2 | AE148: 3 | AF148: 2 | AG148: -2 | AH148: 2 | AI148: -1
A149: 3 | B149: 1 | C149: -0 | D149: 10 | E149: -18 | F149: -8 | G149: -0 | H149: 4 | I149: -4 | J149: 2 | K149: 1 | M149: 3 | N149: 19 | O149: -1 | P149: 10 | Q149: 3 | R149: -3 | S149: 3 | T149: 3 | U149: -3 | V149: 2 | W149: -2 | Y149: 3 | Z149: 19 | AA149: -0 | AB149: 10 | AC149: 3 | AD149: -3 | AE149: 3 | AF149: 3 | AG149: -3 | AH149: 2 | AI149: -2
A150: 4 | B150: 3 | C150: -1 | D150: 12 | E150: -19 | F150: -9 | G150: -1 | H150: 4 | I150: -5 | J150: 3 | K150: 0 | M150: 4 | N150: 18 | O150: -1 | P150: 12 | Q150: 2 | R150: -4 | S150: 2 | T150: 3 | U150: -4 | V150: 3 | W150: -2 | Y150: 4 | Z150: 18 | AA150: -1 | AB150: 12 | AC150: 2 | AD150: -5 | AE150: 1 | AF150: 3 | AG150: -4 | AH150: 3 | AI150: -3
A151: 5 | B151: 2 | C151: -1 | D151: 13 | E151: -20 | F151: -11 | G151: -2 | H151: 5 | I151: -6 | J151: 3 | K151: -1 | M151: 5 | N151: 16 | O151: -1 | P151: 13 | Q151: -1 | R151: -6 | S151: -0 | T151: 3 | U151: -5 | V151: 3 | W151: -4 | Y151: 5 | Z151: 16 | AA151: -1 | AB151: 13 | AC151: -1 | AD151: -6 | AE151: -0 | AF151: 3 | AG151: -5 | AH151: 3 | AI151: -4
A152: 6 | B152: -0 | C152: -1 | D152: 15 | E152: -23 | F152: -12 | G152: -4 | H152: 5 | I152: -7 | J152: 4 | K152: -2 | M152: 6 | N152: 11 | O152: -1 | P152: 14 | Q152: -5 | R152: -8 | S152: -3 | T152: 4 | U152: -6 | V152: 4 | W152: -5 | Y152: 6 | Z152: 11 | AA152: -1 | AB152: 14 | AC152: -5 | AD152: -9 | AE152: -3 | AF152: 4 | AG152: -6 | AH152: 4 | AI152: -5
A153: 7 | B153: -5 | C153: -1 | D153: 16 | E153: -26 | F153: -15 | G153: -6 | H153: 5 | I153: -8 | J153: 4 | K153: -3 | M153: 7 | N153: 5 | O153: -1 | P153: 15 | Q153: -9 | R153: -11 | S153: -6 | T153: 4 | U153: -7 | V153: 4 | W153: -6 | Y153: 7 | Z153: 5 | AA153: -1 | AB153: 15 | AC153: -9 | AD153: -11 | AE153: -6 | AF153: 4 | AG153: -7 | AH153: 4 | AI153: -6
A154: 8 | B154: -10 | C154: -1 | D154: 17 | E154: -30 | F154: -17 | G154: -9 | H154: 5 | I154: -10 | J154: 5 | K154: -4 | M154: 8 | N154: -2 | O154: -2 | P154: 15 | Q154: -13 | R154: -13 | S154: -9 | T154: 4 | U154: -8 | V154: 5 | W154: -8 | Y154: 8 | Z154: -2 | AA154: -2 | AB154: 15 | AC154: -13 | AD154: -14 | AE154: -9 | AF154: 4 | AG154: -8 | AH154: 5 | AI154: -8
A155: 9 | B155: -18 | C155: -2 | D155: 17 | E155: -35 | F155: -20 | G155: -12 | H155: 5 | I155: -11 | J155: 5 | K155: -6 | M155: 9 | N155: -11 | O155: -2 | P155: 15 | Q155: -18 | R155: -16 | S155: -13 | T155: 4 | U155: -10 | V155: 5 | W155: -9 | Y155: 9 | Z155: -11 | AA155: -2 | AB155: 15 | AC155: -18 | AD155: -17 | AE155: -13 | AF155: 4 | AG155: -10 | AH155: 5 | AI155: -10
A156: 10 | B156: -27 | C156: -2 | D156: 17 | E156: -40 | F156: -23 | G156: -16 | H156: 5 | I156: -12 | J156: 6 | K156: -7 | M156: 10 | N156: -22 | O156: -2 | P156: 16 | Q156: -24 | R156: -19 | S156: -18 | T156: 4 | U156: -11 | V156: 6 | W156: -11 | Y156: 10 | Z156: -22 | AA156: -2 | AB156: 16 | AC156: -24 | AD156: -20 | AE156: -18 | AF156: 4 | AG156: -11 | AH156: 6 | AI156: -11
A157: 11 | B157: -37 | C157: -2 | D157: 18 | E157: -46 | F157: -26 | G157: -21 | H157: 5 | I157: -14 | J157: 6 | K157: -9 | M157: 11 | N157: -34 | O157: -2 | P157: 16 | Q157: -30 | R157: -23 | S157: -23 | T157: 3 | U157: -13 | V157: 6 | W157: -13 | Y157: 11 | Z157: -34 | AA157: -2 | AB157: 16 | AC157: -30 | AD157: -23 | AE157: -23 | AF157: 3 | AG157: -13 | AH157: 6 | AI157: -13
A158: 12 | B158: -49 | C158: -3 | D158: 18 | E158: -52 | F158: -29 | G158: -26 | H158: 5 | I158: -15 | J158: 7 | K158: -11 | M158: 12 | N158: -47 | O158: -3 | P158: 15 | Q158: -37 | R158: -26 | S158: -28 | T158: 3 | U158: -14 | V158: 7 | W158: -15 | Y158: 12 | Z158: -47 | AA158: -3 | AB158: 15 | AC158: -37 | AD158: -26 | AE158: -28 | AF158: 3 | AG158: -14 | AH158: 7 | AI158: -15
A159: 13 | B159: -62 | C159: -3 | D159: 17 | E159: -58 | F159: -32 | G159: -31 | H159: 5 | I159: -17 | J159: 7 | K159: -12 | M159: 13 | N159: -61 | O159: -3 | P159: 15 | Q159: -43 | R159: -30 | S159: -34 | T159: 3 | U159: -16 | V159: 7 | W159: -16 | Y159: 13 | Z159: -61 | AA159: -3 | AB159: 15 | AC159: -43 | AD159: -30 | AE159: -34 | AF159: 3 | AG159: -16 | AH159: 7 | AI159: -16
A160: 14 | B160: -76 | C160: -3 | D160: 17 | E160: -64 | F160: -36 | G160: -37 | H160: 4 | I160: -18 | J160: 8 | K160: -14 | M160: 14 | N160: -77 | O160: -3 | P160: 15 | Q160: -50 | R160: -33 | S160: -41 | T160: 2 | U160: -17 | V160: 7 | W160: -18 | Y160: 14 | Z160: -77 | AA160: -3 | AB160: 15 | AC160: -50 | AD160: -34 | AE160: -41 | AF160: 2 | AG160: -17 | AH160: 7 | AI160: -18
A161: 15 | B161: -92 | C161: -3 | D161: 17 | E161: -71 | F161: -40 | G161: -43 | H161: 4 | I161: -20 | J161: 8 | K161: -16 | M161: 15 | N161: -94 | O161: -3 | P161: 14 | Q161: -57 | R161: -37 | S161: -47 | T161: 1 | U161: -19 | V161: 8 | W161: -20 | Y161: 15 | Z161: -94 | AA161: -3 | AB161: 14 | AC161: -57 | AD161: -37 | AE161: -47 | AF161: 1 | AG161: -19 | AH161: 8 | AI161: -20
A162: 16 | B162: -108 | C162: -4 | D162: 16 | E162: -78 | F162: -44 | G162: -50 | H162: 3 | I162: -21 | J162: 8 | K162: -18 | M162: 16 | N162: -111 | O162: -4 | P162: 14 | Q162: -64 | R162: -41 | S162: -55 | T162: 1 | U162: -21 | V162: 8 | W162: -22 | Y162: 16 | Z162: -111 | AA162: -4 | AB162: 14 | AC162: -64 | AD162: -41 | AE162: -55 | AF162: 1 | AG162: -21 | AH162: 8 | AI162: -22
A163: 17 | B163: -126 | C163: -4 | D163: 16 | E163: -85 | F163: -47 | G163: -57 | H163: 2 | I163: -23 | J163: 9 | K163: -19 | M163: 17 | N163: -130 | O163: -4 | P163: 13 | Q163: -72 | R163: -45 | S163: -62 | T163: -0 | U163: -22 | V163: 9 | W163: -23 | Y163: 17 | Z163: -130 | AA163: -4 | AB163: 13 | AC163: -72 | AD163: -45 | AE163: -62 | AF163: -0 | AG163: -22 | AH163: 9 | AI163: -23
A164: 18 | B164: -145 | C164: -4 | D164: 15 | E164: -92 | F164: -51 | G164: -65 | H164: 2 | I164: -25 | J164: 9 | K164: -21 | M164: 18 | N164: -150 | O164: -4 | P164: 12 | Q164: -79 | R164: -49 | S164: -70 | T164: -1 | U164: -24 | V164: 9 | W164: -25 | Y164: 18 | Z164: -150 | AA164: -4 | AB164: 12 | AC164: -79 | AD164: -49 | AE164: -70 | AF164: -1 | AG164: -24 | AH164: 9 | AI164: -25
A165: 19 | B165: -164 | C165: -4 | D165: 15 | E165: -100 | F165: -55 | G165: -73 | H165: 1 | I165: -27 | J165: 10 | K165: -22 | M165: 19 | N165: -170 | O165: -4 | P165: 12 | Q165: -86 | R165: -53 | S165: -79 | T165: -2 | U165: -26 | V165: 10 | W165: -26 | Y165: 19 | Z165: -170 | AA165: -4 | AB165: 12 | AC165: -86 | AD165: -53 | AE165: -79 | AF165: -2 | AG165: -26 | AH165: 10 | AI165: -26
A166: 20 | B166: -184 | C166: -4 | D166: 14 | E166: -106 | F166: -59 | G166: -81 | H166: -0 | I166: -28 | J166: 10 | K166: -24 | M166: 20 | N166: -191 | O166: -4 | P166: 11 | Q166: -93 | R166: -57 | S166: -87 | T166: -3 | U166: -28 | V166: 10 | W166: -27 | Y166: 20 | Z166: -191 | AA166: -4 | AB166: 11 | AC166: -93 | AD166: -57 | AE166: -87 | AF166: -3 | AG166: -28 | AH166: 10 | AI166: -27
A167: 21 | B167: -206 | C167: -4 | D167: 13 | E167: -113 | F167: -64 | G167: -90 | H167: -1 | I167: -30 | J167: 11 | K167: -25 | M167: 21 | N167: -213 | O167: -5 | P167: 11 | Q167: -99 | R167: -61 | S167: -96 | T167: -4 | U167: -29 | V167: 10 | W167: -29 | Y167: 21 | Z167: -213 | AA167: -5 | AB167: 11 | AC167: -99 | AD167: -62 | AE167: -96 | AF167: -4 | AG167: -29 | AH167: 10 | AI167: -29
A168: 22 | B168: -227 | C168: -5 | D168: 13 | E168: -120 | F168: -68 | G168: -98 | H168: -2 | I168: -32 | J168: 11 | K168: -26 | M168: 22 | N168: -236 | O168: -5 | P168: 10 | Q168: -106 | R168: -65 | S168: -106 | T168: -5 | U168: -31 | V168: 11 | W168: -30 | Y168: 22 | Z168: -236 | AA168: -5 | AB168: 10 | AC168: -106 | AD168: -66 | AE168: -106 | AF168: -5 | AG168: -31 | AH168: 11 | AI168: -30
A169: 23 | B169: -250 | C169: -5 | D169: 12 | E169: -126 | F169: -72 | G169: -108 | H169: -4 | I169: -33 | J169: 12 | K169: -27 | M169: 23 | N169: -259 | O169: -5 | P169: 10 | Q169: -112 | R169: -69 | S169: -115 | T169: -6 | U169: -33 | V169: 11 | W169: -30 | Y169: 23 | Z169: -259 | AA169: -5 | AB169: 10 | AC169: -112 | AD169: -70 | AE169: -115 | AF169: -6 | AG169: -33 | AH169: 11 | AI169: -30
A170: 24 | B170: -273 | C170: -5 | D170: 12 | E170: -132 | F170: -76 | G170: -117 | H170: -5 | I170: -35 | J170: 12 | K170: -28 | M170: 24 | N170: -282 | O170: -5 | P170: 9 | Q170: -117 | R170: -73 | S170: -125 | T170: -8 | U170: -35 | V170: 12 | W170: -31 | Y170: 24 | Z170: -282 | AA170: -5 | AB170: 9 | AC170: -117 | AD170: -74 | AE170: -125 | AF170: -8 | AG170: -35 | AH170: 12 | AI170: -31
A171: 25 | B171: -297 | C171: -5 | D171: 11 | E171: -138 | F171: -80 | G171: -127 | H171: -6 | I171: -37 | J171: 13 | K171: -29 | M171: 25 | N171: -306 | O171: -5 | P171: 9 | Q171: -122 | R171: -77 | S171: -135 | T171: -9 | U171: -36 | V171: 12 | W171: -31 | Y171: 25 | Z171: -306 | AA171: -5 | AB171: 9 | AC171: -122 | AD171: -77 | AE171: -135 | AF171: -9 | AG171: -36 | AH171: 12 | AI171: -31
A175: Absolute CFs for lifetime impacts, considering 25 years after decommissioning
M176: Sandy seabed to scour protection | Y176: Sandy seabed to scour protection + 5m of foundation
M177: Unit: species.year/structure | Y177: Unit: species.year/structure
M178: Age, t [yr] | N178: TOTAL | O178: Porifera | P178: Cnidaria | Q178: Worms | R178: Mollusca | S178: Arthropoda | T178: Bryozoa | U178: Echinodermata | V178: Chordata | W178: Aliens | Y178: Age, t [yr] | Z178: TOTAL | AA178: Porifera | AB178: Cnidaria | AC178: Worms | AD178: Mollusca | AE178: Arthropoda | AF178: Bryozoa | AG178: Echinodermata | AH178: Chordata | AI178: Aliens
M179: 1 | N179: 580 | P179: 28 | Q179: 602 | R179: 140 | S179: 112 | T179: -22 | U179: 46 | V179: -3 | W179: -57 | Y179: 1 | Z179: 575 | AB179: 28 | AC179: 602 | AD179: 136 | AE179: 109 | AF179: -22 | AG179: 46 | AH179: -3 | AI179: -58
M180: 2 | N180: 543 | P180: 18 | Q180: 597 | R180: 137 | S180: 97 | T180: -26 | U180: 46 | V180: -3 | W180: -66 | Y180: 2 | Z180: 538 | AB180: 18 | AC180: 597 | AD180: 133 | AE180: 94 | AF180: -26 | AG180: 46 | AH180: -3 | AI180: -67
M181: 3 | N181: 505 | P181: 8 | Q181: 592 | R181: 135 | S181: 81 | T181: -29 | U181: 45 | V181: -3 | W181: -75 | Y181: 3 | Z181: 501 | AB181: 8 | AC181: 592 | AD181: 130 | AE181: 79 | AF181: -30 | AG181: 45 | AH181: -3 | AI181: -76
M182: 4 | N182: 467 | P182: -1 | Q182: 588 | R182: 133 | S182: 66 | T182: -33 | U182: 45 | V182: -3 | W182: -83 | Y182: 4 | Z182: 464 | AB182: -2 | AC182: 588 | AD182: 127 | AE182: 64 | AF182: -33 | AG182: 44 | AH182: -3 | AI182: -84
M183: 5 | N183: 430 | P183: -11 | Q183: 585 | R183: 131 | S183: 50 | T183: -37 | U183: 44 | V183: -3 | W183: -91 | Y183: 5 | Z183: 428 | AB183: -11 | AC183: 585 | AD183: 124 | AE183: 49 | AF183: -37 | AG183: 44 | AH183: -4 | AI183: -93
M184: 6 | N184: 393 | P184: -20 | Q184: 583 | R184: 129 | S184: 35 | T184: -41 | U184: 43 | V184: -3 | W184: -99 | Y184: 6 | Z184: 391 | AB184: -20 | AC184: 583 | AD184: 121 | AE184: 33 | AF184: -41 | AG184: 43 | AH184: -4 | AI184: -100
M185: 7 | N185: 356 | P185: -28 | Q185: 581 | R185: 127 | S185: 19 | T185: -44 | U185: 43 | V185: -4 | W185: -106 | Y185: 7 | Z185: 355 | AB185: -29 | AC185: 581 | AD185: 119 | AE185: 17 | AF185: -44 | AG185: 42 | AH185: -4 | AI185: -108
M186: 8 | N186: 320 | P186: -37 | Q186: 581 | R186: 125 | S186: 2 | T186: -48 | U186: 42 | V186: -4 | W186: -113 | Y186: 8 | Z186: 319 | AB186: -37 | AC186: 581 | AD186: 117 | AE186: 1 | AF186: -48 | AG186: 42 | AH186: -5 | AI186: -114
M187: 9 | N187: 284 | P187: -45 | Q187: 581 | R187: 124 | S187: -14 | T187: -52 | U187: 41 | V187: -4 | W187: -120 | Y187: 9 | Z187: 283 | AB187: -45 | AC187: 581 | AD187: 114 | AE187: -15 | AF187: -52 | AG187: 41 | AH187: -5 | AI187: -121
M188: 10 | N188: 249 | P188: -52 | Q188: 583 | R188: 122 | S188: -30 | T188: -56 | U188: 40 | V188: -5 | W188: -126 | Y188: 10 | Z188: 248 | AB188: -52 | AC188: 583 | AD188: 113 | AE188: -31 | AF188: -56 | AG188: 40 | AH188: -6 | AI188: -127
M189: 11 | N189: 214 | P189: -59 | Q189: 585 | R189: 121 | S189: -47 | T189: -60 | U189: 40 | V189: -5 | W189: -132 | Y189: 11 | Z189: 214 | AB189: -60 | AC189: 585 | AD189: 111 | AE189: -48 | AF189: -60 | AG189: 40 | AH189: -6 | AI189: -133
M190: 12 | N190: 180 | P190: -66 | Q190: 589 | R190: 120 | S190: -63 | T190: -65 | U190: 39 | V190: -6 | W190: -137 | Y190: 12 | Z190: 180 | AB190: -66 | AC190: 589 | AD190: 109 | AE190: -64 | AF190: -65 | AG190: 39 | AH190: -7 | AI190: -138
M191: 13 | N191: 147 | P191: -73 | Q191: 594 | R191: 119 | S191: -80 | T191: -69 | U191: 39 | V191: -6 | W191: -142 | Y191: 13 | Z191: 146 | AB191: -73 | AC191: 594 | AD191: 108 | AE191: -81 | AF191: -69 | AG191: 39 | AH191: -7 | AI191: -143
M192: 14 | N192: 114 | P192: -79 | Q192: 601 | R192: 118 | S192: -97 | T192: -73 | U192: 38 | V192: -7 | W192: -146 | Y192: 14 | Z192: 114 | AB192: -79 | AC192: 601 | AD192: 107 | AE192: -97 | AF192: -73 | AG192: 38 | AH192: -8 | AI192: -147
M193: 15 | N193: 82 | P193: -84 | Q193: 608 | R193: 117 | S193: -113 | T193: -77 | U193: 37 | V193: -7 | W193: -150 | Y193: 15 | Z193: 82 | AB193: -84 | AC193: 608 | AD193: 106 | AE193: -114 | AF193: -77 | AG193: 37 | AH193: -8 | AI193: -151
M194: 16 | N194: 52 | P194: -89 | Q194: 618 | R194: 117 | S194: -130 | T194: -81 | U194: 37 | V194: -8 | W194: -153 | Y194: 16 | Z194: 51 | AB194: -89 | AC194: 618 | AD194: 106 | AE194: -130 | AF194: -82 | AG194: 37 | AH194: -9 | AI194: -154
M195: 17 | N195: 22 | P195: -93 | Q195: 629 | R195: 117 | S195: -147 | T195: -86 | U195: 36 | V195: -9 | W195: -156 | Y195: 17 | Z195: 21 | AB195: -93 | AC195: 629 | AD195: 106 | AE195: -147 | AF195: -86 | AG195: 36 | AH195: -9 | AI195: -156
M196: 18 | N196: -7 | P196: -97 | Q196: 641 | R196: 118 | S196: -164 | T196: -90 | U196: 36 | V196: -9 | W196: -158 | Y196: 18 | Z196: -8 | AB196: -97 | AC196: 641 | AD196: 106 | AE196: -164 | AF196: -90 | AG196: 36 | AH196: -10 | AI196: -158
M197: 19 | N197: -34 | P197: -101 | Q197: 655 | R197: 118 | S197: -180 | T197: -95 | U197: 36 | V197: -10 | W197: -159 | Y197: 19 | Z197: -35 | AB197: -101 | AC197: 655 | AD197: 106 | AE197: -180 | AF197: -95 | AG197: 35 | AH197: -11 | AI197: -160
M198: 20 | N198: -61 | P198: -103 | Q198: 671 | R198: 119 | S198: -197 | T198: -99 | U198: 35 | V198: -11 | W198: -160 | Y198: 20 | Z198: -62 | AB198: -103 | AC198: 671 | AD198: 107 | AE198: -197 | AF198: -99 | AG198: 35 | AH198: -12 | AI198: -161
M199: 21 | N199: -86 | P199: -105 | Q199: 688 | R199: 121 | S199: -214 | T199: -104 | U199: 35 | V199: -12 | W199: -160 | Y199: 21 | Z199: -88 | AB199: -106 | AC199: 688 | AD199: 109 | AE199: -214 | AF199: -104 | AG199: 35 | AH199: -12 | AI199: -161
M200: 22 | N200: -110 | P200: -107 | Q200: 707 | R200: 122 | S200: -230 | T200: -108 | U200: 35 | V200: -13 | W200: -160 | Y200: 22 | Z200: -112 | AB200: -107 | AC200: 707 | AD200: 111 | AE200: -230 | AF200: -109 | AG200: 35 | AH200: -13 | AI200: -160
M201: 23 | N201: -132 | P201: -108 | Q201: 729 | R201: 125 | S201: -247 | T201: -113 | U201: 35 | V201: -14 | W201: -159 | Y201: 23 | Z201: -135 | AB201: -108 | AC201: 729 | AD201: 113 | AE201: -247 | AF201: -113 | AG201: 35 | AH201: -14 | AI201: -159
M202: 24 | N202: -153 | P202: -108 | Q202: 752 | R202: 127 | S202: -263 | T202: -117 | U202: 35 | V202: -15 | W202: -157 | Y202: 24 | Z202: -156 | AB202: -108 | AC202: 752 | AD202: 115 | AE202: -263 | AF202: -118 | AG202: 35 | AH202: -15 | AI202: -157
M203: 25 | N203: -172 | P203: -108 | Q203: 777 | R203: 130 | S203: -279 | T203: -122 | U203: 35 | V203: -16 | W203: -155 | Y203: 25 | Z203: -176 | AB203: -108 | AC203: 777 | AD203: 118 | AE203: -279 | AF203: -123 | AG203: 35 | AH203: -16 | AI203: -155
A205: Hard seabed to sandy seabed | M205: Hard seabed to scour protection | Y205: Hard seabed to scour protection + 5m of foundation
A206: Unit: species.year/structure | M206: Unit: species.year/structure | Y206: Unit: species.year/structure
A207: Age, t [yr] | B207: TOTAL | C207: Porifera | D207: Cnidaria | E207: Worms | F207: Mollusca | G207: Arthropoda | H207: Bryozoa | I207: Echinodermata | J207: Chordata | K207: Aliens | M207: Age, t [yr] | N207: TOTAL | O207: Porifera | P207: Cnidaria | Q207: Worms | R207: Mollusca | S207: Arthropoda | T207: Bryozoa | U207: Echinodermata | V207: Chordata | W207: Aliens | Y207: Age, t [yr] | Z207: TOTAL | AA207: Porifera | AB207: Cnidaria | AC207: Worms | AD207: Mollusca | AE207: Arthropoda | AF207: Bryozoa | AG207: Echinodermata | AH207: Chordata | AI207: Aliens
A208: 1 | B208: -341 | C208: 2 | D208: 58 | E208: -511 | F208: -139 | G208: -46 | H208: 42 | I208: -56 | J208: 20 | K208: 2 | M208: 1 | N208: 218 | O208: -2 | P208: 86 | Q208: 68 | R208: -4 | S208: 62 | T208: 20 | U208: -12 | V208: 18 | W208: -0 | Y208: 1 | Z208: 212 | AA208: -1 | AB208: 85 | AC208: 68 | AD208: -8 | AE208: 60 | AF208: 20 | AG208: -12 | AH208: 18 | AI208: 1
A209: 2 | B209: -336 | C209: 2 | D209: 61 | E209: -510 | F209: -140 | G209: -46 | H209: 42 | I209: -57 | J209: 21 | K209: 2 | M209: 2 | N209: 166 | O209: -2 | P209: 78 | Q209: 43 | R209: -12 | S209: 45 | T209: 18 | U209: -15 | V209: 19 | W209: -7 | Y209: 2 | Z209: 162 | AA209: -1 | AB209: 77 | AC209: 43 | AD209: -17 | AE209: 43 | AF209: 18 | AG209: -15 | AH209: 18 | AI209: -6
A210: 3 | B210: -333 | C210: 2 | D210: 63 | E210: -510 | F210: -141 | G210: -46 | H210: 43 | I210: -58 | J210: 22 | K210: 1 | M210: 3 | N210: 115 | O210: -2 | P210: 70 | Q210: 17 | R210: -20 | S210: 28 | T210: 16 | U210: -17 | V210: 19 | W210: -13 | Y210: 3 | Z210: 111 | AA210: -1 | AB210: 70 | AC210: 17 | AD210: -25 | AE210: 26 | AF210: 16 | AG210: -17 | AH210: 19 | AI210: -12
A211: 4 | B211: -332 | C211: 2 | D211: 65 | E211: -511 | F211: -142 | G211: -46 | H211: 43 | I211: -59 | J211: 22 | K211: 0 | M211: 4 | N211: 63 | O211: -2 | P211: 63 | Q211: -7 | R211: -28 | S211: 11 | T211: 14 | U211: -20 | V211: 20 | W211: -19 | Y211: 4 | Z211: 60 | AA211: -1 | AB211: 63 | AC211: -7 | AD211: -34 | AE211: 9 | AF211: 14 | AG211: -20 | AH211: 20 | AI211: -18
A212: 5 | B212: -333 | C212: 1 | D212: 67 | E212: -513 | F212: -144 | G212: -47 | H212: 44 | I212: -60 | J212: 23 | K212: -1 | M212: 5 | N212: 12 | O212: -2 | P212: 56 | Q212: -31 | R212: -35 | S212: -7 | T212: 12 | U212: -23 | V212: 21 | W212: -25 | Y212: 5 | Z212: 9 | AA212: -1 | AB212: 56 | AC212: -31 | AD212: -42 | AE212: -8 | AF212: 12 | AG212: -23 | AH212: 20 | AI212: -24
A213: 6 | B213: -335 | C213: 1 | D213: 68 | E213: -515 | F213: -145 | G213: -49 | H213: 44 | I213: -61 | J213: 23 | K213: -2 | M213: 6 | N213: -39 | O213: -2 | P213: 49 | Q213: -54 | R213: -43 | S213: -24 | T213: 10 | U213: -26 | V213: 21 | W213: -31 | Y213: 6 | Z213: -41 | AA213: -1 | AB213: 49 | AC213: -54 | AD213: -50 | AE213: -26 | AF213: 10 | AG213: -26 | AH213: 21 | AI213: -30
A214: 7 | B214: -339 | C214: 1 | D214: 69 | E214: -519 | F214: -148 | G214: -52 | H214: 44 | I214: -62 | J214: 23 | K214: -3 | M214: 7 | N214: -90 | O214: -2 | P214: 43 | Q214: -76 | R214: -50 | S214: -42 | T214: 8 | U214: -29 | V214: 22 | W214: -36 | Y214: 7 | Z214: -91 | AA214: -1 | AB214: 42 | AC214: -76 | AD214: -58 | AE214: -44 | AF214: 8 | AG214: -29 | AH214: 21 | AI214: -35
A215: 8 | B215: -345 | C215: 1 | D215: 70 | E215: -523 | F215: -150 | G215: -55 | H215: 45 | I215: -63 | J215: 24 | K215: -4 | M215: 8 | N215: -140 | O215: -2 | P215: 37 | Q215: -97 | R215: -58 | S215: -60 | T215: 6 | U215: -32 | V215: 22 | W215: -40 | Y215: 8 | Z215: -141 | AA215: -1 | AB215: 36 | AC215: -97 | AD215: -66 | AE215: -61 | AF215: 6 | AG215: -32 | AH215: 22 | AI215: -39
A216: 9 | B216: -352 | C216: 0 | D216: 70 | E216: -527 | F216: -153 | G216: -58 | H216: 45 | I216: -64 | J216: 24 | K216: -6 | M216: 9 | N216: -190 | O216: -2 | P216: 31 | Q216: -117 | R216: -65 | S216: -78 | T216: 3 | U216: -35 | V216: 23 | W216: -45 | Y216: 9 | Z216: -191 | AA216: -1 | AB216: 31 | AC216: -117 | AD216: -74 | AE216: -79 | AF216: 3 | AG216: -35 | AH216: 22 | AI216: -44
A217: 10 | B217: -361 | C217: 0 | D217: 71 | E217: -532 | F217: -156 | G217: -62 | H217: 45 | I217: -66 | J217: 25 | K217: -7 | M217: 10 | N217: -239 | O217: -2 | P217: 25 | Q217: -136 | R217: -72 | S217: -97 | T217: 1 | U217: -38 | V217: 23 | W217: -49 | Y217: 10 | Z217: -240 | AA217: -2 | AB217: 25 | AC217: -136 | AD217: -81 | AE217: -98 | AF217: 1 | AG217: -38 | AH217: 22 | AI217: -48
A218: 11 | B218: -372 | C218: -0 | D218: 71 | E218: -538 | F218: -159 | G218: -66 | H218: 44 | I218: -67 | J218: 25 | K218: -9 | M218: 11 | N218: -288 | O218: -2 | P218: 20 | Q218: -154 | R218: -79 | S218: -115 | T218: -2 | U218: -41 | V218: 24 | W218: -52 | Y218: 11 | Z218: -288 | AA218: -2 | AB218: 20 | AC218: -154 | AD218: -89 | AE218: -116 | AF218: -2 | AG218: -41 | AH218: 23 | AI218: -51
A219: 12 | B219: -384 | C219: -0 | D219: 71 | E219: -544 | F219: -162 | G219: -71 | H219: 44 | I219: -69 | J219: 26 | K219: -11 | M219: 12 | N219: -336 | O219: -2 | P219: 16 | Q219: -170 | R219: -85 | S219: -134 | T219: -4 | U219: -43 | V219: 24 | W219: -55 | Y219: 12 | Z219: -336 | AA219: -2 | AB219: 16 | AC219: -170 | AD219: -96 | AE219: -134 | AF219: -4 | AG219: -44 | AH219: 23 | AI219: -54
A220: 13 | B220: -397 | C220: -1 | D220: 71 | E220: -550 | F220: -165 | G220: -77 | H220: 44 | I220: -70 | J220: 26 | K220: -12 | M220: 13 | N220: -383 | O220: -2 | P220: 12 | Q220: -186 | R220: -92 | S220: -152 | T220: -7 | U220: -46 | V220: 24 | W220: -57 | Y220: 13 | Z220: -383 | AA220: -2 | AB220: 12 | AC220: -186 | AD220: -103 | AE220: -153 | AF220: -7 | AG220: -46 | AH220: 23 | AI220: -56
A221: 14 | B221: -411 | C221: -1 | D221: 70 | E221: -557 | F221: -169 | G221: -83 | H221: 43 | I221: -72 | J221: 27 | K221: -14 | M221: 14 | N221: -430 | O221: -2 | P221: 8 | Q221: -200 | R221: -98 | S221: -171 | T221: -9 | U221: -49 | V221: 24 | W221: -59 | Y221: 14 | Z221: -430 | AA221: -3 | AB221: 8 | AC221: -200 | AD221: -109 | AE221: -171 | AF221: -9 | AG221: -49 | AH221: 23 | AI221: -58
A222: 15 | B222: -426 | C222: -1 | D222: 70 | E222: -564 | F222: -173 | G222: -89 | H222: 43 | I222: -73 | J222: 27 | K222: -16 | M222: 15 | N222: -475 | O222: -3 | P222: 5 | Q222: -212 | R222: -104 | S222: -189 | T222: -12 | U222: -52 | V222: 25 | W222: -61 | Y222: 15 | Z222: -475 | AA222: -3 | AB222: 5 | AC222: -212 | AD222: -115 | AE222: -190 | AF222: -12 | AG222: -52 | AH222: 24 | AI222: -60
... 10 more rows

Sheet 4. Seabed in OWF (rel & abs)
A1: Potentially Disappeared Fraction of species [PDF.yr/structure] and absolute impacts [species.yr/structure] from changes in seabed within the OWF
A3: This sheet presents factors for the relative impacts on species (PDF.year) and the absolute impacts (species.year) from changes in the seabed within OWFs in relation to the construction and decommissioning of OWFs in the North Sea. The impacts from construction and decommissioning can be combined to cover the impacts of habitat changes associated with the whole lifetime of an OWF. Units: PDF.year/OWF seabed and species.year/OWF seabed. Abbreviations: OWF = Offshore Wind farm, PDF = Potentially Disappeared Fraction of species
A9: Color scale
A10: The cells are colored according to what is interpreted as a positive, neutral or negative impact. The coloring is different for alien species compared to all other species groups, as and increas of alien species is not considered positive like an increase in the other species groups are in LCA.
B13: Aliens | C13: All other species
A14: Positive | B14: Decrease in PDF.year or species.year (positive numbers) | C14: Increase in PDF.year or species.year (negative numbers)
A15: No impact | B15: Constant number of species
A16: Negative | B16: Increase in PDF.year or species.year (negative numbers) | C16: Decrease in PDF.year or species.year (positive numbers)
A18: Relative CFs for impacts of changing the seabed within the wind farm when constructing | M18: Absolute CFs for impacts of changing the seabed within the wind farm when constructing
A19: Removing the rocky seabed (sandy to rocky) | M19: Removing the rocky seabed (sandy to rocky)
A20: Unit: PDF.year/turbine | M20: Unit: species.year/OWF seabed
A21: Age, t [yr] | B21: TOTAL | C21: Porifera | D21: Cnidaria | E21: Worms | F21: Mollusca | G21: Arthropoda | H21: Bryozoa | I21: Echinodermata | J21: Chordata | K21: Aliens | M21: Age, t [yr] | N21: TOTAL | O21: Porifera | P21: Cnidaria | Q21: Worms | R21: Mollusca | S21: Arthropoda | T21: Bryozoa | U21: Echinodermata | V21: Chordata | W21: Aliens
A22: 1 | B22: -1 | C22: 1 | D22: 1 | E22: -11 | F22: -4 | G22: -0 | H22: 1 | I22: -8 | J22: 1 | K22: 1 | M22: 1 | N22: -14 | O22: 0 | P22: 2 | Q22: -21 | R22: -6 | S22: -2 | T22: 2 | U22: -2 | V22: 1 | W22: 2
A23: 2 | B23: =$B$22*A23 -> -2 | C23: =$C$22*A23 -> 2 | D23: =$D$22*A23 -> 1 | E23: =$E$22*A23 -> -23 | F23: =$F$22*A23 -> -9 | G23: =$G$22*A23 -> -1 | H23: =$H$22*A23 -> 2 | I23: =$I$22*A23 -> -16 | J23: =$J$22*A23 -> 2 | K23: =$K$22*A23 -> 2 | M23: 2 | N23: =$N$22*A23 -> -28 | O23: =$O$22*A23 -> 0 | P23: =$P$22*A23 -> 4 | Q23: =$Q$22*A23 -> -41 | R23: =$R$22*A23 -> -11 | S23: =$S$22*A23 -> -4 | T23: =$T$22*A23 -> 3 | U23: =$U$22*A23 -> -4 | V23: =$V$22*A23 -> 2 | W23: =$W$22*A23 -> 4
A24: 3 | B24: =$B$22*A24 -> -3 | C24: =$C$22*A24 -> 3 | D24: =$D$22*A24 -> 2 | E24: =$E$22*A24 -> -34 | F24: =$F$22*A24 -> -13 | G24: =$G$22*A24 -> -1 | H24: =$H$22*A24 -> 3 | I24: =$I$22*A24 -> -25 | J24: =$J$22*A24 -> 3 | K24: =$K$22*A24 -> 3 | M24: 3 | N24: -42 | O24: 0 | P24: 7 | Q24: -62 | R24: -17 | S24: -6 | T24: 5 | U24: -7 | V24: 2 | W24: 7
A25: 4 | B25: -3 | C25: 4 | D25: 2 | E25: -45 | F25: -17 | G25: -2 | H25: 3 | I25: -33 | J25: 4 | K25: 4 | M25: 4 | N25: -56 | O25: 0 | P25: 9 | Q25: -82 | R25: -22 | S25: -8 | T25: 7 | U25: -9 | V25: 3 | W25: 9
A26: 5 | B26: -4 | C26: 5 | D26: 3 | E26: -56 | F26: -22 | G26: -2 | H26: 4 | I26: -41 | J26: 5 | K26: 5 | M26: 5 | N26: -70 | O26: 0 | P26: 11 | Q26: -103 | R26: -28 | S26: -9 | T26: 8 | U26: -11 | V26: 4 | W26: 11
A27: 6 | B27: -5 | C27: 6 | D27: 3 | E27: -68 | F27: -26 | G27: -2 | H27: 5 | I27: -49 | J27: 6 | K27: 5 | M27: 6 | N27: -84 | O27: 1 | P27: 13 | Q27: -123 | R27: -33 | S27: -11 | T27: 10 | U27: -13 | V27: 5 | W27: 13
A28: 7 | B28: -6 | C28: 7 | D28: 4 | E28: -79 | F28: -30 | G28: -3 | H28: 6 | I28: -57 | J28: 7 | K28: 6 | M28: 7 | N28: -98 | O28: 1 | P28: 16 | Q28: -144 | R28: -39 | S28: -13 | T28: 11 | U28: -16 | V28: 6 | W28: 16
A29: 8 | B29: -7 | C29: 8 | D29: 4 | E29: -90 | F29: -35 | G29: -3 | H29: 7 | I29: -66 | J29: 8 | K29: 7 | M29: 8 | N29: -112 | O29: 1 | P29: 18 | Q29: -164 | R29: -44 | S29: -15 | T29: 13 | U29: -18 | V29: 6 | W29: 18
A30: 9 | B30: -8 | C30: 9 | D30: 5 | E30: -102 | F30: -39 | G30: -4 | H30: 8 | I30: -74 | J30: 9 | K30: 8 | M30: 9 | N30: -125 | O30: 1 | P30: 20 | Q30: -185 | R30: -50 | S30: -17 | T30: 15 | U30: -20 | V30: 7 | W30: 20
A31: 10 | B31: -9 | C31: 10 | D31: 5 | E31: -113 | F31: -44 | G31: -4 | H31: 9 | I31: -82 | J31: 10 | K31: 9 | M31: 10 | N31: -139 | O31: 1 | P31: 22 | Q31: -205 | R31: -55 | S31: -19 | T31: 16 | U31: -22 | V31: 8 | W31: 22
A32: 11 | B32: -10 | C32: 11 | D32: 6 | E32: -124 | F32: -48 | G32: -4 | H32: 9 | I32: -90 | J32: 11 | K32: 10 | M32: 11 | N32: -153 | O32: 1 | P32: 24 | Q32: -226 | R32: -61 | S32: -21 | T32: 18 | U32: -25 | V32: 9 | W32: 25
A33: 12 | B33: -10 | C33: 12 | D33: 6 | E33: -135 | F33: -52 | G33: -5 | H33: 10 | I33: -98 | J33: 12 | K33: 11 | M33: 12 | N33: -167 | O33: 1 | P33: 27 | Q33: -246 | R33: -66 | S33: -23 | T33: 20 | U33: -27 | V33: 10 | W33: 27
A34: 13 | B34: -11 | C34: 13 | D34: 7 | E34: -147 | F34: -57 | G34: -5 | H34: 11 | I34: -106 | J34: 13 | K34: 12 | M34: 13 | N34: -181 | O34: 1 | P34: 29 | Q34: -267 | R34: -72 | S34: -25 | T34: 21 | U34: -29 | V34: 10 | W34: 29
A35: 14 | B35: -12 | C35: 14 | D35: 7 | E35: -158 | F35: -61 | G35: -6 | H35: 12 | I35: -115 | J35: 14 | K35: 13 | M35: 14 | N35: -195 | O35: 1 | P35: 31 | Q35: -287 | R35: -78 | S35: -27 | T35: 23 | U35: -31 | V35: 11 | W35: 31
A36: 15 | B36: -13 | C36: 15 | D36: 8 | E36: -169 | F36: -65 | G36: -6 | H36: 13 | I36: -123 | J36: 15 | K36: 14 | M36: 15 | N36: -209 | O36: 1 | P36: 33 | Q36: -308 | R36: -83 | S36: -28 | T36: 25 | U36: -34 | V36: 12 | W36: 34
A37: 16 | B37: -14 | C37: 16 | D37: 8 | E37: -181 | F37: -70 | G37: -6 | H37: 14 | I37: -131 | J37: 16 | K37: 15 | M37: 16 | N37: -223 | O37: 1 | P37: 35 | Q37: -328 | R37: -89 | S37: -30 | T37: 26 | U37: -36 | V37: 13 | W37: 36
A38: 17 | B38: -15 | C38: 17 | D38: 9 | E38: -192 | F38: -74 | G38: -7 | H38: 15 | I38: -139 | J38: 17 | K38: 16 | M38: 17 | N38: -237 | O38: 2 | P38: 38 | Q38: -349 | R38: -94 | S38: -32 | T38: 28 | U38: -38 | V38: 14 | W38: 38
A39: 18 | B39: -16 | C39: 18 | D39: 9 | E39: -203 | F39: -78 | G39: -7 | H39: 15 | I39: -147 | J39: 18 | K39: 16 | M39: 18 | N39: -251 | O39: 2 | P39: 40 | Q39: -369 | R39: -100 | S39: -34 | T39: 29 | U39: -40 | V39: 14 | W39: 40
A40: 19 | B40: -16 | C40: 19 | D40: 10 | E40: -214 | F40: -83 | G40: -8 | H40: 16 | I40: -156 | J40: 19 | K40: 17 | M40: 19 | N40: -265 | O40: 2 | P40: 42 | Q40: -390 | R40: -105 | S40: -36 | T40: 31 | U40: -42 | V40: 15 | W40: 43
A41: 20 | B41: -17 | C41: 20 | D41: 10 | E41: -226 | F41: -87 | G41: -8 | H41: 17 | I41: -164 | J41: 19 | K41: 18 | M41: 20 | N41: -279 | O41: 2 | P41: 44 | Q41: -410 | R41: -111 | S41: -38 | T41: 33 | U41: -45 | V41: 16 | W41: 45
A42: 21 | B42: -18 | C42: 21 | D42: 11 | E42: -237 | F42: -91 | G42: -8 | H42: 18 | I42: -172 | J42: 20 | K42: 19 | M42: 21 | N42: -293 | O42: 2 | P42: 47 | Q42: -431 | R42: -116 | S42: -40 | T42: 34 | U42: -47 | V42: 17 | W42: 47
A43: 22 | B43: -19 | C43: 22 | D43: 11 | E43: -248 | F43: -96 | G43: -9 | H43: 19 | I43: -180 | J43: 21 | K43: 20 | M43: 22 | N43: -307 | O43: 2 | P43: 49 | Q43: -451 | R43: -122 | S43: -42 | T43: 36 | U43: -49 | V43: 18 | W43: 49
A44: 23 | B44: -20 | C44: 23 | D44: 12 | E44: -260 | F44: -100 | G44: -9 | H44: 20 | I44: -188 | J44: 22 | K44: 21 | M44: 23 | N44: -321 | O44: 2 | P44: 51 | Q44: -472 | R44: -127 | S44: -44 | T44: 38 | U44: -51 | V44: 18 | W44: 52
A45: 24 | B45: -21 | C45: 24 | D45: 12 | E45: -271 | F45: -104 | G45: -10 | H45: 21 | I45: -197 | J45: 23 | K45: 22 | M45: 24 | N45: -335 | O45: 2 | P45: 53 | Q45: -492 | R45: -133 | S45: -46 | T45: 39 | U45: -54 | V45: 19 | W45: 54
A46: 25 | B46: -22 | C46: 25 | D46: 13 | E46: -282 | F46: -109 | G46: -10 | H46: 21 | I46: -205 | J46: 24 | K46: 23 | M46: 25 | N46: -349 | O46: 2 | P46: 55 | Q46: -513 | R46: -139 | S46: -47 | T46: 41 | U46: -56 | V46: 20 | W46: 56
A51: Relative CFs for impacts of changing the seabed within the wind farm when decommissioning | M51: Absolute CFs for impacts of changing the seabed within the wind farm when decommissioning
A52: Removing the rocky seabed (sandy to rocky) - CONSIDERING 1 YEAR AFTER DECOMMISSSIONING | M52: Removing the rocky seabed (sandy to rocky) - CONSIDERING 1 YEAR AFTER DECOMMISSSIONING
A53: Unit: PDF.year/OWF seabed | M53: Unit: species.year/OWF seabed
A54: Years after decom | B54: TOTAL | C54: Porifera | D54: Cnidaria | E54: Worms | F54: Mollusca | G54: Arthropoda | H54: Bryozoa | I54: Echinodermata | J54: Chordata | K54: Aliens | M54: Years after decom | N54: TOTAL | O54: Porifera | P54: Cnidaria | Q54: Worms | R54: Mollusca | S54: Arthropoda | T54: Bryozoa | U54: Echinodermata | V54: Chordata | W54: Aliens
A55: 1 | B55: =B22 -> -1 | C55: =C22 -> 1 | D55: =D22 -> 1 | E55: -11 | F55: -4 | G55: -0 | H55: 1 | I55: -8 | J55: 1 | K55: =K22 -> 1 | M55: 1 | N55: =N22 -> -14 | O55: =O22 -> 0 | P55: =P22 -> 2 | Q55: -21 | R55: -6 | S55: -2 | T55: 2 | U55: -2 | V55: 1 | W55: =W22 -> 2
A59: Removing the rocky seabed (sandy to rocky) - CONSIDERING 25 YEARS AFTER DECOMMISSSIONING | M59: Removing the rocky seabed (sandy to rocky) - CONSIDERING 25 YEARS AFTER DECOMMISSSIONING
A60: Unit: PDF.year/OWF seabed | M60: Unit: species.year/OWF seabed
A61: Years after decom | B61: TOTAL | C61: Porifera | D61: Cnidaria | E61: Worms | F61: Mollusca | G61: Arthropoda | H61: Bryozoa | I61: Echinodermata | J61: Chordata | K61: Aliens | M61: Years after decom | N61: TOTAL | O61: Porifera | P61: Cnidaria | Q61: Worms | R61: Mollusca | S61: Arthropoda | T61: Bryozoa | U61: Echinodermata | V61: Chordata | W61: Aliens
A62: 25 | B62: =$B$22*A62 -> -22 | C62: =$C$22*A62 -> 25 | D62: =$D$22*A62 -> 13 | E62: =$E$22*A62 -> -282 | F62: =$F$22*A62 -> -109 | G62: =$G$22*A62 -> -10 | H62: =$H$22*A62 -> 21 | I62: =$I$22*A62 -> -205 | J62: =$J$22*A62 -> 24 | K62: =$K$22*A62 -> 23 | M62: 25 | N62: =$N$22*A62 -> -349 | O62: =$O$22*A62 -> 2 | P62: =$P$22*A62 -> 55 | Q62: =$Q$22*A62 -> -513 | R62: =$R$22*A62 -> -139 | S62: =$S$22*A62 -> -47 | T62: =$T$22*A62 -> 41 | U62: =$U$22*A62 -> -56 | V62: =$V$22*A62 -> 20 | W62: =$W$22*A62 -> 56

Sheet 5. Reference richness
A1: Richness on reference seabed and on the full structure
A3: This sheet presents the species richness on the reference seabed (also representing the seabed within the OWF) and the richness on the full turbine structure over the lifetime spanning from 1 to 25 years. This is used for the calculations of impacts in tab "1. CF tool". Units: species/OWF seabed and species/turbine. Abbreviations: OWF = Offshore Wind Farm.
A9: Seabed richness (reference for construction and lifetime impacts)
A10: Unit: species/OWF seabed
A12: Sandy seabed
B13: TOTAL | C13: Porifera | D13: Cnidaria | E13: Worms | F13: Mollusca | G13: Arthropoda | H13: Bryozoa | I13: Echinodermata | J13: Chordata | K13: Aliens
A14: CI lower | B14: 27.5 | C14: 0 | D14: 1.68 | E14: 19.2 | F14: 5.75 | G14: 6.04 | H14: 0.195 | I14: 2.13 | J14: 0.00562 | K14: 0.162
A15: Mean | B15: 30.0 | C15: 0.00 | D15: 2.15 | E15: 22.3 | F15: 6.81 | G15: 6.63 | H15: 0.274 | I15: 2.51 | J15: 0.0213 | K15: 0.210
A16: CI upper | B16: 32.6 | C16: 0 | D16: 2.61 | E16: 25.4 | F16: 7.88 | G16: 7.21 | H16: 0.353 | I16: 2.88 | J16: 0.0371 | K16: 0.259
A19: Hard seabed
B20: TOTAL | C20: Porifera | D20: Cnidaria | E20: Worms | F20: Mollusca | G20: Arthropoda | H20: Bryozoa | I20: Echinodermata | J20: Chordata | K20: Aliens
A21: CI lower | B21: 6.4 | C21: -0.111649 | D21: 2.50 | E21: 0.3 | F21: -0.35 | G21: 1.20 | H21: 1.146 | I21: -0.16 | J21: 0.23111 | K21: 1.442
A22: Mean | B22: 16.1 | C22: 0.09 | D22: 4.36 | E22: 1.8 | F22: 1.27 | G22: 4.73 | H22: 1.909 | I22: 0.27 | J22: 0.8182 | K22: 2.455
A23: CI upper | B23: 25.8 | C23: 0.2934672 | D23: 6.22 | E23: 3.4 | F23: 2.89 | G23: 8.26 | H23: 2.672 | I23: 0.71 | J23: 1.4053 | K23: 3.467
A28: Richness on the full structure (reference for decommissioning impacts)
A29: Unit: species/turbine
B31: TOTAL | C31: Porifera | D31: Cnidaria | E31: Worms | F31: Mollusca | G31: Arthropoda | H31: Bryozoa | I31: Echinodermata | J31: Chordata | K31: Aliens
A32: 0 | B32: 7.88 | C32: 0.20 | D32: 1.24 | E32: 0.00 | F32: 1.41 | G32: 3.16 | H32: 1.05 | I32: 0.79 | J32: 0.26 | K32: 2.45
A33: 1 | B33: 9.97 | C33: 0.23 | D33: 1.62 | E33: 0.37 | F33: 1.77 | G33: 3.81 | H33: 1.15 | I33: 0.90 | J33: 0.28 | K33: 2.70
A34: 2 | B34: 11.99 | C34: 0.25 | D34: 1.98 | E34: 1.44 | F34: 2.12 | G34: 4.44 | H34: 1.25 | I34: 1.01 | J34: 0.29 | K34: 2.93
A35: 3 | B35: 13.95 | C35: 0.27 | D35: 2.31 | E35: 2.52 | F35: 2.46 | G35: 5.06 | H35: 1.36 | I35: 1.11 | J35: 0.30 | K35: 3.14
A36: 4 | B36: 15.84 | C36: 0.29 | D36: 2.63 | E36: 3.59 | F36: 2.77 | G36: 5.66 | H36: 1.46 | I36: 1.20 | J36: 0.32 | K36: 3.33
A37: 5 | B37: 17.66 | C37: 0.31 | D37: 2.93 | E37: 4.66 | F37: 3.06 | G37: 6.25 | H37: 1.56 | I37: 1.29 | J37: 0.33 | K37: 3.50
A38: 6 | B38: 19.41 | C38: 0.32 | D38: 3.20 | E38: 5.73 | F38: 3.34 | G38: 6.82 | H38: 1.66 | I38: 1.38 | J38: 0.34 | K38: 3.65
A39: 7 | B39: 21.10 | C39: 0.34 | D39: 3.46 | E39: 6.81 | F39: 3.60 | G39: 7.37 | H39: 1.76 | I39: 1.46 | J39: 0.35 | K39: 3.79
A40: 8 | B40: 22.71 | C40: 0.34 | D40: 3.70 | E40: 7.88 | F40: 3.84 | G40: 7.91 | H40: 1.87 | I40: 1.53 | J40: 0.35 | K40: 3.90
A41: 9 | B41: 24.26 | C41: 0.35 | D41: 3.91 | E41: 8.95 | F41: 4.07 | G41: 8.43 | H41: 1.97 | I41: 1.60 | J41: 0.36 | K41: 4.00
A42: 10 | B42: 25.74 | C42: 0.36 | D42: 4.11 | E42: 10.03 | F42: 4.27 | G42: 8.94 | H42: 2.07 | I42: 1.66 | J42: 0.37 | K42: 4.07
A43: 11 | B43: 27.16 | C43: 0.36 | D43: 4.29 | E43: 11.10 | F43: 4.46 | G43: 9.43 | H43: 2.17 | I43: 1.72 | J43: 0.37 | K43: 4.13
A44: 12 | B44: 28.51 | C44: 0.36 | D44: 4.44 | E44: 12.17 | F44: 4.63 | G44: 9.91 | H44: 2.27 | I44: 1.77 | J44: 0.37 | K44: 4.17
A45: 13 | B45: 29.79 | C45: 0.35 | D45: 4.58 | E45: 13.24 | F45: 4.78 | G45: 10.37 | H45: 2.38 | I45: 1.82 | J45: 0.38 | K45: 4.19
A46: 14 | B46: 31.00 | C46: 0.35 | D46: 4.70 | E46: 14.32 | F46: 4.91 | G46: 10.81 | H46: 2.48 | I46: 1.86 | J46: 0.38 | K46: 4.19
A47: 15 | B47: 32.14 | C47: 0.34 | D47: 4.79 | E47: 15.39 | F47: 5.02 | G47: 11.24 | H47: 2.58 | I47: 1.90 | J47: 0.38 | K47: 4.17
A48: 16 | B48: 33.22 | C48: 0.33 | D48: 4.87 | E48: 16.46 | F48: 5.12 | G48: 11.66 | H48: 2.68 | I48: 1.93 | J48: 0.38 | K48: 4.14
A49: 17 | B49: 34.23 | C49: 0.31 | D49: 4.93 | E49: 17.53 | F49: 5.20 | G49: 12.06 | H49: 2.78 | I49: 1.96 | J49: 0.37 | K49: 4.08
A50: 18 | B50: 35.17 | C50: 0.30 | D50: 4.96 | E50: 18.61 | F50: 5.26 | G50: 12.44 | H50: 2.89 | I50: 1.98 | J50: 0.37 | K50: 4.01
A51: 19 | B51: 36.04 | C51: 0.28 | D51: 4.98 | E51: 19.68 | F51: 5.30 | G51: 12.81 | H51: 2.99 | I51: 1.99 | J51: 0.37 | K51: 3.91
A52: 20 | B52: 36.85 | C52: 0.25 | D52: 4.98 | E52: 20.75 | F52: 5.33 | G52: 13.16 | H52: 3.09 | I52: 2.00 | J52: 0.36 | K52: 3.80
A53: 21 | B53: 37.59 | C53: 0.23 | D53: 4.95 | E53: 21.83 | F53: 5.33 | G53: 13.50 | H53: 3.19 | I53: 2.01 | J53: 0.35 | K53: 3.67
A54: 22 | B54: 38.26 | C54: 0.20 | D54: 4.91 | E54: 22.90 | F54: 5.32 | G54: 13.82 | H54: 3.29 | I54: 2.01 | J54: 0.35 | K54: 3.52
A55: 23 | B55: 38.86 | C55: 0.17 | D55: 4.84 | E55: 23.97 | F55: 5.29 | G55: 14.13 | H55: 3.40 | I55: 2.00 | J55: 0.34 | K55: 3.35
A56: 24 | B56: 39.40 | C56: 0.14 | D56: 4.76 | E56: 25.04 | F56: 5.24 | G56: 14.42 | H56: 3.50 | I56: 1.99 | J56: 0.33 | K56: 3.16
A57: 25 | B57: 39.87 | C57: 0.11 | D57: 4.66 | E57: 26.12 | F57: 5.18 | G57: 14.69 | H57: 3.60 | I57: 1.97 | J57: 0.32 | K57: 2.95
